Capital or Revenue,Directorate,SERCOP High Level Category,SERCOP Detailed Category,Transaction Number,Date,Service Area,Expenses Type,Amount,Supplier Name
Revenue,Adult Services,Adult Social Care,Central Codes (to be reallocated),5105668282,23.04.2018,Adelaide Resource Centre,Consumable Cleaning Materials,232.00,A & M APPLIANCE CARE
Revenue,Adult Services,Adult Social Care,Learning Disab Supp (to be reallocated),5105668227,23.04.2018,31 Carter Avenue,Minor Works,172.56,A & M APPLIANCE CARE
Revenue,Adult Services,Adult Social Care,Central Codes (to be reallocated),5105670026,25.04.2018,Adelaide Resource Centre,Consumable Cleaning Materials,166.00,A & M APPLIANCE CARE
Revenue,Adult Services,Adult Social Care,Central Codes (to be reallocated),5105669689,20.04.2018,Gouldings Resource Centre,Consumable Cleaning Materials,164.00,A & M APPLIANCE CARE
Revenue,Place,Cultural and Related Services,Open Spaces,5105668256,23.04.2018,IW Biological Record Centre,Consultants Fees,52.00,REDACTED PERSONAL DATA
Revenue,Place,Cultural and Related Services,Open Spaces,5105668256,23.04.2018,IW Biological Record Centre,Consultants Fees,890.95,REDACTED PERSONAL DATA
Revenue,Place,Cultural and Related Services,Open Spaces,5105668313,06.04.2018,John O�Conner Grounds Maintenance Contract,Payment to Private Contractors,"1,170.00",A GUSTAR T/A IVY TREE CARE
Revenue,Childrens Services,Children's & Education Services,Other Education and Community Budget,5105669219,18.04.2018,Home to School Mainstream Transport,Taxis - Contract Hire,180.00,AMAR CABS OF NEWPORT
Revenue,Childrens Services,Children's & Education Services,Other Education and Community Budget,5105669228,18.04.2018,Home to School SEN Transport (LA),Taxis - Contract Hire,200.00,AMAR CABS OF NEWPORT
Revenue,Childrens Services,Children's & Education Services,Other Education and Community Budget,5105669211,18.04.2018,Home to School SEN Transport (LA),Taxis - Contract Hire,620.00,AMAR EXCLUSIVES
Revenue,Childrens Services,Adult Social Care,Information & Early Intervention,5105670474,27.04.2018,ASC Trg Improved Better Care Fund,Training,"4,430.00",REDACTED PERSONAL DATA
Revenue,Childrens Services,Children's & Education Services,Other Education and Community Budget,5105668914,13.04.2018,Home to School SEN Transport (LA),Taxis - Contract Hire,462.00,BEACON TAXIS
Revenue,Childrens Services,Children's & Education Services,Other Education and Community Budget,5105668650,11.04.2018,Home to School Mainstream Transport,Taxis - Contract Hire,702.00,MICK'S TAXI
Revenue,Childrens Services,Children's & Education Services,Other Education and Community Budget,5105669841,20.04.2018,Home to College Post 16 Transport,Taxis - Contract Hire,48.00,CAROLS TAXIS
Revenue,Childrens Services,Children's & Education Services,Other Education and Community Budget,5105669798,20.04.2018,Home to College Post 16 Transport,Taxis - Contract Hire,600.00,CAROLS TAXIS
Revenue,Childrens Services,Children's & Education Services,Other Education and Community Budget,5105669796,20.04.2018,Home to College Post 16 Transport,Taxis - Contract Hire,156.00,CAROLS TAXIS
Revenue,Childrens Services,Children's & Education Services,Other Education and Community Budget,5105669692,20.04.2018,Home to School SEN Transport (LA),Taxis - Contract Hire,900.00,CLARES CABS
Revenue,Resources,Central Services,Support Services,5105669306,30.04.2018,Litigation Costs,Legal Fees - Other Parties,350.00,"PALLANT CHAMBERS, CHICHESTER"
Revenue,Place,Environmental & Regulatory Services,Coast Protection,5105668500,11.04.2018,Coast Protection,Payment to Private Contractors,714.00,C N SERVICES
Revenue,Place,Cultural and Related Services,Recreation and Sport,5105668501,11.04.2018,Beach Safety & Inspection / Beach Awards,Payment to Private Contractors,106.53,C N SERVICES
Revenue,Place,Cultural and Related Services,Open Spaces,5105668501,11.04.2018,Parks/ Gardens Inspectors,Payment to Private Contractors,64.47,C N SERVICES
Revenue,Place,Cultural and Related Services,Open Spaces,5105668696,11.04.2018,Play Areas Health & Safety work,Payment to Private Contractors,"1,498.25",C N SERVICES
Revenue,Place,Cultural and Related Services,Open Spaces,5105668697,11.04.2018,John O�Conner Grounds Maintenance Contract,Payment to Private Contractors,526.75,C N SERVICES
Revenue,Regeneration,Planning services,Economic Development,5105667801,06.04.2018,Economic Development Projects,Consultants Fees,"4,000.00",CORPORATE IMPACT
Revenue,Place,Environmental & Regulatory Services,Service Management and Support Services,5105668619,23.04.2018,Environment officers,Payment to Private Contractors,"1,002.50",REDACTED PERSONAL DATA
Revenue,Resources,Central Services,Support Services,5105668711,30.04.2018,Litigation Costs,Legal Fees - Other Parties,400.00,REDACTED PERSONAL DATA
Revenue,Childrens Services,Children's & Education Services,Family Support Services,5105668264,06.04.2018,S17 Child Protection,Support Children,923.25,REDACTED PERSONAL DATA
Revenue,Adult Services,Adult Social Care,Social Care Activities,5105668132,20.04.2018,DoLS/MCA,Professional Services,200.00,THE MEMORY SERVICE
Revenue,Adult Services,Adult Social Care,Social Care Activities,5105668136,20.04.2018,DoLS/MCA,Professional Services,200.00,THE MEMORY SERVICE
Revenue,Adult Services,Adult Social Care,Social Care Activities,5105667917,06.04.2018,DoLS/MCA,Professional Services,200.00,THE MEMORY SERVICE
Revenue,Adult Services,Adult Social Care,Social Care Activities,5105667963,11.04.2018,DoLS/MCA,Professional Services,200.00,THE MEMORY SERVICE
Revenue,Adult Services,Adult Social Care,Social Care Activities,5105667964,11.04.2018,DoLS/MCA,Professional Services,200.00,THE MEMORY SERVICE
Revenue,Adult Services,Adult Social Care,Social Care Activities,5105668720,27.04.2018,DoLS/MCA,Professional Services,200.00,THE MEMORY SERVICE
Revenue,Adult Services,Adult Social Care,Social Care Activities,5105668722,27.04.2018,DoLS/MCA,Professional Services,200.00,THE MEMORY SERVICE
Revenue,Adult Services,Adult Social Care,Social Care Activities,5105668727,27.04.2018,DoLS/MCA,Professional Services,200.00,THE MEMORY SERVICE
Revenue,Adult Services,Adult Social Care,Social Care Activities,5105669795,20.04.2018,DoLS/MCA,Professional Services,200.00,THE MEMORY SERVICE
Revenue,Adult Services,Adult Social Care,Social Care Activities,5105669830,20.04.2018,DoLS/MCA,Professional Services,200.00,THE MEMORY SERVICE
Revenue,Childrens Services,Children's & Education Services,Children Looked After,5105668322,06.04.2018,Leaving Care Costs,Payments to/Aid Provided to Clients,500.00,DS VAN SERVICES
Revenue,Adult Services,Adult Social Care,Physical Support - adults (18-64),5105667577,04.04.2018,Physical Support Other ST Support 18-64,Charges from Independent Providers,"1,500.00",EXTRACTA CLEANING
Revenue,Childrens Services,Children's & Education Services,Other Education and Community Budget,5105668598,23.04.2018,Specialist Cross-Council Training,Training,650.00,FRAN OSMAN-NEWBURY LTD
Revenue,Childrens Services,Children's & Education Services,Other Education and Community Budget,5105667682,04.04.2018,Specialist Cross-Council Training,Training,650.00,FRAN OSMAN-NEWBURY LTD
Revenue,Childrens Services,Children's & Education Services,Other Education and Community Budget,5105667682,04.04.2018,Specialist Cross-Council Training,Training,650.00,FRAN OSMAN-NEWBURY LTD
Revenue,Childrens Services,Children's & Education Services,Other Education and Community Budget,5105668598,23.04.2018,Specialist Cross-Council Training,Training,650.00,FRAN OSMAN-NEWBURY LTD
Revenue,Place,Cultural and Related Services,Recreation and Sport,5105667706,11.04.2018,The Heights,Stock Purchases,29.04,FULL SPREAD LIMITED
Revenue,Place,Cultural and Related Services,Recreation and Sport,5105667707,11.04.2018,The Heights,Stock Purchases,33.29,FULL SPREAD LIMITED
Revenue,Place,Cultural and Related Services,Recreation and Sport,5105667708,11.04.2018,The Heights,Stock Purchases,48.05,FULL SPREAD LIMITED
Revenue,Place,Cultural and Related Services,Recreation and Sport,5105668203,20.04.2018,The Heights,Stock Purchases,37.49,FULL SPREAD LIMITED
Revenue,Place,Cultural and Related Services,Recreation and Sport,5105668208,20.04.2018,The Heights,Stock Purchases,31.43,FULL SPREAD LIMITED
Revenue,Childrens Services,Children's & Education Services,Other Education and Community Budget,5105668436,13.04.2018,Home to College Post 16 Transport,Taxis - Contract Hire,665.00,HAYLES TAXIS
Revenue,Childrens Services,Children's & Education Services,Other Education and Community Budget,5105668587,27.04.2018,Home to College Post 16 Transport,Taxis - Contract Hire,220.00,HAYLES TAXIS
Revenue,Childrens Services,Children's & Education Services,Other Education and Community Budget,5105668561,27.04.2018,Home to School Mainstream Transport,Taxis - Contract Hire,750.00,HAYLES TAXIS
Revenue,Childrens Services,Children's & Education Services,Other Education and Community Budget,5105668553,27.04.2018,Home to School SEN Transport (LA),Taxis - Contract Hire,780.00,HAYLES TAXIS
Revenue,Regeneration,Planning services,Economic Development,5105669033,13.04.2018,One Public Estate,Consultants Fees,734.11,INNER CIRCLE CONSULTING LTD
Revenue,Regeneration,Planning services,Economic Development,5105667574,20.04.2018,Director of Regeneration,Consultants Fees,240.50,INNER CIRCLE CONSULTING LTD
Revenue,Regeneration,Central Services,Support Services,5105668964,25.04.2018,Strategic Assets Team,Consultants Fees,99.00,ISLAND HIGHWAY & TRANSPORT
Revenue,Regeneration,Planning services,Economic Development,5105669087,13.04.2018,BAE Systems Office Block Regeneration,Consultants Fees,170.00,ISLAND HIGHWAY & TRANSPORT
Revenue,Place,Cultural and Related Services,Open Spaces,5105667798,11.04.2018,Rights of Way Operations,Payment to Private Contractors,96.30,REDACTED PERSONAL DATA
Revenue,Resources,Central Services,Support Services,5105668250,23.04.2018,ICT Contracts,Computer Maintenance,300.00,REDACTED PERSONAL DATA
Revenue,Resources,Central Services,Support Services,5105668254,23.04.2018,ICT Contracts,Computer Maintenance,300.00,REDACTED PERSONAL DATA
Revenue,Resources,Central Services,Support Services,5105668562,30.04.2018,ICT Contracts,Computer Maintenance,300.00,REDACTED PERSONAL DATA
Revenue,Resources,Central Services,Support Services,5105667630,04.04.2018,Litigation Costs,Legal Fees - Other Parties,400.00,"COLLEGE CHAMBERS, BARRISTERS"
Revenue,Adult Services,Adult Social Care,Commissioning & Service Delivery,5105667552,13.04.2018,Learning Disability Homes Management & Admin,Consultants Fees,"2,337.50",JAYNE KILGALLEN INTERIM SOLUTIONS
Revenue,Adult Services,Adult Social Care,Commissioning & Service Delivery,5105667552,13.04.2018,Learning Disability Homes Management & Admin,Consultants Fees,300.30,JAYNE KILGALLEN INTERIM SOLUTIONS
Revenue,Adult Services,Adult Social Care,Commissioning & Service Delivery,5105670445,27.04.2018,Learning Disability Homes Management & Admin,Consultants Fees,"4,400.00",JAYNE KILGALLEN INTERIM SOLUTIONS
Revenue,Childrens Services,Children's & Education Services,Children Looked After,5105667853,04.04.2018,Adoption Support Fund,Charges from Independent Providers,200.00,REDACTED PERSONAL DATA
Revenue,Childrens Services,Children's & Education Services,Children Looked After,5105668423,13.04.2018,Adoption Support Fund,Charges from Independent Providers,200.00,REDACTED PERSONAL DATA
Revenue,Childrens Services,Children's & Education Services,Other Education and Community Budget,5105669344,20.04.2018,Home to College Post 16 Transport,Taxis - Contract Hire,552.00,REDACTED PERSONAL DATA
Revenue,Childrens Services,Children's & Education Services,Other Education and Community Budget,5105669346,20.04.2018,Home to College Post 16 Transport,Taxis - Contract Hire,828.00,REDACTED PERSONAL DATA
Revenue,Regeneration,Planning services,Economic Development,5105668230,06.04.2018,Newport Young Designers Award,Consultants Fees,"2,000.00",REDACTED PERSONAL DATA
Revenue,Regeneration,Planning services,Economic Development,5105668515,11.04.2018,Newport Young Designers Award,Consultants Fees,"2,000.00",REDACTED PERSONAL DATA
Revenue,Place,Environmental & Regulatory Services,Regulatory Services,5105667635,04.04.2018,Environmental Health - Business Regulation Protection,Legal Fees - Other Parties,270.00,REDACTED PERSONAL DATA
Capital,Place,Capital,Capital,5105668307,06.04.2018,Rights Of Way Capital Programme,Payment to Contractors - Capital,"3,200.00",REDACTED PERSONAL DATA
Capital,Place,Capital,Capital,5105667606,04.04.2018,Ryde THI,Payment to Contractors - Capital,"1,100.00",REDACTED PERSONAL DATA
Revenue,Childrens Services,Children's & Education Services,Children Looked After,5105669793,20.04.2018,Adoption Support Fund,Charges from Independent Providers,140.00,REDACTED PERSONAL DATA
Revenue,Childrens Services,Children's & Education Services,Children Looked After,5105669384,25.04.2018,Adoption Support Fund,Charges from Independent Providers,490.00,REDACTED PERSONAL DATA
Revenue,Place,Cultural and Related Services,Open Spaces,5105668606,23.04.2018,Rights of Way Operations,Payment to Private Contractors,650.00,NIGEL EARLEY SERVICES LTD
Revenue,Place,Cultural and Related Services,Open Spaces,5105668646,11.04.2018,Rights of Way Operations,Payment to Private Contractors,600.00,NIGEL EARLEY SERVICES LTD
Revenue,Resources,Central Services,Support Services,5105669048,30.04.2018,Legal Services Section,Sundry Office Expenses,59.97,OD CONSULTANCY LTD
Revenue,Place,Housing Services,Homelessness,5105669853,23.04.2018,Leaseholds by LA,Accommodation Costs - Leaseholder Payments,695.89,REDACTED PERSONAL DATA
Revenue,Place,Housing Services,Homelessness,5105669853,23.04.2018,Leaseholds by LA,Accommodation Costs - Leaseholder Payments,695.89,REDACTED PERSONAL DATA
Revenue,Place,Housing Services,Homelessness,5105669853,23.04.2018,Leaseholds by LA,Accommodation Costs - Leaseholder Payments,695.89,REDACTED PERSONAL DATA
Revenue,Place,Housing Services,Homelessness,5105669853,23.04.2018,Leaseholds by LA,Accommodation Costs - Leaseholder Payments,695.89,REDACTED PERSONAL DATA
Revenue,Place,Housing Services,Homelessness,5105669853,23.04.2018,Leaseholds by LA,Accommodation Costs - Leaseholder Payments,695.89,REDACTED PERSONAL DATA
Revenue,Childrens Services,Children's & Education Services,Children Looked After,5105669481,20.04.2018,Adoption Support Fund,Charges from Independent Providers,120.00,REDACTED PERSONAL DATA
Revenue,Childrens Services,Children's & Education Services,Children Looked After,5105669352,20.04.2018,Adoption Support Fund,Charges from Independent Providers,300.00,REDACTED PERSONAL DATA
Revenue,Regeneration,Central Services,Support Services,5105668516,11.04.2018,Strategic Assets Team,Professional Services,"10,000.00",PRINCIPAL SURVEYORS LTD
Revenue,Place,Cultural and Related Services,Open Spaces,5105667714,11.04.2018,Other Grounds Maintenance,Payment to Private Contractors,840.00,PRO-TECH GROUP
Revenue,Place,Environmental & Regulatory Services,"Cemetery, Cremation & Mortuary Services",5105668133,20.04.2018,Cemeteries Administration,Professional Services,210.00,PRO-TECH GROUP
Revenue,Adult Services,Adult Social Care,Learning Disability Suppt-adults (18-64),5105668318,11.04.2018,Learning Disability Other LT Care 18-64,Taxis - Contract Hire,400.00,ROUNSEVELLS TAXIS
Revenue,Adult Services,Adult Social Care,Learning Disability Suppt-adults (18-64),5105670112,25.04.2018,Learning Disability Other LT Care 18-64,Taxis - Contract Hire,360.00,ROUNSEVELLS TAXIS
Revenue,Resources,Central Services,Support Services,5105667731,11.04.2018,Litigation Costs,Legal Fees - Other Parties,400.00,"COLLEGE CHAMBERS, BARRISTERS"
Revenue,Childrens Services,Children's & Education Services,Family Support Services,5105668569,13.04.2018,Short Breaks,Charges from Independent Providers,155.00,SCALLYWAGS FUN CLUB
Revenue,Childrens Services,Children's & Education Services,Family Support Services,5105668569,13.04.2018,Short Breaks,Charges from Independent Providers,230.00,SCALLYWAGS FUN CLUB
Capital,Place,Capital,Capital,5105668640,25.04.2018,Parks and Gardens Capital,External Design and Supervision Fees,"2,969.00",SOUTH ISLAND ESTATES LTD
Revenue,Childrens Services,Children's & Education Services,Family Support Services,5105668566,25.04.2018,Short Breaks,Charges from Independent Providers,328.00,SPLAT MESSY PLAY LTD
Revenue,Childrens Services,Children's & Education Services,Management & Support Services,5105669932,30.04.2018,Pupil Premium Managed Centrally,Professional Services,40.00,SUPPLY DESK LTD
Revenue,Childrens Services,Children's & Education Services,Children Looked After,5105670554,30.04.2018,Leaving Care Costs,Charges from Independent Providers,"2,142.90",NUMBER5NEWPORT
Revenue,Childrens Services,Children's & Education Services,Children Looked After,5105670554,30.04.2018,Leaving Care Costs,Charges from Independent Providers,288.00,NUMBER5NEWPORT
Revenue,Adult Services,Adult Social Care,Social Care Activities,5105669413,25.04.2018,Local Safeguarding Adults Board,Professional Services,885.50,REDACTED PERSONAL DATA
Revenue,Adult Services,Adult Social Care,Social Care Activities,5105669413,25.04.2018,Local Safeguarding Adults Board,Professional Services,888.25,REDACTED PERSONAL DATA
Revenue,Public Health,Public Health,Public Mental Health,5105667803,11.04.2018,Public Mental Health,Grants to External Bodies,"1,600.00",THE CROSSLEY COMPANY (IOW) LTD
Revenue,Childrens Services,Children's & Education Services,Other Education and Community Budget,5105667787,11.04.2018,Specialist Cross-Council Training,Training,840.00,THE CROSSLEY COMPANY (IOW) LTD
Revenue,Childrens Services,Children's & Education Services,Other Education and Community Budget,5105667787,11.04.2018,Specialist Cross-Council Training,Training,240.00,THE CROSSLEY COMPANY (IOW) LTD
Revenue,Childrens Services,Children's & Education Services,Other Education and Community Budget,5105667802,11.04.2018,Specialist Cross-Council Training,Training,"1,250.00",THE CROSSLEY COMPANY (IOW) LTD
Revenue,Childrens Services,Children's & Education Services,Services for Young People,5105668273,23.04.2018,Youth Commissioning,Charges from Independent Providers,479.97,THE VECTIS RADIO 4PS TRAINING
Revenue,Childrens Services,Children's & Education Services,Other Education and Community Budget,5105668560,23.04.2018,Home to School Mainstream Transport,Taxis - Contract Hire,"1,000.00",THOMPSON TAXI
Revenue,Childrens Services,Children's & Education Services,Other Education and Community Budget,5105669478,20.04.2018,Home to School SEN Transport (LA),Taxis - Contract Hire,"1,200.00",THOMPSON TAXI
Revenue,Childrens Services,Children's & Education Services,Other Education and Community Budget,5105668555,23.04.2018,Home to School SEN Transport (LA),Taxis - Contract Hire,"1,400.00",THOMPSON TAXI
Revenue,Childrens Services,Children's & Education Services,Other Education and Community Budget,5105668679,11.04.2018,Home to School Mainstream Transport,Taxis - Contract Hire,400.00,THOMPSON TAXI
Revenue,Childrens Services,Children's & Education Services,Other Education and Community Budget,5105669256,18.04.2018,Home to College Post 16 Transport,Taxis - Contract Hire,648.00,TJ CAR SERVICES LTD
Revenue,Childrens Services,Children's & Education Services,Other Education and Community Budget,5105669256,18.04.2018,Home to College Post 16 Transport,Taxis - Contract Hire,484.00,TJ CAR SERVICES LTD
Revenue,Childrens Services,Children's & Education Services,Other Education and Community Budget,5105669256,18.04.2018,Home to College Post 16 Transport,Taxis - Contract Hire,"1,394.00",TJ CAR SERVICES LTD
Revenue,Childrens Services,Children's & Education Services,Management & Support Services,5105667857,04.04.2018,Pupil Premium Managed Centrally,Professional Services,60.00,REDACTED PERSONAL DATA
Revenue,Childrens Services,Children's & Education Services,Management & Support Services,5105668896,13.04.2018,Pupil Premium Managed Centrally,Professional Services,-60.00,REDACTED PERSONAL DATA
Revenue,Childrens Services,Children's & Education Services,Management & Support Services,5105668897,13.04.2018,Pupil Premium Managed Centrally,Professional Services,60.00,REDACTED PERSONAL DATA
Revenue,Childrens Services,Children's & Education Services,Management & Support Services,5105668897,13.04.2018,Pupil Premium Managed Centrally,Client Expenses,2.25,REDACTED PERSONAL DATA
Revenue,Childrens Services,Children's & Education Services,Management & Support Services,5105668894,20.04.2018,Pupil Premium Managed Centrally,Professional Services,60.00,REDACTED PERSONAL DATA
Revenue,Childrens Services,Children's & Education Services,Special Schools & Alternative Provision,5105668370,11.04.2018,Island Learning Centre,Cleaning Contracts,278.07,TOP MOPS LIMITED
Revenue,Childrens Services,Children's & Education Services,Special Schools & Alternative Provision,5105669045,13.04.2018,Workshop Initiative Support in Education,Cleaning Contracts,111.00,TOP MOPS LIMITED
Revenue,Childrens Services,Children's & Education Services,Special Schools & Alternative Provision,5105670471,27.04.2018,Island Learning Centre,Cleaning Contracts,663.60,TOP MOPS LIMITED
Revenue,Childrens Services,Children's & Education Services,Special Schools & Alternative Provision,5105670470,27.04.2018,Island Learning Centre,Cleaning Contracts,"1,271.20",TOP MOPS LIMITED
Revenue,Childrens Services,Children's & Education Services,Services for Young People,5105669303,18.04.2018,Grafton Street Sandown (ex Sandown Yth),Security of Buildings,87.00,VECTIS GROUP SECURITY LTD
Revenue,Adult Services,Adult Social Care,Learning Disab Supp (to be reallocated),5105667823,13.04.2018,"Brooklime House, Bluebell Meadows",Security of Buildings,72.00,VECTIS GROUP SECURITY LTD
Revenue,Adult Services,Adult Social Care,Learning Disab Supp (to be reallocated),5105670182,25.04.2018,"Brooklime House, Bluebell Meadows",Security of Buildings,87.00,VECTIS GROUP SECURITY LTD
Revenue,Childrens Services,Children's & Education Services,Other Education and Community Budget,5105667639,23.04.2018,Broadlea PS Berry Hill site (was 55909),Consultants Fees,60.00,VECTIS GROUP SECURITY LTD
Revenue,Childrens Services,Children's & Education Services,Special Schools & Alternative Provision,5105670375,27.04.2018,Island Learning Centre,Security of Buildings,12.00,VECTIS GROUP SECURITY LTD
Revenue,Place,Planning services,Management & Support Services,5105668482,20.04.2018,Planning Management,Agency staff,"1,396.88",VIVID RESOURCING
Revenue,Place,Planning services,Management & Support Services,5105669400,18.04.2018,Planning Management,Agency staff,"1,149.50",VIVID RESOURCING
Revenue,Place,Planning services,Management & Support Services,5105667607,13.04.2018,Planning Management,Agency staff,"1,469.08",VIVID RESOURCING
Revenue,Childrens Services,Children's & Education Services,Other Education and Community Budget,5105668456,11.04.2018,Complaints (Children & Families),Client Expenses,214.96,REDACTED PERSONAL DATA
Revenue,Childrens Services,Children's & Education Services,Other Education and Community Budget,5105668536,25.04.2018,Home to School SEN Transport (LA),Taxis - Contract Hire,840.00,W W CARS OF SEAVIEW
Revenue,Childrens Services,Children's & Education Services,Other Education and Community Budget,5105668692,13.04.2018,Home to School SEN Transport (LA),Taxis - Contract Hire,"1,887.00",W W CARS OF SEAVIEW
Revenue,Adult Services,Adult Social Care,Social Care Activities,5105668359,13.04.2018,DoLS/MCA,Professional Services,599.68,REDACTED PERSONAL DATA
Revenue,Adult Services,Adult Social Care,Social Care Activities,5105668359,13.04.2018,DoLS/MCA,Professional Services,506.24,REDACTED PERSONAL DATA
Revenue,Childrens Services,Children's & Education Services,Other Education and Community Budget,5105669293,30.04.2018,Home to College Post 16 Transport,Taxis - Contract Hire,84.00,HAVEN TAXIS & PRIVATE HIRE
Revenue,Adult Services,Adult Social Care,Central Codes (to be reallocated),5105668507,11.04.2018,Mental Health Day Services,Property Services - Day to day Maintenance,887.43,WIGHT HEATING LTD
Capital,Resources,Capital,Capital,5105667840,11.04.2018,Management of Asbestos,Payment to Contractors - Capital,"3,624.66",WIGHT HEATING LTD
Revenue,Regeneration,Planning services,Business Support,5105670017,25.04.2018,Properties Industrial Estates,Property Services - Planned Maintenance,110.00,WIGHT HEATING LTD
Capital,Resources,Capital,Capital,5105668509,13.04.2018,Management of Asbestos,Payment to Contractors - Capital,"9,878.57",WIGHT HEATING LTD
Capital,Resources,Capital,Capital,5105668508,13.04.2018,Management of Asbestos,Payment to Contractors - Capital,"7,570.12",WIGHT HEATING LTD
Revenue,Place,Cultural and Related Services,Library Service,5105667842,13.04.2018,Bembridge Library,Property Services - Day to day Maintenance,226.09,WIGHT HEATING LTD
Revenue,Regeneration,Central Services,Support Services,5105667841,13.04.2018,"County Hall,Newport",Property Services - Day to day Maintenance,601.03,WIGHT HEATING LTD
Revenue,Adult Services,Adult Social Care,Central Codes (to be reallocated),5105668505,11.04.2018,Gouldings Resource Centre,Property Services - Day to day Maintenance,369.02,WIGHT HEATING LTD
Revenue,Adult Services,Adult Social Care,Central Codes (to be reallocated),5105668506,11.04.2018,Adelaide Resource Centre,Property Services - Day to day Maintenance,80.00,WIGHT HEATING LTD
Revenue,Place,Housing Services,Homelessness,5105669866,23.04.2018,Leaseholds by LA,Accommodation Costs - Leaseholder Payments,866.67,2K PROPERTY
Revenue,Place,Fire & Rescue Services,Community Safety,5105667638,04.04.2018,Community Safety,Operational Equipment,575.00,4B MEDICAL LLP
Revenue,Childrens Services,Children's & Education Services,Other Education and Community Budget,5105668578,11.04.2018,Adult Community Learning,Marketing Costs,523.40,4IMPRINT DIRECT LTD
Revenue,Childrens Services,Children's & Education Services,Other Education and Community Budget,5105668526,13.04.2018,Specialist Cross-Council Training,Training,"1,750.00",7 FUTURES LTD
Revenue,Childrens Services,Children's & Education Services,Other Education and Community Budget,5105668526,13.04.2018,Specialist Cross-Council Training,Training,247.00,7 FUTURES LTD
Revenue,Place,Fire & Rescue Services,Fire fighting and Rescue Operations,5105670602,30.04.2018,Diversity & Workforce,Training,59.00,REDACTED PERSONAL DATA
Revenue,Childrens Services,Children's & Education Services,Children Looked After,5105667992,06.04.2018,Special Guardianship Order Costs,Support Children,105.00,REDACTED PERSONAL DATA
Revenue,Childrens Services,Children's & Education Services,Children Looked After,5105670216,27.04.2018,Special Guardianship Order Costs,Support Children,105.00,REDACTED PERSONAL DATA
Revenue,Childrens Services,Children's & Education Services,Children Looked After,5105668753,13.04.2018,Special Guardianship Order Costs,Support Children,105.00,REDACTED PERSONAL DATA
Revenue,Childrens Services,Children's & Education Services,Children Looked After,5105669537,20.04.2018,Special Guardianship Order Costs,Support Children,105.00,REDACTED PERSONAL DATA
Revenue,Childrens Services,Children's & Education Services,Children Looked After,5105667992,06.04.2018,Special Guardianship Order Costs,Support Children,168.39,REDACTED PERSONAL DATA
Revenue,Childrens Services,Children's & Education Services,Children Looked After,5105670216,27.04.2018,Special Guardianship Order Costs,Support Children,168.39,REDACTED PERSONAL DATA
Revenue,Childrens Services,Children's & Education Services,Children Looked After,5105668753,13.04.2018,Special Guardianship Order Costs,Support Children,168.39,REDACTED PERSONAL DATA
Revenue,Childrens Services,Children's & Education Services,Children Looked After,5105669537,20.04.2018,Special Guardianship Order Costs,Support Children,168.39,REDACTED PERSONAL DATA
Revenue,Childrens Services,Children's & Education Services,Children Looked After,5105667992,06.04.2018,In-house Fostering,Boarding Out Allowances,234.52,REDACTED PERSONAL DATA
Revenue,Childrens Services,Children's & Education Services,Children Looked After,5105669537,20.04.2018,In-house Fostering,Boarding Out Allowances,234.52,REDACTED PERSONAL DATA
Revenue,Childrens Services,Children's & Education Services,Children Looked After,5105670216,27.04.2018,In-house Fostering,Boarding Out Allowances,234.52,REDACTED PERSONAL DATA
Revenue,Childrens Services,Children's & Education Services,Children Looked After,5105668753,13.04.2018,In-house Fostering,Boarding Out Allowances,234.52,REDACTED PERSONAL DATA
Revenue,Childrens Services,Children's & Education Services,Children Looked After,5105667992,06.04.2018,In-house Fostering,Boarding Out Allowances,234.52,REDACTED PERSONAL DATA
Revenue,Childrens Services,Children's & Education Services,Children Looked After,5105669537,20.04.2018,In-house Fostering,Boarding Out Allowances,234.52,REDACTED PERSONAL DATA
Revenue,Childrens Services,Children's & Education Services,Children Looked After,5105670216,27.04.2018,In-house Fostering,Boarding Out Allowances,234.52,REDACTED PERSONAL DATA
Revenue,Childrens Services,Children's & Education Services,Children Looked After,5105668753,13.04.2018,In-house Fostering,Boarding Out Allowances,234.52,REDACTED PERSONAL DATA
Revenue,Place,Housing Services,Homelessness,5105669863,23.04.2018,Leaseholds by LA,Accommodation Costs - Leaseholder Payments,510.25,REDACTED PERSONAL DATA
Revenue,Place,Housing Services,Homelessness,5105669863,23.04.2018,Leaseholds by LA,Accommodation Costs - Leaseholder Payments,510.25,REDACTED PERSONAL DATA
Revenue,Place,Housing Services,Homelessness,5105669863,23.04.2018,Leaseholds by LA,Accommodation Costs - Leaseholder Payments,510.25,REDACTED PERSONAL DATA
Revenue,Place,Housing Services,Homelessness,5105669863,23.04.2018,Leaseholds by LA,Accommodation Costs - Leaseholder Payments,510.25,REDACTED PERSONAL DATA
Revenue,Place,Housing Services,Homelessness,5105669863,23.04.2018,Leaseholds by LA,Accommodation Costs - Leaseholder Payments,510.25,REDACTED PERSONAL DATA
Revenue,Place,Housing Services,Homelessness,5105669863,23.04.2018,Leaseholds by LA,Accommodation Costs - Leaseholder Payments,510.25,REDACTED PERSONAL DATA
Revenue,Childrens Services,Children's & Education Services,Children Looked After,5105667978,06.04.2018,Adoption Costs,Support Children,225.83,REDACTED PERSONAL DATA
Revenue,Childrens Services,Children's & Education Services,Children Looked After,5105668739,13.04.2018,Adoption Costs,Support Children,225.83,REDACTED PERSONAL DATA
Revenue,Childrens Services,Children's & Education Services,Children Looked After,5105669523,20.04.2018,Adoption Costs,Support Children,225.83,REDACTED PERSONAL DATA
Revenue,Childrens Services,Children's & Education Services,Children Looked After,5105670202,27.04.2018,Adoption Costs,Support Children,225.83,REDACTED PERSONAL DATA
Revenue,Childrens Services,Children's & Education Services,Children Looked After,5105668015,06.04.2018,In-house Fostering,Boarding Out Allowances,500.00,REDACTED PERSONAL DATA
Revenue,Childrens Services,Children's & Education Services,Children Looked After,5105668776,13.04.2018,In-house Fostering,Boarding Out Allowances,500.00,REDACTED PERSONAL DATA
Revenue,Childrens Services,Children's & Education Services,Children Looked After,5105669564,20.04.2018,In-house Fostering,Boarding Out Allowances,500.00,REDACTED PERSONAL DATA
Revenue,Childrens Services,Children's & Education Services,Children Looked After,5105670240,27.04.2018,In-house Fostering,Boarding Out Allowances,500.00,REDACTED PERSONAL DATA
Revenue,Childrens Services,Children's & Education Services,Children Looked After,5105668015,06.04.2018,In-house Fostering,Boarding Out Allowances,500.00,REDACTED PERSONAL DATA
Revenue,Childrens Services,Children's & Education Services,Children Looked After,5105668776,13.04.2018,In-house Fostering,Boarding Out Allowances,500.00,REDACTED PERSONAL DATA
Revenue,Childrens Services,Children's & Education Services,Children Looked After,5105669564,20.04.2018,In-house Fostering,Boarding Out Allowances,500.00,REDACTED PERSONAL DATA
Revenue,Childrens Services,Children's & Education Services,Children Looked After,5105670240,27.04.2018,In-house Fostering,Boarding Out Allowances,500.00,REDACTED PERSONAL DATA
Revenue,Place,Highways and Transport Services,Transport Planning Policy and Strategy,5105667764,11.04.2018,Sustainable Transport,Payment to Private Contractors,"2,315.00",A TO THERE SOLUTIONS LTD
Revenue,Place,Highways and Transport Services,Transport Planning Policy and Strategy,5105667766,11.04.2018,Sustainable Transport,Payment to Private Contractors,"4,383.10",A TO THERE SOLUTIONS LTD
Revenue,Place,Highways and Transport Services,Transport Planning Policy and Strategy,5105668603,11.04.2018,Sustainable Transport,Payment to Private Contractors,"2,953.40",A TO THERE SOLUTIONS LTD
Revenue,Place,Highways and Transport Services,Transport Planning Policy and Strategy,5105668607,11.04.2018,Sustainable Transport,Payment to Private Contractors,"4,047.90",A TO THERE SOLUTIONS LTD
Revenue,Place,Environmental & Regulatory Services,Flood Defence and Land Drainage,5105668368,11.04.2018,"Flood Grant, Planning",Consultants Fees,"5,000.00",A TO THERE SOLUTIONS LTD
Revenue,Childrens Services,Children's & Education Services,Safeguarding Children/Young Peoples Svs,5105668636,27.04.2018,Court Work & Consultancy Services,Professional Services,"1,885.00",AA GLOBAL LANGUAGE SERVICES LTD
Revenue,Childrens Services,Children's & Education Services,Safeguarding Children/Young Peoples Svs,5105668713,27.04.2018,Court Work & Consultancy Services,Professional Services,995.00,AA GLOBAL LANGUAGE SERVICES LTD
Revenue,Adult Services,Adult Social Care,Support - Memory /Cognition-older people (65+),5105669198,18.04.2018,Memory & Cognition Residential 65+,Charges from Independent Providers,"3,200.12",ABBERDALE LIMITED
Revenue,Adult Services,Adult Social Care,Central Codes (to be reallocated),5105669699,25.04.2018,Gouldings Resource Centre,Operational Equipment,"3,123.21",ABBOTTS FLOORING (IOW) LTD
Revenue,Adult Services,Adult Social Care,Central Codes (to be reallocated),5105669694,25.04.2018,Gouldings Resource Centre,Operational Equipment,"2,641.49",ABBOTTS FLOORING (IOW) LTD
Revenue,Adult Services,Adult Social Care,Central Codes (to be reallocated),5105669697,25.04.2018,Gouldings Resource Centre,Operational Equipment,"5,631.44",ABBOTTS FLOORING (IOW) LTD
Revenue,Adult Services,Adult Social Care,Central Codes (to be reallocated),5105669754,25.04.2018,Gouldings Resource Centre,Operational Equipment,"1,709.46",ABBOTTS FLOORING (IOW) LTD
Revenue,Place,Cultural and Related Services,Open Spaces,5105670360,27.04.2018,Estuaries Officer,Payment to Private Contractors,"3,958.40",ABP MARINE ENVIRONMENTAL RESEARCH LTD
Revenue,Adult Services,Adult Social Care,Support - Memory /Cognition-older people (65+),5105669165,18.04.2018,Memory & Cognition Residential 65+,Charges from Independent Providers,"1,992.48",ACACIA CARE HOME
Revenue,Adult Services,Adult Social Care,Physical Support - older people (65+),5105669165,18.04.2018,Physical Support Residential 65+,Charges from Independent Providers,"1,992.48",ACACIA CARE HOME
Revenue,Adult Services,Adult Social Care,Physical Support - adults (18-64),5105669165,18.04.2018,Physical Support Residential 18-64,Charges from Independent Providers,"1,902.60",ACACIA CARE HOME
Revenue,Adult Services,Adult Social Care,Physical Support - older people (65+),5105668732,13.04.2018,Physical Support Residential 65+,Charges from Independent Providers,951.30,ACACIA CARE HOME
Revenue,Adult Services,Adult Social Care,Physical Support - older people (65+),5105670105,25.04.2018,Physical Support Residential 65+,Charges from Independent Providers,951.30,ACACIA CARE HOME
Revenue,Adult Services,Adult Social Care,Physical Support - older people (65+),5105667970,06.04.2018,Physical Support Residential 65+,Charges from Independent Providers,"1,019.25",ACACIA CARE HOME
Revenue,Adult Services,Adult Social Care,Physical Support - older people (65+),5105669785,20.04.2018,Physical Support Residential 65+,Charges from Independent Providers,"1,254.90",ACACIA CARE HOME
Revenue,Adult Services,Adult Social Care,Physical Support - older people (65+),5105670105,25.04.2018,Physical Support Residential 65+,Charges from Independent Providers,"1,992.48",ACACIA CARE HOME
Revenue,Adult Services,Adult Social Care,Physical Support - older people (65+),5105670105,25.04.2018,Physical Support Residential 65+,Charges from Independent Providers,"1,254.90",ACACIA CARE HOME
Revenue,Resources,Central Services,Corporate and Democratic Core,5105669320,18.04.2018,Democratic Representation & Management,Interview & recruitment expenses,44.00,ACCESS PERSONAL CHECKING SERVICES LTD
Revenue,Resources,Central Services,Corporate and Democratic Core,5105669320,18.04.2018,Democratic Representation & Management,Interview & recruitment expenses,6.00,ACCESS PERSONAL CHECKING SERVICES LTD
Revenue,Adult Services,Adult Social Care,Learning Disab Supp (to be reallocated),5105669320,18.04.2018,31 Carter Avenue,Interview & recruitment expenses,44.00,ACCESS PERSONAL CHECKING SERVICES LTD
Revenue,Adult Services,Adult Social Care,Learning Disab Supp (to be reallocated),5105669320,18.04.2018,31 Carter Avenue,Interview & recruitment expenses,6.00,ACCESS PERSONAL CHECKING SERVICES LTD
Revenue,Adult Services,Adult Social Care,Learning Disab Supp (to be reallocated),5105669320,18.04.2018,Plean Dene,Interview & recruitment expenses,132.00,ACCESS PERSONAL CHECKING SERVICES LTD
Revenue,Adult Services,Adult Social Care,Learning Disab Supp (to be reallocated),5105669320,18.04.2018,Plean Dene,Interview & recruitment expenses,18.00,ACCESS PERSONAL CHECKING SERVICES LTD
Revenue,Adult Services,Adult Social Care,Learning Disab Supp (to be reallocated),5105669320,18.04.2018,Saxonbury,Interview & recruitment expenses,44.00,ACCESS PERSONAL CHECKING SERVICES LTD
Revenue,Adult Services,Adult Social Care,Learning Disab Supp (to be reallocated),5105669320,18.04.2018,Saxonbury,Interview & recruitment expenses,6.00,ACCESS PERSONAL CHECKING SERVICES LTD
Revenue,Adult Services,Adult Social Care,Social Care Activities,5105669320,18.04.2018,Mental Health Team,Interview & recruitment expenses,44.00,ACCESS PERSONAL CHECKING SERVICES LTD
Revenue,Adult Services,Adult Social Care,Social Care Activities,5105669320,18.04.2018,Mental Health Team,Interview & recruitment expenses,6.00,ACCESS PERSONAL CHECKING SERVICES LTD
Revenue,Adult Services,Adult Social Care,Assistive Equipment & Technology,5105669320,18.04.2018,Wightcare,Interview & recruitment expenses,44.00,ACCESS PERSONAL CHECKING SERVICES LTD
Revenue,Adult Services,Adult Social Care,Assistive Equipment & Technology,5105669320,18.04.2018,Wightcare,Interview & recruitment expenses,6.00,ACCESS PERSONAL CHECKING SERVICES LTD
Revenue,Adult Services,Adult Social Care,Central Codes (to be reallocated),5105669320,18.04.2018,Community Outreach,Interview & recruitment expenses,132.00,ACCESS PERSONAL CHECKING SERVICES LTD
Revenue,Adult Services,Adult Social Care,Central Codes (to be reallocated),5105669320,18.04.2018,Community Outreach,Interview & recruitment expenses,18.00,ACCESS PERSONAL CHECKING SERVICES LTD
Revenue,Place,Cultural and Related Services,Recreation and Sport,5105669320,18.04.2018,The Heights,Interview & recruitment expenses,44.00,ACCESS PERSONAL CHECKING SERVICES LTD
Revenue,Place,Cultural and Related Services,Recreation and Sport,5105669320,18.04.2018,The Heights,Interview & recruitment expenses,6.00,ACCESS PERSONAL CHECKING SERVICES LTD
Revenue,Place,Cultural and Related Services,Recreation and Sport,5105669320,18.04.2018,Medina Leisure Centre,Interview & recruitment expenses,25.00,ACCESS PERSONAL CHECKING SERVICES LTD
Revenue,Place,Cultural and Related Services,Recreation and Sport,5105669320,18.04.2018,Medina Leisure Centre,Interview & recruitment expenses,8.00,ACCESS PERSONAL CHECKING SERVICES LTD
Revenue,Childrens Services,Children's & Education Services,Special Schools & Alternative Provision,5105669320,18.04.2018,Island Learning Centre,Interview & recruitment expenses,132.00,ACCESS PERSONAL CHECKING SERVICES LTD
Revenue,Childrens Services,Children's & Education Services,Special Schools & Alternative Provision,5105669320,18.04.2018,Island Learning Centre,Interview & recruitment expenses,18.00,ACCESS PERSONAL CHECKING SERVICES LTD
Revenue,Childrens Services,Children's & Education Services,Other Education and Community Budget,5105669320,18.04.2018,Education Welfare Service,Interview & recruitment expenses,6.00,ACCESS PERSONAL CHECKING SERVICES LTD
Revenue,Childrens Services,Children's & Education Services,Youth Justice,5105669320,18.04.2018,Youth Offending Team,Interview & recruitment expenses,25.00,ACCESS PERSONAL CHECKING SERVICES LTD
Revenue,Childrens Services,Children's & Education Services,Youth Justice,5105669320,18.04.2018,Youth Offending Team,Interview & recruitment expenses,8.00,ACCESS PERSONAL CHECKING SERVICES LTD
Revenue,Childrens Services,Children's & Education Services,Safeguarding Children/Young Peoples Svs,5105669320,18.04.2018,Fostering Team,Interview & recruitment expenses,44.00,ACCESS PERSONAL CHECKING SERVICES LTD
Revenue,Childrens Services,Children's & Education Services,Safeguarding Children/Young Peoples Svs,5105669320,18.04.2018,Fostering Team,Interview & recruitment expenses,6.00,ACCESS PERSONAL CHECKING SERVICES LTD
Revenue,Childrens Services,Children's & Education Services,Children Looked After,5105669320,18.04.2018,Adoption Costs,Interview & recruitment expenses,176.00,ACCESS PERSONAL CHECKING SERVICES LTD
Revenue,Childrens Services,Children's & Education Services,Children Looked After,5105669320,18.04.2018,Adoption Costs,Interview & recruitment expenses,24.00,ACCESS PERSONAL CHECKING SERVICES LTD
Revenue,Childrens Services,Children's & Education Services,Children Looked After,5105669320,18.04.2018,In-house Fostering,Interview & recruitment expenses,396.00,ACCESS PERSONAL CHECKING SERVICES LTD
Revenue,Childrens Services,Children's & Education Services,Children Looked After,5105669320,18.04.2018,In-house Fostering,Interview & recruitment expenses,54.00,ACCESS PERSONAL CHECKING SERVICES LTD
Revenue,Childrens Services,Children's & Education Services,Safeguarding Children/Young Peoples Svs,5105669320,18.04.2018,Childrens Assess & Safeguarding Team 4,Interview & recruitment expenses,44.00,ACCESS PERSONAL CHECKING SERVICES LTD
Revenue,Childrens Services,Children's & Education Services,Safeguarding Children/Young Peoples Svs,5105669320,18.04.2018,Childrens Assess & Safeguarding Team 4,Interview & recruitment expenses,6.00,ACCESS PERSONAL CHECKING SERVICES LTD
Revenue,Place,Environmental & Regulatory Services,Regulatory Services,5105670113,25.04.2018,Licensing Services,Professional Services,132.00,ACCESS PERSONAL CHECKING SERVICES LTD
Revenue,Place,Environmental & Regulatory Services,Regulatory Services,5105670113,25.04.2018,Licensing Services,Professional Services,18.00,ACCESS PERSONAL CHECKING SERVICES LTD
Revenue,Adult Services,Adult Social Care,Learning Disab Supp (to be reallocated),5105669928,23.04.2018,Westhorpe Supported Living,Charges from Independent Providers,"5,099.92",TRACSCARE WELLCARE LIFESTYLES
Revenue,Adult Services,Adult Social Care,Learning Disab Supp (to be reallocated),5105669928,23.04.2018,Westhorpe Supported Living,Charges from Independent Providers,"3,642.80",TRACSCARE WELLCARE LIFESTYLES
Revenue,Adult Services,Adult Social Care,Learning Disab Supp (to be reallocated),5105669928,23.04.2018,Westhorpe Supported Living,Charges from Independent Providers,"1,821.40",TRACSCARE WELLCARE LIFESTYLES
Revenue,Adult Services,Adult Social Care,Learning Disab Supp (to be reallocated),5105669928,23.04.2018,"Greengates, Ryde",Charges from Independent Providers,"4,974.48",TRACSCARE WELLCARE LIFESTYLES
Revenue,Adult Services,Adult Social Care,Learning Disab Supp (to be reallocated),5105669928,23.04.2018,"Greengates, Ryde",Charges from Independent Providers,"2,190.72",TRACSCARE WELLCARE LIFESTYLES
Revenue,Adult Services,Adult Social Care,Learning Disab Supp (to be reallocated),5105669928,23.04.2018,"41 Newport Road, Cowes",Charges from Independent Providers,"4,974.48",TRACSCARE WELLCARE LIFESTYLES
Revenue,Adult Services,Adult Social Care,Learning Disab Supp (to be reallocated),5105669928,23.04.2018,"41 Newport Road, Cowes",Charges from Independent Providers,"2,190.72",TRACSCARE WELLCARE LIFESTYLES
Revenue,Adult Services,Adult Social Care,Learning Disab Supp (to be reallocated),5105669928,23.04.2018,"Heath Road, Lake",Charges from Independent Providers,"3,984.68",TRACSCARE WELLCARE LIFESTYLES
Revenue,Adult Services,Adult Social Care,Learning Disab Supp (to be reallocated),5105669928,23.04.2018,"Heath Road, Lake",Charges from Independent Providers,"2,190.72",TRACSCARE WELLCARE LIFESTYLES
Revenue,Adult Services,Adult Social Care,Learning Disab Supp (to be reallocated),5105669928,23.04.2018,"17 Newport Road, Ventnor",Charges from Independent Providers,"3,984.68",TRACSCARE WELLCARE LIFESTYLES
Revenue,Adult Services,Adult Social Care,Learning Disab Supp (to be reallocated),5105669928,23.04.2018,"17 Newport Road, Ventnor",Charges from Independent Providers,"2,190.72",TRACSCARE WELLCARE LIFESTYLES
Revenue,Adult Services,Adult Social Care,Learning Disab Supp (to be reallocated),5105669928,23.04.2018,"Winton Street, Ryde",Charges from Independent Providers,"4,974.48",TRACSCARE WELLCARE LIFESTYLES
Revenue,Adult Services,Adult Social Care,Learning Disab Supp (to be reallocated),5105669928,23.04.2018,"Winton Street, Ryde",Charges from Independent Providers,"2,190.72",TRACSCARE WELLCARE LIFESTYLES
Revenue,Adult Services,Adult Social Care,Assistive Equipment & Technology,5105668350,11.04.2018,Community Equipment Store,Operational Equipment,"3,534.00",ACCORA  LIMITED
Revenue,Adult Services,Adult Social Care,Assistive Equipment & Technology,5105668315,06.04.2018,Community Equipment Store,Operational Equipment,954.00,ACCORA  LIMITED
Capital,Place,Capital,Capital,5105668421,11.04.2018,Fire Capital Projects,"Plant, Equipment & Furniture - Capital","1,281.25",ADAMS MOREY LTD
Capital,Place,Capital,Capital,5105669002,13.04.2018,Fire Capital Projects,"Plant, Equipment & Furniture - Capital",-66.00,ADAMS MOREY LTD
Capital,Place,Capital,Capital,5105669003,13.04.2018,Fire Capital Projects,"Plant, Equipment & Furniture - Capital",66.00,ADAMS MOREY LTD
Revenue,Childrens Services,Children's & Education Services,Management & Support Services,5105667762,11.04.2018,Education Direct Payments,Charges from Independent Providers,330.00,A-DAY CONSULTANTS LTD
Revenue,Childrens Services,Children's & Education Services,Management & Support Services,5105667826,04.04.2018,Education Direct Payments,Charges from Independent Providers,330.00,A-DAY CONSULTANTS LTD
Revenue,Childrens Services,Children's & Education Services,Management & Support Services,5105667827,04.04.2018,Education Direct Payments,Charges from Independent Providers,110.00,A-DAY CONSULTANTS LTD
Revenue,Childrens Services,Children's & Education Services,Management & Support Services,5105667960,11.04.2018,Education Direct Payments,Charges from Independent Providers,330.00,A-DAY CONSULTANTS LTD
Revenue,Childrens Services,Children's & Education Services,Management & Support Services,5105667961,11.04.2018,Education Direct Payments,Charges from Independent Providers,227.40,A-DAY CONSULTANTS LTD
Revenue,Childrens Services,Children's & Education Services,Management & Support Services,5105668237,13.04.2018,Education Direct Payments,Charges from Independent Providers,110.00,A-DAY CONSULTANTS LTD
Revenue,Childrens Services,Children's & Education Services,Management & Support Services,5105668298,11.04.2018,Education Direct Payments,Charges from Independent Providers,295.80,A-DAY CONSULTANTS LTD
Revenue,Childrens Services,Children's & Education Services,Management & Support Services,5105668404,11.04.2018,Education Direct Payments,Charges from Independent Providers,227.40,A-DAY CONSULTANTS LTD
Revenue,Childrens Services,Children's & Education Services,Management & Support Services,5105668532,11.04.2018,Education Direct Payments,Charges from Independent Providers,220.00,A-DAY CONSULTANTS LTD
Revenue,Childrens Services,Children's & Education Services,Management & Support Services,5105668632,13.04.2018,Education Direct Payments,Charges from Independent Providers,591.60,A-DAY CONSULTANTS LTD
Revenue,Childrens Services,Children's & Education Services,Management & Support Services,5105668970,13.04.2018,Education Direct Payments,Charges from Independent Providers,220.00,A-DAY CONSULTANTS LTD
Revenue,Childrens Services,Children's & Education Services,Management & Support Services,5105668971,13.04.2018,Education Direct Payments,Charges from Independent Providers,330.00,A-DAY CONSULTANTS LTD
Revenue,Childrens Services,Children's & Education Services,Special Schools & Alternative Provision,5105669819,20.04.2018,Island Learning Centre,Agency staff,"3,381.20",A-DAY CONSULTANTS LTD
Revenue,Childrens Services,Children's & Education Services,Special Schools & Alternative Provision,5105668638,11.04.2018,Island Learning Centre,Agency staff,"3,273.40",A-DAY CONSULTANTS LTD
Revenue,Adult Services,Adult Social Care,Commissioning & Service Delivery,5105669724,20.04.2018,Shared Lives Management,Printing Costs,156.00,ADGIFTDISCOUNTS LTD
Revenue,Place,Cultural and Related Services,Recreation and Sport,5105669415,20.04.2018,Commercial Sales Team,Advertising & Publicity,250.99,ADGIFTDISCOUNTS LTD
Revenue,Place,Cultural and Related Services,Library Service,5105667965,11.04.2018,Newport Library,Security of Buildings,"3,240.52",ADT FIRE AND SECURITY PLC
Revenue,Place,Highways and Transport Services,"Airports, Harbours & Toll Facilities",5105669232,18.04.2018,Ferry Operation,Security of Buildings,516.38,ADT FIRE AND SECURITY PLC
Revenue,Adult Services,Adult Social Care,Commissioning & Service Delivery,5105668398,18.04.2018,Learning Disability Homes Management & Admin,Publications,64.94,AGORA BUSINESS PUBLICATIONS LLP
Revenue,Regeneration,Central Services,Support Services,5105668510,11.04.2018,"Enterprise House, Newport",Property Services - Day to day Maintenance,141.00,AIRTEK SERVICES IOW LTD
Revenue,Regeneration,Central Services,Support Services,5105670157,27.04.2018,"Enterprise House, Newport",Property Services - Day to day Maintenance,"2,350.00",AIRTEK SERVICES IOW LTD
Revenue,Adult Services,Adult Social Care,Learning Disability Suppt-adults (18-64),5105669194,18.04.2018,Learning Disability Residential 18-64,Charges from Independent Providers,"5,950.00",AITCH CARE HOMES (LONDON) LTD
Revenue,Childrens Services,Children's & Education Services,Other Education and Community Budget,5105667828,04.04.2018,Home to School SEN Transport (LA),Taxis - Contract Hire,464.00,AKAR TAXIS
Revenue,Childrens Services,Children's & Education Services,Other Education and Community Budget,5105669266,20.04.2018,Home to School SEN Transport (LA),Taxis - Contract Hire,887.00,AKAR TAXIS
Revenue,Place,Environmental & Regulatory Services,"Cemetery, Cremation & Mortuary Services",5105668179,20.04.2018,Crematorium,Operational Equipment,18.35,ALBANY FARM & G MACHINERY LTD
Revenue,Childrens Services,Children's & Education Services,Other Education and Community Budget,5105668305,23.04.2018,Home to College Post 16 Transport,Taxis - Contract Hire,840.00,ALPHA (IOW) LTD
Revenue,Childrens Services,Children's & Education Services,Other Education and Community Budget,5105668305,23.04.2018,Home to College Post 16 Transport,Taxis - Contract Hire,884.00,ALPHA (IOW) LTD
Revenue,Childrens Services,Children's & Education Services,Other Education and Community Budget,5105668305,23.04.2018,Home to College Post 16 Transport,Taxis - Contract Hire,480.00,ALPHA (IOW) LTD
Revenue,Childrens Services,Children's & Education Services,Other Education and Community Budget,5105668305,23.04.2018,Home to College Post 16 Transport,Taxis - Contract Hire,800.00,ALPHA (IOW) LTD
Revenue,Childrens Services,Children's & Education Services,Other Education and Community Budget,5105668305,23.04.2018,Home to College Post 16 Transport,Taxis - Contract Hire,442.00,ALPHA (IOW) LTD
Revenue,Childrens Services,Children's & Education Services,Other Education and Community Budget,5105667847,04.04.2018,Home to School Mainstream Transport,Taxis - Contract Hire,70.00,ALPHA (IOW) LTD
Revenue,Childrens Services,Children's & Education Services,Other Education and Community Budget,5105668351,30.04.2018,Home to School Mainstream Transport,Taxis - Contract Hire,70.00,ALPHA (IOW) LTD
Revenue,Childrens Services,Children's & Education Services,Other Education and Community Budget,5105670527,30.04.2018,Home to School Mainstream Transport,Taxis - Contract Hire,-70.00,ALPHA (IOW) LTD
Revenue,Childrens Services,Children's & Education Services,Other Education and Community Budget,5105667847,04.04.2018,Home to School SEN Transport (LA),Taxis - Contract Hire,150.00,ALPHA (IOW) LTD
Revenue,Childrens Services,Children's & Education Services,Other Education and Community Budget,5105668351,30.04.2018,Home to School SEN Transport (LA),Taxis - Contract Hire,150.00,ALPHA (IOW) LTD
Revenue,Childrens Services,Children's & Education Services,Other Education and Community Budget,5105670527,30.04.2018,Home to School SEN Transport (LA),Taxis - Contract Hire,-150.00,ALPHA (IOW) LTD
Revenue,Childrens Services,Children's & Education Services,Other Education and Community Budget,5105667847,04.04.2018,Home to School SEN Transport (LA),Taxis - Contract Hire,250.00,ALPHA (IOW) LTD
Revenue,Childrens Services,Children's & Education Services,Other Education and Community Budget,5105668351,30.04.2018,Home to School SEN Transport (LA),Taxis - Contract Hire,250.00,ALPHA (IOW) LTD
Revenue,Childrens Services,Children's & Education Services,Other Education and Community Budget,5105670527,30.04.2018,Home to School SEN Transport (LA),Taxis - Contract Hire,-250.00,ALPHA (IOW) LTD
Revenue,Childrens Services,Children's & Education Services,Other Education and Community Budget,5105667847,04.04.2018,Home to School Mainstream Transport,Taxis - Contract Hire,250.00,ALPHA (IOW) LTD
Revenue,Childrens Services,Children's & Education Services,Other Education and Community Budget,5105668351,30.04.2018,Home to School Mainstream Transport,Taxis - Contract Hire,250.00,ALPHA (IOW) LTD
Revenue,Childrens Services,Children's & Education Services,Other Education and Community Budget,5105670527,30.04.2018,Home to School Mainstream Transport,Taxis - Contract Hire,-250.00,ALPHA (IOW) LTD
Revenue,Childrens Services,Children's & Education Services,Other Education and Community Budget,5105667847,04.04.2018,Home to School Mainstream Transport,Taxis - Contract Hire,175.00,ALPHA (IOW) LTD
Revenue,Childrens Services,Children's & Education Services,Other Education and Community Budget,5105668351,30.04.2018,Home to School Mainstream Transport,Taxis - Contract Hire,175.00,ALPHA (IOW) LTD
Revenue,Childrens Services,Children's & Education Services,Other Education and Community Budget,5105670527,30.04.2018,Home to School Mainstream Transport,Taxis - Contract Hire,-175.00,ALPHA (IOW) LTD
Revenue,Childrens Services,Children's & Education Services,Other Education and Community Budget,5105667847,04.04.2018,Home to School SEN Transport (LA),Taxis - Contract Hire,200.00,ALPHA (IOW) LTD
Revenue,Childrens Services,Children's & Education Services,Other Education and Community Budget,5105668351,30.04.2018,Home to School SEN Transport (LA),Taxis - Contract Hire,200.00,ALPHA (IOW) LTD
Revenue,Childrens Services,Children's & Education Services,Other Education and Community Budget,5105670527,30.04.2018,Home to School SEN Transport (LA),Taxis - Contract Hire,-200.00,ALPHA (IOW) LTD
Revenue,Childrens Services,Children's & Education Services,Other Education and Community Budget,5105667847,04.04.2018,Home to School SEN Transport (LA),Taxis - Contract Hire,250.00,ALPHA (IOW) LTD
Revenue,Childrens Services,Children's & Education Services,Other Education and Community Budget,5105668351,30.04.2018,Home to School SEN Transport (LA),Taxis - Contract Hire,250.00,ALPHA (IOW) LTD
Revenue,Childrens Services,Children's & Education Services,Other Education and Community Budget,5105670527,30.04.2018,Home to School SEN Transport (LA),Taxis - Contract Hire,-250.00,ALPHA (IOW) LTD
Revenue,Childrens Services,Children's & Education Services,Other Education and Community Budget,5105667847,04.04.2018,Home to School Mainstream Transport,Taxis - Contract Hire,300.00,ALPHA (IOW) LTD
Revenue,Childrens Services,Children's & Education Services,Other Education and Community Budget,5105668351,30.04.2018,Home to School Mainstream Transport,Taxis - Contract Hire,300.00,ALPHA (IOW) LTD
Revenue,Childrens Services,Children's & Education Services,Other Education and Community Budget,5105670527,30.04.2018,Home to School Mainstream Transport,Taxis - Contract Hire,-300.00,ALPHA (IOW) LTD
Revenue,Childrens Services,Children's & Education Services,Other Education and Community Budget,5105667847,04.04.2018,Home to School SEN Transport (LA),Taxis - Contract Hire,450.00,ALPHA (IOW) LTD
Revenue,Childrens Services,Children's & Education Services,Other Education and Community Budget,5105668351,30.04.2018,Home to School SEN Transport (LA),Taxis - Contract Hire,450.00,ALPHA (IOW) LTD
Revenue,Childrens Services,Children's & Education Services,Other Education and Community Budget,5105670527,30.04.2018,Home to School SEN Transport (LA),Taxis - Contract Hire,-450.00,ALPHA (IOW) LTD
Revenue,Childrens Services,Children's & Education Services,Other Education and Community Budget,5105667847,04.04.2018,Home to School SEN Transport (LA),Taxis - Contract Hire,300.00,ALPHA (IOW) LTD
Revenue,Childrens Services,Children's & Education Services,Other Education and Community Budget,5105668351,30.04.2018,Home to School SEN Transport (LA),Taxis - Contract Hire,300.00,ALPHA (IOW) LTD
Revenue,Childrens Services,Children's & Education Services,Other Education and Community Budget,5105670527,30.04.2018,Home to School SEN Transport (LA),Taxis - Contract Hire,-300.00,ALPHA (IOW) LTD
Revenue,Childrens Services,Children's & Education Services,Other Education and Community Budget,5105667847,04.04.2018,Home to School SEN Transport (LA),Taxis - Contract Hire,325.00,ALPHA (IOW) LTD
Revenue,Childrens Services,Children's & Education Services,Other Education and Community Budget,5105668351,30.04.2018,Home to School SEN Transport (LA),Taxis - Contract Hire,325.00,ALPHA (IOW) LTD
Revenue,Childrens Services,Children's & Education Services,Other Education and Community Budget,5105670527,30.04.2018,Home to School SEN Transport (LA),Taxis - Contract Hire,-325.00,ALPHA (IOW) LTD
Revenue,Childrens Services,Children's & Education Services,Other Education and Community Budget,5105667847,04.04.2018,Home to School SEN Transport (LA),Taxis - Contract Hire,300.00,ALPHA (IOW) LTD
Revenue,Childrens Services,Children's & Education Services,Other Education and Community Budget,5105668351,30.04.2018,Home to School SEN Transport (LA),Taxis - Contract Hire,300.00,ALPHA (IOW) LTD
Revenue,Childrens Services,Children's & Education Services,Other Education and Community Budget,5105670527,30.04.2018,Home to School SEN Transport (LA),Taxis - Contract Hire,-300.00,ALPHA (IOW) LTD
Revenue,Childrens Services,Children's & Education Services,Other Education and Community Budget,5105667847,04.04.2018,Home to School SEN Transport (LA),Taxis - Contract Hire,350.00,ALPHA (IOW) LTD
Revenue,Childrens Services,Children's & Education Services,Other Education and Community Budget,5105668351,30.04.2018,Home to School SEN Transport (LA),Taxis - Contract Hire,350.00,ALPHA (IOW) LTD
Revenue,Childrens Services,Children's & Education Services,Other Education and Community Budget,5105670527,30.04.2018,Home to School SEN Transport (LA),Taxis - Contract Hire,-350.00,ALPHA (IOW) LTD
Revenue,Childrens Services,Children's & Education Services,Other Education and Community Budget,5105667847,04.04.2018,Home to School SEN Transport (LA),Taxis - Contract Hire,100.00,ALPHA (IOW) LTD
Revenue,Childrens Services,Children's & Education Services,Other Education and Community Budget,5105668351,30.04.2018,Home to School SEN Transport (LA),Taxis - Contract Hire,100.00,ALPHA (IOW) LTD
Revenue,Childrens Services,Children's & Education Services,Other Education and Community Budget,5105670527,30.04.2018,Home to School SEN Transport (LA),Taxis - Contract Hire,-100.00,ALPHA (IOW) LTD
Revenue,Childrens Services,Children's & Education Services,Other Education and Community Budget,5105667847,04.04.2018,Home to School SEN Transport (LA),Taxis - Contract Hire,280.00,ALPHA (IOW) LTD
Revenue,Childrens Services,Children's & Education Services,Other Education and Community Budget,5105668351,30.04.2018,Home to School SEN Transport (LA),Taxis - Contract Hire,280.00,ALPHA (IOW) LTD
Revenue,Childrens Services,Children's & Education Services,Other Education and Community Budget,5105670527,30.04.2018,Home to School SEN Transport (LA),Taxis - Contract Hire,-280.00,ALPHA (IOW) LTD
Revenue,Childrens Services,Children's & Education Services,Other Education and Community Budget,5105667847,04.04.2018,Home to School SEN Transport (LA),Taxis - Contract Hire,450.00,ALPHA (IOW) LTD
Revenue,Childrens Services,Children's & Education Services,Other Education and Community Budget,5105668351,30.04.2018,Home to School SEN Transport (LA),Taxis - Contract Hire,450.00,ALPHA (IOW) LTD
Revenue,Childrens Services,Children's & Education Services,Other Education and Community Budget,5105670527,30.04.2018,Home to School SEN Transport (LA),Taxis - Contract Hire,-450.00,ALPHA (IOW) LTD
Revenue,Childrens Services,Children's & Education Services,Other Education and Community Budget,5105667847,04.04.2018,Home to School Mainstream Transport,Taxis - Contract Hire,350.00,ALPHA (IOW) LTD
Revenue,Childrens Services,Children's & Education Services,Other Education and Community Budget,5105668351,30.04.2018,Home to School Mainstream Transport,Taxis - Contract Hire,350.00,ALPHA (IOW) LTD
Revenue,Childrens Services,Children's & Education Services,Other Education and Community Budget,5105670527,30.04.2018,Home to School Mainstream Transport,Taxis - Contract Hire,-350.00,ALPHA (IOW) LTD
Revenue,Childrens Services,Children's & Education Services,Other Education and Community Budget,5105667847,04.04.2018,Home to School SEN Transport (LA),Taxis - Contract Hire,400.00,ALPHA (IOW) LTD
Revenue,Childrens Services,Children's & Education Services,Other Education and Community Budget,5105668351,30.04.2018,Home to School SEN Transport (LA),Taxis - Contract Hire,400.00,ALPHA (IOW) LTD
Revenue,Childrens Services,Children's & Education Services,Other Education and Community Budget,5105670527,30.04.2018,Home to School SEN Transport (LA),Taxis - Contract Hire,-400.00,ALPHA (IOW) LTD
Revenue,Childrens Services,Children's & Education Services,Other Education and Community Budget,5105667847,04.04.2018,Home to School SEN Transport (LA),Taxis - Contract Hire,350.00,ALPHA (IOW) LTD
Revenue,Childrens Services,Children's & Education Services,Other Education and Community Budget,5105668351,30.04.2018,Home to School SEN Transport (LA),Taxis - Contract Hire,350.00,ALPHA (IOW) LTD
Revenue,Childrens Services,Children's & Education Services,Other Education and Community Budget,5105670527,30.04.2018,Home to School SEN Transport (LA),Taxis - Contract Hire,-350.00,ALPHA (IOW) LTD
Revenue,Childrens Services,Children's & Education Services,Other Education and Community Budget,5105667847,04.04.2018,Home to School SEN Transport (LA),Taxis - Contract Hire,395.00,ALPHA (IOW) LTD
Revenue,Childrens Services,Children's & Education Services,Other Education and Community Budget,5105668351,30.04.2018,Home to School SEN Transport (LA),Taxis - Contract Hire,395.00,ALPHA (IOW) LTD
Revenue,Childrens Services,Children's & Education Services,Other Education and Community Budget,5105670527,30.04.2018,Home to School SEN Transport (LA),Taxis - Contract Hire,-395.00,ALPHA (IOW) LTD
Revenue,Childrens Services,Children's & Education Services,Other Education and Community Budget,5105667847,04.04.2018,Home to School SEN Transport (LA),Taxis - Contract Hire,200.00,ALPHA (IOW) LTD
Revenue,Childrens Services,Children's & Education Services,Other Education and Community Budget,5105668351,30.04.2018,Home to School SEN Transport (LA),Taxis - Contract Hire,200.00,ALPHA (IOW) LTD
Revenue,Childrens Services,Children's & Education Services,Other Education and Community Budget,5105670527,30.04.2018,Home to School SEN Transport (LA),Taxis - Contract Hire,-200.00,ALPHA (IOW) LTD
Revenue,Childrens Services,Children's & Education Services,Other Education and Community Budget,5105667847,04.04.2018,Home to School Mainstream Transport,Taxis - Contract Hire,600.00,ALPHA (IOW) LTD
Revenue,Childrens Services,Children's & Education Services,Other Education and Community Budget,5105668351,30.04.2018,Home to School Mainstream Transport,Taxis - Contract Hire,600.00,ALPHA (IOW) LTD
Revenue,Childrens Services,Children's & Education Services,Other Education and Community Budget,5105670527,30.04.2018,Home to School Mainstream Transport,Taxis - Contract Hire,-600.00,ALPHA (IOW) LTD
Revenue,Childrens Services,Children's & Education Services,Other Education and Community Budget,5105667847,04.04.2018,Home to School SEN Transport (LA),Taxis - Contract Hire,600.00,ALPHA (IOW) LTD
Revenue,Childrens Services,Children's & Education Services,Other Education and Community Budget,5105668351,30.04.2018,Home to School SEN Transport (LA),Taxis - Contract Hire,600.00,ALPHA (IOW) LTD
Revenue,Childrens Services,Children's & Education Services,Other Education and Community Budget,5105670527,30.04.2018,Home to School SEN Transport (LA),Taxis - Contract Hire,-600.00,ALPHA (IOW) LTD
Revenue,Childrens Services,Children's & Education Services,Other Education and Community Budget,5105668305,23.04.2018,Home to College Post 16 Transport,Taxis - Contract Hire,260.00,ALPHA (IOW) LTD
Revenue,Childrens Services,Children's & Education Services,Other Education and Community Budget,5105667847,04.04.2018,Home to School SEN Transport (LA),Taxis - Contract Hire,210.00,ALPHA (IOW) LTD
Revenue,Childrens Services,Children's & Education Services,Other Education and Community Budget,5105668351,30.04.2018,Home to School SEN Transport (LA),Taxis - Contract Hire,210.00,ALPHA (IOW) LTD
Revenue,Childrens Services,Children's & Education Services,Other Education and Community Budget,5105667847,04.04.2018,Home to School SEN Transport (LA),Taxis - Contract Hire,200.00,ALPHA (IOW) LTD
Revenue,Childrens Services,Children's & Education Services,Other Education and Community Budget,5105668351,30.04.2018,Home to School SEN Transport (LA),Taxis - Contract Hire,200.00,ALPHA (IOW) LTD
Revenue,Childrens Services,Children's & Education Services,Children Looked After,5105669701,23.04.2018,Support for Looked After Children,Transport of Clients,950.00,ALPHA (IOW) LTD
Revenue,Childrens Services,Children's & Education Services,Children Looked After,5105669712,27.04.2018,Support for Looked After Children,Transport of Clients,975.20,ALPHA (IOW) LTD
Revenue,Adult Services,Adult Social Care,Learning Disability Suppt-adults (18-64),5105669141,18.04.2018,Learning Disability Residential 18-64,Charges from Independent Providers,"3,836.84",ALPHAGRANGE LTD
Capital,Place,Capital,Capital,5105668451,11.04.2018,Waste Capital Programme,"Plant, Equipment & Furniture - Capital","31,403.50",AMEY (IOW) SPV LIMITED
Revenue,Place,Environmental & Regulatory Services,Waste Collection,5105668451,11.04.2018,Waste Contract Income,Payment to Private Contractors,"16,575.80",AMEY (IOW) SPV LIMITED
Capital,Place,Capital,Capital,5105670177,25.04.2018,Waste Capital Programme,Payment to Contractors - Capital,"2,231,444.34",AMEY (IOW) SPV LIMITED
Revenue,Place,Cultural and Related Services,Library Service,5105668131,06.04.2018,Public Libraries Central,Stock Purchases,"-1,954.00",AMEY LG LTD
Revenue,Place,Cultural and Related Services,Library Service,5105668698,11.04.2018,Public Libraries Central,Stock Purchases,"-1,995.00",AMEY LG LTD
Revenue,Adult Services,Adult Social Care,Physical Support - older people (65+),5105669143,18.04.2018,Physical Support Residential 65+,Charges from Independent Providers,"1,902.60",ANCONA CARE HOME
Revenue,Adult Services,Adult Social Care,Physical Support - older people (65+),5105669143,18.04.2018,Physical Support Residential 65+,Charges from Independent Providers,"1,992.48",ANCONA CARE HOME
Revenue,Adult Services,Adult Social Care,Physical Support - older people (65+),5105669143,18.04.2018,Physical Support Residential 65+,Charges from Independent Providers,"1,992.48",ANCONA CARE HOME
Revenue,Adult Services,Adult Social Care,Physical Support - older people (65+),5105669143,18.04.2018,Physical Support Residential 65+,Charges from Independent Providers,"1,902.60",ANCONA CARE HOME
Revenue,Childrens Services,Children's & Education Services,Children Looked After,5105668408,13.04.2018,Purchased Residential,Charges from Independent Providers,"8,441.44",ANDERIDA ADOLESCENT CARE LTD
Revenue,Childrens Services,Children's & Education Services,Children Looked After,5105668410,13.04.2018,Purchased Residential,Charges from Independent Providers,"18,181.56",ANDERIDA ADOLESCENT CARE LTD
Revenue,Place,Fire & Rescue Services,Fire fighting and Rescue Operations,5105669826,20.04.2018,Fire Technical Support,Vehicle Maintenance Costs,"6,818.16",ANGLOCO LTD
Revenue,Chief Executive,Central Services,Support Services,5105667705,11.04.2018,Print Unit,Printing Costs,155.40,ANTALIS MCNAUGHTON
Revenue,Chief Executive,Central Services,Support Services,5105667705,11.04.2018,Print Unit,Printing Costs,32.90,ANTALIS MCNAUGHTON
Revenue,Chief Executive,Central Services,Support Services,5105668281,23.04.2018,Print Unit,Printing Costs,90.63,ANTALIS MCNAUGHTON
Revenue,Chief Executive,Central Services,Support Services,5105668281,23.04.2018,Print Unit,Printing Costs,60.00,ANTALIS MCNAUGHTON
Revenue,Chief Executive,Central Services,Support Services,5105668281,23.04.2018,Print Unit,Printing Costs,38.34,ANTALIS MCNAUGHTON
Revenue,Chief Executive,Central Services,Support Services,5105669337,18.04.2018,Print Unit,Printing Costs,51.80,ANTALIS MCNAUGHTON
Revenue,Chief Executive,Central Services,Support Services,5105669338,18.04.2018,Print Unit,Printing Costs,70.60,ANTALIS MCNAUGHTON
Revenue,Place,Environmental & Regulatory Services,Regulatory Services,5105668265,23.04.2018,Trading Standards,Operational Equipment,97.48,ARCO LTD
Revenue,Place,Environmental & Regulatory Services,Regulatory Services,5105668265,23.04.2018,Trading Standards,Operational Equipment,50.98,ARCO LTD
Revenue,Place,Housing Services,Private Sector Housing Renewal,5105668539,25.04.2018,Renewal & Enforcement,Clothing & Laundry,101.25,ARCO LTD
Revenue,Place,Housing Services,Private Sector Housing Renewal,5105668539,25.04.2018,Renewal & Enforcement,Clothing & Laundry,202.50,ARCO LTD
Revenue,Place,Housing Services,Private Sector Housing Renewal,5105668539,25.04.2018,Renewal & Enforcement,Clothing & Laundry,94.97,ARCO LTD
Revenue,Place,Housing Services,Private Sector Housing Renewal,5105668539,25.04.2018,Renewal & Enforcement,Clothing & Laundry,189.94,ARCO LTD
Revenue,Place,Housing Services,Private Sector Housing Renewal,5105668661,13.04.2018,Renewal & Enforcement,Clothing & Laundry,71.24,ARCO LTD
Revenue,Place,Housing Services,Private Sector Housing Renewal,5105668661,13.04.2018,Renewal & Enforcement,Clothing & Laundry,71.24,ARCO LTD
Revenue,Place,Housing Services,Private Sector Housing Renewal,5105668661,13.04.2018,Renewal & Enforcement,Clothing & Laundry,53.87,ARCO LTD
Revenue,Place,Housing Services,Private Sector Housing Renewal,5105668542,25.04.2018,Renewal & Enforcement,Clothing & Laundry,69.46,ARCO LTD
Revenue,Place,Housing Services,Private Sector Housing Renewal,5105668542,25.04.2018,Renewal & Enforcement,Clothing & Laundry,14.68,ARCO LTD
Revenue,Place,Housing Services,Private Sector Housing Renewal,5105668583,11.04.2018,Renewal & Enforcement,Clothing & Laundry,56.23,ARCO LTD
Revenue,Place,Housing Services,Private Sector Housing Renewal,5105668542,25.04.2018,Renewal & Enforcement,Office Equipment,31.09,ARCO LTD
Revenue,Place,Housing Services,Private Sector Housing Renewal,5105668542,25.04.2018,Renewal & Enforcement,Office Equipment,56.99,ARCO LTD
Revenue,Place,Housing Services,Private Sector Housing Renewal,5105668542,25.04.2018,Renewal & Enforcement,Office Equipment,97.42,ARCO LTD
Revenue,Place,Housing Services,Private Sector Housing Renewal,5105668579,25.04.2018,Renewal & Enforcement,Office Equipment,198.75,ARCO LTD
Revenue,Place,Housing Services,Private Sector Housing Renewal,5105668579,25.04.2018,Renewal & Enforcement,Office Equipment,224.25,ARCO LTD
Revenue,Place,Housing Services,Private Sector Housing Renewal,5105668542,25.04.2018,Renewal & Enforcement,Clothing & Laundry,37.42,ARCO LTD
Revenue,Place,Housing Services,Private Sector Housing Renewal,5105668540,11.04.2018,Renewal & Enforcement,Clothing & Laundry,34.49,ARCO LTD
Revenue,Place,Housing Services,Private Sector Housing Renewal,5105669205,18.04.2018,Renewal & Enforcement,Clothing & Laundry,101.25,ARCO LTD
Revenue,Place,Environmental & Regulatory Services,Service Management and Support Services,5105669744,20.04.2018,Environment officers,Clothing & Laundry,19.71,ARCO LTD
Revenue,Childrens Services,Children's & Education Services,Special Schools & Alternative Provision,5105670570,30.04.2018,Island Learning Centre,Client Expenses,31.32,ARCO LTD
Revenue,Childrens Services,Children's & Education Services,Special Schools & Alternative Provision,5105670570,30.04.2018,Island Learning Centre,Client Expenses,31.32,ARCO LTD
Revenue,Childrens Services,Children's & Education Services,Special Schools & Alternative Provision,5105670570,30.04.2018,Island Learning Centre,Client Expenses,31.32,ARCO LTD
Revenue,Childrens Services,Children's & Education Services,Special Schools & Alternative Provision,5105670570,30.04.2018,Island Learning Centre,Client Expenses,31.32,ARCO LTD
Revenue,Childrens Services,Children's & Education Services,Special Schools & Alternative Provision,5105670570,30.04.2018,Island Learning Centre,Client Expenses,31.32,ARCO LTD
Revenue,Adult Services,Adult Social Care,Learning Disab Supp (to be reallocated),5105667843,27.04.2018,The Laurels,Minor Works,87.00,ARJO UK LTD
Revenue,Adult Services,Adult Social Care,Learning Disab Supp (to be reallocated),5105668723,27.04.2018,The Laurels,Minor Works,190.00,ARJO UK LTD
Revenue,Adult Services,Adult Social Care,Learning Disab Supp (to be reallocated),5105670427,30.04.2018,The Laurels,Minor Works,42.00,ARJO UK LTD
Revenue,Adult Services,Adult Social Care,Assistive Equipment & Technology,5105667846,20.04.2018,Community Equipment Store,Operational Equipment,499.50,ARJO UK LTD
Revenue,Adult Services,Adult Social Care,Assistive Equipment & Technology,5105667846,20.04.2018,Community Equipment Store,Operational Equipment,499.50,ARJO UK LTD
Revenue,Adult Services,Adult Social Care,Assistive Equipment & Technology,5105667846,20.04.2018,Community Equipment Store,General Materials,15.00,ARJO UK LTD
Revenue,Place,Cultural and Related Services,Library Service,5105669089,27.04.2018,Public Libraries Central,Purchase of Books,196.88,ASKEWS LIBRARY SERVICES LTD
Revenue,Place,Cultural and Related Services,Library Service,5105669089,27.04.2018,Public Libraries Central,Purchase of Books,568.26,ASKEWS LIBRARY SERVICES LTD
Revenue,Place,Cultural and Related Services,Library Service,5105669089,27.04.2018,Schools Library Service,Publications,"1,300.00",ASKEWS LIBRARY SERVICES LTD
Revenue,Place,Cultural and Related Services,Library Service,5105669379,18.04.2018,Public Libraries Central,Music and Video,95.37,ASKEWS LIBRARY SERVICES LTD
Revenue,Place,Cultural and Related Services,Library Service,5105669067,27.04.2018,Schools Library Service,Purchase of Books,906.22,ASKEWS LIBRARY SERVICES LTD
Revenue,Place,Cultural and Related Services,Library Service,5105669064,27.04.2018,Schools Library Service,Purchase of Books,553.43,ASKEWS LIBRARY SERVICES LTD
Revenue,Place,Cultural and Related Services,Library Service,5105669065,27.04.2018,Schools Library Service,Purchase of Books,234.32,ASKEWS LIBRARY SERVICES LTD
Revenue,Place,Cultural and Related Services,Library Service,5105669069,27.04.2018,Schools Library Service,Purchase of Books,649.99,ASKEWS LIBRARY SERVICES LTD
Revenue,Childrens Services,Children's & Education Services,Special Schools & Alternative Provision,5105667514,04.04.2018,Island Learning Centre,Schools Examination Fees,33.55,ASSESSMENT & QUALIFICATION ALLIANCE
Revenue,Childrens Services,Children's & Education Services,Special Schools & Alternative Provision,5105667514,04.04.2018,Island Learning Centre,Schools Examination Fees,50.33,ASSESSMENT & QUALIFICATION ALLIANCE
Revenue,Childrens Services,Children's & Education Services,Special Schools & Alternative Provision,5105667515,04.04.2018,Island Learning Centre,Schools Examination Fees,113.00,ASSESSMENT & QUALIFICATION ALLIANCE
Revenue,Childrens Services,Children's & Education Services,Special Schools & Alternative Provision,5105667515,04.04.2018,Island Learning Centre,Schools Examination Fees,201.30,ASSESSMENT & QUALIFICATION ALLIANCE
Revenue,Childrens Services,Children's & Education Services,Special Schools & Alternative Provision,5105667515,04.04.2018,Island Learning Centre,Schools Examination Fees,138.20,ASSESSMENT & QUALIFICATION ALLIANCE
Revenue,Childrens Services,Children's & Education Services,Special Schools & Alternative Provision,5105667515,04.04.2018,Island Learning Centre,Schools Examination Fees,621.90,ASSESSMENT & QUALIFICATION ALLIANCE
Revenue,Childrens Services,Children's & Education Services,Special Schools & Alternative Provision,5105667515,04.04.2018,Island Learning Centre,Schools Examination Fees,440.40,ASSESSMENT & QUALIFICATION ALLIANCE
Revenue,Childrens Services,Children's & Education Services,Special Schools & Alternative Provision,5105668292,06.04.2018,Island Learning Centre,Schools Examination Fees,67.10,ASSESSMENT & QUALIFICATION ALLIANCE
Revenue,Place,Cultural and Related Services,Culture and Heritage,5105670512,30.04.2018,Dinosaur Isle Museum (Sandown Geology),Stock Purchases,577.40,ATELIER HOME & GIFT LTD
Revenue,Place,Cultural and Related Services,Culture and Heritage,5105670512,30.04.2018,Dinosaur Isle Museum (Sandown Geology),Stock Purchases,99.60,ATELIER HOME & GIFT LTD
Revenue,Adult Services,Adult Social Care,Physical Support - older people (65+),5105669123,18.04.2018,Physical Support Residential 65+,Charges from Independent Providers,"1,992.48",AUTUMN HOUSE CARE LTD
Revenue,Adult Services,Adult Social Care,Support - Memory /Cognition-older people (65+),5105669123,18.04.2018,Memory & Cognition Residential 65+,Charges from Independent Providers,"2,342.48",AUTUMN HOUSE CARE LTD
Revenue,Adult Services,Adult Social Care,Support - Memory /Cognition-older people (65+),5105669123,18.04.2018,Memory & Cognition Residential 65+,Charges from Independent Providers,"2,342.48",AUTUMN HOUSE CARE LTD
Revenue,Adult Services,Adult Social Care,Support - Memory /Cognition-older people (65+),5105669123,18.04.2018,Memory & Cognition Residential 65+,Charges from Independent Providers,"2,342.48",AUTUMN HOUSE CARE LTD
Revenue,Adult Services,Adult Social Care,Support - Memory /Cognition-older people (65+),5105669123,18.04.2018,Memory & Cognition Residential 65+,Charges from Independent Providers,"2,342.48",AUTUMN HOUSE CARE LTD
Revenue,Adult Services,Adult Social Care,Support - Memory /Cognition-older people (65+),5105669123,18.04.2018,Memory & Cognition Residential 65+,Charges from Independent Providers,"2,342.48",AUTUMN HOUSE CARE LTD
Revenue,Adult Services,Adult Social Care,Support - Memory /Cognition-older people (65+),5105669123,18.04.2018,Memory & Cognition Residential 65+,Charges from Independent Providers,"2,342.48",AUTUMN HOUSE CARE LTD
Revenue,Adult Services,Adult Social Care,Support - Memory /Cognition-older people (65+),5105669123,18.04.2018,Memory & Cognition Residential 65+,Charges from Independent Providers,"2,342.48",AUTUMN HOUSE CARE LTD
Revenue,Adult Services,Adult Social Care,Physical Support - older people (65+),5105669123,18.04.2018,Physical Support Residential 65+,Charges from Independent Providers,"2,342.48",AUTUMN HOUSE CARE LTD
Revenue,Adult Services,Adult Social Care,Physical Support - older people (65+),5105669123,18.04.2018,Physical Support Residential 65+,Charges from Independent Providers,"2,342.48",AUTUMN HOUSE CARE LTD
Revenue,Adult Services,Adult Social Care,Physical Support - older people (65+),5105669123,18.04.2018,Physical Support Residential 65+,Charges from Independent Providers,"1,992.48",AUTUMN HOUSE CARE LTD
Revenue,Adult Services,Adult Social Care,Mental Health Support-older people (65+),5105669123,18.04.2018,Mental Health Residential 65+,Charges from Independent Providers,"2,342.48",AUTUMN HOUSE CARE LTD
Revenue,Adult Services,Adult Social Care,Support - Memory /Cognition-older people (65+),5105669123,18.04.2018,Memory & Cognition Residential 65+,Charges from Independent Providers,"2,342.48",AUTUMN HOUSE CARE LTD
Revenue,Adult Services,Adult Social Care,Support - Memory /Cognition-older people (65+),5105669123,18.04.2018,Memory & Cognition Residential 65+,Charges from Independent Providers,"2,342.48",AUTUMN HOUSE CARE LTD
Revenue,Adult Services,Adult Social Care,Support - Memory /Cognition-older people (65+),5105669123,18.04.2018,Memory & Cognition Residential 65+,Charges from Independent Providers,"2,342.48",AUTUMN HOUSE CARE LTD
Revenue,Adult Services,Adult Social Care,Physical Support - older people (65+),5105669123,18.04.2018,Physical Support Residential 65+,Charges from Independent Providers,"2,342.48",AUTUMN HOUSE CARE LTD
Revenue,Adult Services,Adult Social Care,Physical Support - older people (65+),5105669123,18.04.2018,Physical Support Residential 65+,Charges from Independent Providers,"2,342.48",AUTUMN HOUSE CARE LTD
Revenue,Adult Services,Adult Social Care,Support - Memory /Cognition-older people (65+),5105669123,18.04.2018,Memory & Cognition Residential 65+,Charges from Independent Providers,"1,992.48",AUTUMN HOUSE CARE LTD
Revenue,Adult Services,Adult Social Care,Physical Support - older people (65+),5105669123,18.04.2018,Physical Support Residential 65+,Charges from Independent Providers,"2,342.48",AUTUMN HOUSE CARE LTD
Revenue,Adult Services,Adult Social Care,Physical Support - older people (65+),5105669123,18.04.2018,Physical Support Residential 65+,Charges from Independent Providers,"2,342.48",AUTUMN HOUSE CARE LTD
Revenue,Adult Services,Adult Social Care,Support - Memory /Cognition-older people (65+),5105669894,23.04.2018,Memory & Cognition Residential 65+,Charges from Independent Providers,"2,205.96",AUTUMN HOUSE CARE LTD
Revenue,Adult Services,Adult Social Care,Support - Memory /Cognition-older people (65+),5105670189,27.04.2018,Memory & Cognition Residential 65+,Charges from Independent Providers,"2,342.48",AUTUMN HOUSE CARE LTD
Revenue,Adult Services,Adult Social Care,Physical Support - older people (65+),5105669098,18.04.2018,Physical Support Residential 65+,Charges from Independent Providers,626.85,AUTUMN HOUSE CARE LTD
Revenue,Adult Services,Adult Social Care,Physical Support - older people (65+),5105669098,18.04.2018,Physical Support Residential 65+,Charges from Independent Providers,426.96,AUTUMN HOUSE CARE LTD
Revenue,Adult Services,Adult Social Care,Physical Support - older people (65+),5105670189,27.04.2018,Physical Support Residential 65+,Charges from Independent Providers,853.92,AUTUMN HOUSE CARE LTD
Revenue,Adult Services,Adult Social Care,Physical Support - older people (65+),5105669894,23.04.2018,Physical Support Residential 65+,Charges from Independent Providers,"2,928.10",AUTUMN HOUSE CARE LTD
Revenue,Adult Services,Adult Social Care,Physical Support - older people (65+),5105670189,27.04.2018,Physical Support Residential 65+,Charges from Independent Providers,"1,671.60",AUTUMN HOUSE CARE LTD
Revenue,Adult Services,Adult Social Care,Physical Support - older people (65+),5105670189,27.04.2018,Physical Support Residential 65+,Charges from Independent Providers,"1,280.88",AUTUMN HOUSE CARE LTD
Revenue,Adult Services,Adult Social Care,Physical Support - older people (65+),5105669197,18.04.2018,Physical Support Residential 65+,Charges from Independent Providers,"2,240.56",AVON PARK RESIDENTIAL HOME
Revenue,Place,Cultural and Related Services,Service Management and Support Services,5105667722,11.04.2018,Duke of Edingburgh Award,Operational Equipment,384.90,AWARD SCHEME LTD
Revenue,Place,Cultural and Related Services,Service Management and Support Services,5105667722,11.04.2018,Duke of Edingburgh Award,Operational Equipment,10.00,AWARD SCHEME LTD
Revenue,Place,Cultural and Related Services,Service Management and Support Services,5105669493,20.04.2018,Duke of Edingburgh Award,Licences,"1,051.00",AWARD SCHEME LTD
Revenue,Place,Cultural and Related Services,Library Service,5105668135,20.04.2018,Ryde Library,Office Equipment,230.00,AXIOMATIC TECHNOLOGY LTD
Revenue,Childrens Services,Children's & Education Services,Children Looked After,5105667987,06.04.2018,In-house Fostering,Boarding Out Allowances,234.52,REDACTED PERSONAL DATA
Revenue,Childrens Services,Children's & Education Services,Children Looked After,5105668748,13.04.2018,In-house Fostering,Boarding Out Allowances,234.52,REDACTED PERSONAL DATA
Revenue,Childrens Services,Children's & Education Services,Children Looked After,5105669532,20.04.2018,In-house Fostering,Boarding Out Allowances,234.52,REDACTED PERSONAL DATA
Revenue,Childrens Services,Children's & Education Services,Children Looked After,5105670211,27.04.2018,In-house Fostering,Boarding Out Allowances,234.52,REDACTED PERSONAL DATA
Revenue,Childrens Services,Children's & Education Services,Children Looked After,5105667987,06.04.2018,Leaving Care Costs,Support Children,50.00,REDACTED PERSONAL DATA
Revenue,Childrens Services,Children's & Education Services,Children Looked After,5105668748,13.04.2018,Leaving Care Costs,Support Children,50.00,REDACTED PERSONAL DATA
Revenue,Childrens Services,Children's & Education Services,Children Looked After,5105669532,20.04.2018,Leaving Care Costs,Support Children,50.00,REDACTED PERSONAL DATA
Revenue,Childrens Services,Children's & Education Services,Children Looked After,5105670211,27.04.2018,Leaving Care Costs,Support Children,50.00,REDACTED PERSONAL DATA
Revenue,Childrens Services,Children's & Education Services,Children Looked After,5105667447,04.04.2018,Leaving Care Costs,Support Children,500.00,REDACTED PERSONAL DATA
Revenue,Resources,Central Services,Support Services,5105669914,23.04.2018,Staff Benefits,Payment to Private Contractors,100.00,REDACTED PERSONAL DATA
Revenue,Resources,Central Services,Support Services,5105669914,23.04.2018,Staff Benefits,Payment to Private Contractors,100.00,REDACTED PERSONAL DATA
Revenue,Place,Housing Services,Homelessness,5105669856,23.04.2018,Leaseholds by LA,Accommodation Costs - Leaseholder Payments,866.67,REDACTED PERSONAL DATA
Revenue,Place,Housing Services,Homelessness,5105669856,23.04.2018,Leaseholds by LA,Accommodation Costs - Leaseholder Payments,888.33,REDACTED PERSONAL DATA
Revenue,Place,Housing Services,Homelessness,5105669856,23.04.2018,Leaseholds by LA,Accommodation Costs - Leaseholder Payments,799.50,REDACTED PERSONAL DATA
Revenue,Adult Services,Adult Social Care,Assistive Equipment & Technology,5105669018,25.04.2018,Community Equipment Store,General Materials,130.00,B.E.S REHAB LTD
Revenue,Adult Services,Adult Social Care,Assistive Equipment & Technology,5105669018,25.04.2018,Community Equipment Store,General Materials,10.00,B.E.S REHAB LTD
Revenue,Place,Fire & Rescue Services,Fire fighting and Rescue Operations,5105669746,20.04.2018,Fire Technical Support,Payment to Private Contractors,"7,005.79",BALLYCLARE LTD
Revenue,Place,Fire & Rescue Services,Fire fighting and Rescue Operations,5105669810,20.04.2018,Fire Technical Support,Payment to Private Contractors,877.76,BALLYCLARE LTD
Revenue,Adult Services,Adult Social Care,Social Care Activities,5105667825,04.04.2018,Commissioning Manager Individual Support,Consultants Fees,"10,850.00",BALTIMORE CONSULTING LIMITED
Revenue,Adult Services,Adult Social Care,Social Care Activities,5105670549,30.04.2018,Commissioning Manager Individual Support,Consultants Fees,"1,860.00",BALTIMORE CONSULTING LIMITED
Revenue,Childrens Services,Children's & Education Services,Children Looked After,5105667647,18.04.2018,Beaulieu House,Stationery,4.56,SUPPLIES TEAM LTD
Revenue,Childrens Services,Children's & Education Services,Children Looked After,5105667647,18.04.2018,Beaulieu House,Stationery,5.92,SUPPLIES TEAM LTD
Revenue,Childrens Services,Children's & Education Services,Children Looked After,5105667647,18.04.2018,Beaulieu House,Stationery,8.57,SUPPLIES TEAM LTD
Revenue,Childrens Services,Children's & Education Services,Children Looked After,5105667647,18.04.2018,Beaulieu House,Stationery,1.95,SUPPLIES TEAM LTD
Revenue,Childrens Services,Children's & Education Services,Children Looked After,5105667647,18.04.2018,Beaulieu House,Stationery,3.51,SUPPLIES TEAM LTD
Revenue,Childrens Services,Children's & Education Services,Children Looked After,5105669444,18.04.2018,Beaulieu House,Stationery,-1.95,SUPPLIES TEAM LTD
Revenue,Childrens Services,Children's & Education Services,Children Looked After,5105667647,18.04.2018,Beaulieu House,Stationery,1.72,SUPPLIES TEAM LTD
Revenue,Childrens Services,Children's & Education Services,Children Looked After,5105667647,18.04.2018,Beaulieu House,Stationery,2.70,SUPPLIES TEAM LTD
Revenue,Adult Services,Adult Social Care,Commissioning & Service Delivery,5105667928,11.04.2018,Adult Social Care Enterprise House,Stationery,6.26,SUPPLIES TEAM LTD
Revenue,Adult Services,Adult Social Care,Commissioning & Service Delivery,5105667928,11.04.2018,Adult Social Care Enterprise House,Stationery,68.56,SUPPLIES TEAM LTD
Revenue,Adult Services,Adult Social Care,Commissioning & Service Delivery,5105667928,11.04.2018,Adult Social Care Enterprise House,Stationery,2.38,SUPPLIES TEAM LTD
Revenue,Adult Services,Adult Social Care,Assistive Equipment & Technology,5105667928,11.04.2018,Wightcare,Stationery,8.57,SUPPLIES TEAM LTD
Revenue,Adult Services,Adult Social Care,Assistive Equipment & Technology,5105667928,11.04.2018,Wightcare,Stationery,13.47,SUPPLIES TEAM LTD
Revenue,Adult Services,Adult Social Care,Assistive Equipment & Technology,5105667928,11.04.2018,Wightcare,Stationery,28.52,SUPPLIES TEAM LTD
Revenue,Childrens Services,Children's & Education Services,Other Education and Community Budget,5105667914,06.04.2018,Learning & Development Running Costs,Stationery,2.28,SUPPLIES TEAM LTD
Revenue,Childrens Services,Children's & Education Services,Other Education and Community Budget,5105667914,06.04.2018,Learning & Development Running Costs,Stationery,0.53,SUPPLIES TEAM LTD
Revenue,Childrens Services,Children's & Education Services,Other Education and Community Budget,5105667914,06.04.2018,Learning & Development Running Costs,Stationery,3.60,SUPPLIES TEAM LTD
Revenue,Childrens Services,Children's & Education Services,Other Education and Community Budget,5105667914,06.04.2018,Learning & Development Running Costs,Stationery,2.46,SUPPLIES TEAM LTD
Revenue,Childrens Services,Children's & Education Services,Other Education and Community Budget,5105667914,06.04.2018,Learning & Development Running Costs,Stationery,6.26,SUPPLIES TEAM LTD
Revenue,Childrens Services,Children's & Education Services,Other Education and Community Budget,5105667914,06.04.2018,Learning & Development Running Costs,Stationery,3.87,SUPPLIES TEAM LTD
Revenue,Childrens Services,Children's & Education Services,Other Education and Community Budget,5105667916,06.04.2018,Learning & Development Running Costs,Stationery,19.32,SUPPLIES TEAM LTD
Revenue,Childrens Services,Children's & Education Services,Other Education and Community Budget,5105667914,06.04.2018,Learning & Development Running Costs,Stationery,8.57,SUPPLIES TEAM LTD
Revenue,Place,Environmental & Regulatory Services,Regulatory Services,5105667904,06.04.2018,Licensing Services,Stationery,1.44,SUPPLIES TEAM LTD
Revenue,Place,Environmental & Regulatory Services,Regulatory Services,5105667904,06.04.2018,Licensing Services,Stationery,0.86,SUPPLIES TEAM LTD
Revenue,Place,Environmental & Regulatory Services,Regulatory Services,5105667904,06.04.2018,Licensing Services,Stationery,1.98,SUPPLIES TEAM LTD
Revenue,Place,Environmental & Regulatory Services,Regulatory Services,5105667904,06.04.2018,Licensing Services,Stationery,42.85,SUPPLIES TEAM LTD
Revenue,Place,Environmental & Regulatory Services,Regulatory Services,5105667904,06.04.2018,Licensing Services,Stationery,7.68,SUPPLIES TEAM LTD
Revenue,Place,Environmental & Regulatory Services,Regulatory Services,5105667904,06.04.2018,Licensing Services,Stationery,1.23,SUPPLIES TEAM LTD
Revenue,Place,Environmental & Regulatory Services,Regulatory Services,5105667904,06.04.2018,Licensing Services,Stationery,1.80,SUPPLIES TEAM LTD
Revenue,Place,Environmental & Regulatory Services,Regulatory Services,5105667904,06.04.2018,Licensing Services,Stationery,0.19,SUPPLIES TEAM LTD
Revenue,Place,Environmental & Regulatory Services,Regulatory Services,5105667904,06.04.2018,Licensing Services,Stationery,17.14,SUPPLIES TEAM LTD
Revenue,Childrens Services,Children's & Education Services,Safeguarding Children/Young Peoples Svs,5105667897,06.04.2018,Fostering Team,Stationery,0.39,SUPPLIES TEAM LTD
Revenue,Childrens Services,Children's & Education Services,Safeguarding Children/Young Peoples Svs,5105667897,06.04.2018,Fostering Team,Stationery,6.44,SUPPLIES TEAM LTD
Revenue,Childrens Services,Children's & Education Services,Safeguarding Children/Young Peoples Svs,5105667897,06.04.2018,Fostering Team,Stationery,1.06,SUPPLIES TEAM LTD
Revenue,Childrens Services,Children's & Education Services,Safeguarding Children/Young Peoples Svs,5105667897,06.04.2018,Fostering Team,Stationery,0.54,SUPPLIES TEAM LTD
Revenue,Childrens Services,Children's & Education Services,Safeguarding Children/Young Peoples Svs,5105667897,06.04.2018,Fostering Team,Stationery,4.92,SUPPLIES TEAM LTD
Revenue,Childrens Services,Children's & Education Services,Safeguarding Children/Young Peoples Svs,5105667897,06.04.2018,Children's office costs,Stationery,1.65,SUPPLIES TEAM LTD
Revenue,Childrens Services,Children's & Education Services,Safeguarding Children/Young Peoples Svs,5105667897,06.04.2018,Children's office costs,Stationery,1.98,SUPPLIES TEAM LTD
Revenue,Place,Housing Services,Private Sector Housing Renewal,5105667897,06.04.2018,Renewal & Enforcement,Stationery,0.39,SUPPLIES TEAM LTD
Revenue,Place,Highways and Transport Services,Parking Services,5105667897,06.04.2018,Parking Management,Stationery,1.17,SUPPLIES TEAM LTD
Revenue,Childrens Services,Children's & Education Services,Safeguarding Children/Young Peoples Svs,5105668243,11.04.2018,Children's office costs,Stationery,8.57,SUPPLIES TEAM LTD
Revenue,Childrens Services,Children's & Education Services,Safeguarding Children/Young Peoples Svs,5105668245,06.04.2018,Children's office costs,Stationery,-8.57,SUPPLIES TEAM LTD
Revenue,Childrens Services,Children's & Education Services,Safeguarding Children/Young Peoples Svs,5105667897,06.04.2018,Children's office costs,Stationery,42.85,SUPPLIES TEAM LTD
Revenue,Place,Cultural and Related Services,Service Management and Support Services,5105667897,06.04.2018,Leisure Management & Admin,Stationery,17.14,SUPPLIES TEAM LTD
Revenue,Childrens Services,Children's & Education Services,Safeguarding Children/Young Peoples Svs,5105667897,06.04.2018,Children's office costs,Stationery,17.14,SUPPLIES TEAM LTD
Revenue,Childrens Services,Children's & Education Services,Safeguarding Children/Young Peoples Svs,5105667897,06.04.2018,Children's office costs,Stationery,6.26,SUPPLIES TEAM LTD
Revenue,Resources,Central Services,Support Services,5105667897,06.04.2018,Legal Services Section,Stationery,34.28,SUPPLIES TEAM LTD
Revenue,Resources,Central Services,Corporate and Democratic Core,5105667897,06.04.2018,Cabinet Support,Stationery,17.14,SUPPLIES TEAM LTD
Revenue,Childrens Services,Children's & Education Services,Safeguarding Children/Young Peoples Svs,5105667897,06.04.2018,Children's office costs,Stationery,17.14,SUPPLIES TEAM LTD
Revenue,Childrens Services,Children's & Education Services,Safeguarding Children/Young Peoples Svs,5105667897,06.04.2018,Children's office costs,Stationery,6.26,SUPPLIES TEAM LTD
Revenue,Childrens Services,Children's & Education Services,Youth Justice,5105667897,06.04.2018,Youth Offending Team,Stationery,17.14,SUPPLIES TEAM LTD
Revenue,Place,Planning services,Building Control,5105667617,20.04.2018,Building Control,Stationery,5.34,SUPPLIES TEAM LTD
Revenue,Childrens Services,Children's & Education Services,Management & Support Services,5105668269,23.04.2018,Specialist Service Business Admin,Stationery,85.70,SUPPLIES TEAM LTD
Revenue,Childrens Services,Children's & Education Services,Safeguarding Children/Young Peoples Svs,5105668266,23.04.2018,Children's office costs,Stationery,138.30,SUPPLIES TEAM LTD
Revenue,Childrens Services,Children's & Education Services,Safeguarding Children/Young Peoples Svs,5105668271,25.04.2018,Children's office costs,Stationery,0.24,SUPPLIES TEAM LTD
Revenue,Childrens Services,Children's & Education Services,Safeguarding Children/Young Peoples Svs,5105668271,25.04.2018,Children's office costs,Stationery,3.00,SUPPLIES TEAM LTD
Revenue,Childrens Services,Children's & Education Services,Safeguarding Children/Young Peoples Svs,5105668271,25.04.2018,Children's office costs,Stationery,12.30,SUPPLIES TEAM LTD
Revenue,Childrens Services,Children's & Education Services,Safeguarding Children/Young Peoples Svs,5105668271,25.04.2018,Children's office costs,Stationery,0.27,SUPPLIES TEAM LTD
Revenue,Childrens Services,Children's & Education Services,Safeguarding Children/Young Peoples Svs,5105668271,25.04.2018,Children's office costs,Stationery,1.90,SUPPLIES TEAM LTD
Revenue,Childrens Services,Children's & Education Services,Safeguarding Children/Young Peoples Svs,5105668271,25.04.2018,Children's office costs,Stationery,0.76,SUPPLIES TEAM LTD
Revenue,Childrens Services,Children's & Education Services,Safeguarding Children/Young Peoples Svs,5105668271,25.04.2018,Children's office costs,Stationery,1.23,SUPPLIES TEAM LTD
Revenue,Childrens Services,Children's & Education Services,Safeguarding Children/Young Peoples Svs,5105668271,25.04.2018,Children's office costs,Stationery,1.80,SUPPLIES TEAM LTD
Revenue,Place,Cultural and Related Services,Open Spaces,5105668271,25.04.2018,Rights of Way Operations,Stationery,11.09,SUPPLIES TEAM LTD
Revenue,Childrens Services,Children's & Education Services,Other Education and Community Budget,5105668271,25.04.2018,Education & Participation,Stationery,3.43,SUPPLIES TEAM LTD
Revenue,Childrens Services,Children's & Education Services,Other Education and Community Budget,5105668271,25.04.2018,Education & Participation,Stationery,0.78,SUPPLIES TEAM LTD
Revenue,Childrens Services,Children's & Education Services,Other Education and Community Budget,5105668271,25.04.2018,Education & Participation,Stationery,4.30,SUPPLIES TEAM LTD
Revenue,Childrens Services,Children's & Education Services,Youth Justice,5105668271,25.04.2018,Youth Offending Team,Stationery,40.20,SUPPLIES TEAM LTD
Revenue,Childrens Services,Children's & Education Services,Youth Justice,5105668271,25.04.2018,Youth Offending Team,Stationery,2.47,SUPPLIES TEAM LTD
Revenue,Childrens Services,Children's & Education Services,Youth Justice,5105668271,25.04.2018,Youth Offending Team,Stationery,1.14,SUPPLIES TEAM LTD
Revenue,Childrens Services,Children's & Education Services,Youth Justice,5105668271,25.04.2018,Youth Offending Team,Stationery,1.90,SUPPLIES TEAM LTD
Revenue,Resources,Central Services,Support Services,5105668271,25.04.2018,Corproate Business Hub,Stationery,0.54,SUPPLIES TEAM LTD
Revenue,Resources,Central Services,Support Services,5105668271,25.04.2018,Corproate Business Hub,Stationery,26.84,SUPPLIES TEAM LTD
Revenue,Resources,Central Services,Support Services,5105668271,25.04.2018,Corproate Business Hub,Stationery,5.22,SUPPLIES TEAM LTD
Revenue,Resources,Central Services,Support Services,5105668271,25.04.2018,Procurement and Contract Management,Stationery,2.69,SUPPLIES TEAM LTD
Revenue,Resources,Central Services,Support Services,5105668271,25.04.2018,Procurement and Contract Management,Stationery,6.02,SUPPLIES TEAM LTD
Revenue,Resources,Housing Services,Housing Benefits Administration,5105668441,11.04.2018,Housing Benefit,Stationery,85.70,SUPPLIES TEAM LTD
Revenue,Resources,Central Services,Central Services to the Public,5105668441,11.04.2018,Council Tax,Stationery,85.70,SUPPLIES TEAM LTD
Revenue,Resources,Central Services,Central Services to the Public,5105668271,25.04.2018,National Non Domestic Rates,Stationery,17.14,SUPPLIES TEAM LTD
Revenue,Resources,Central Services,Support Services,5105668271,25.04.2018,Customer Accounts Shared Service Centre,Stationery,34.28,SUPPLIES TEAM LTD
Revenue,Resources,Central Services,Support Services,5105668271,25.04.2018,Creditor Payments Shared Service Centre,Stationery,17.14,SUPPLIES TEAM LTD
Revenue,Resources,Central Services,Central Services to the Public,5105668271,25.04.2018,Electoral Registration Office,Stationery,17.14,SUPPLIES TEAM LTD
Revenue,Place,Cultural and Related Services,Service Management and Support Services,5105668271,25.04.2018,Leisure Management & Admin,Stationery,17.14,SUPPLIES TEAM LTD
Revenue,Childrens Services,Children's & Education Services,Safeguarding Children/Young Peoples Svs,5105668271,25.04.2018,Children's office costs,Stationery,34.28,SUPPLIES TEAM LTD
Revenue,Childrens Services,Children's & Education Services,Safeguarding Children/Young Peoples Svs,5105668271,25.04.2018,Children's office costs,Stationery,17.14,SUPPLIES TEAM LTD
Revenue,Place,Cultural and Related Services,Service Management and Support Services,5105668271,25.04.2018,Leisure Management & Admin,Stationery,25.71,SUPPLIES TEAM LTD
Revenue,Resources,Central Services,Support Services,5105668271,25.04.2018,Help Centres Shared Service Centre,Stationery,17.14,SUPPLIES TEAM LTD
Revenue,Adult Services,Adult Social Care,Commissioning & Service Delivery,5105668271,25.04.2018,Head of Adult Social Care,Stationery,25.71,SUPPLIES TEAM LTD
Revenue,Childrens Services,Children's & Education Services,Safeguarding Children/Young Peoples Svs,5105668271,25.04.2018,Children's office costs,Stationery,17.14,SUPPLIES TEAM LTD
Revenue,Childrens Services,Children's & Education Services,Youth Justice,5105668271,25.04.2018,Youth Offending Team,Stationery,6.26,SUPPLIES TEAM LTD
Revenue,Place,Cultural and Related Services,Service Management and Support Services,5105668271,25.04.2018,Leisure Management & Admin,Stationery,4.31,SUPPLIES TEAM LTD
Revenue,Place,Cultural and Related Services,Service Management and Support Services,5105668271,25.04.2018,Leisure Management & Admin,Stationery,11.09,SUPPLIES TEAM LTD
Revenue,Childrens Services,Children's & Education Services,Other Education and Community Budget,5105668930,13.04.2018,SEND Independent Advice & Support,Stationery,7.43,SUPPLIES TEAM LTD
Revenue,Childrens Services,Children's & Education Services,Other Education and Community Budget,5105668930,13.04.2018,SEND Independent Advice & Support,Stationery,7.43,SUPPLIES TEAM LTD
Revenue,Childrens Services,Children's & Education Services,Other Education and Community Budget,5105668930,13.04.2018,SEND Independent Advice & Support,Stationery,0.27,SUPPLIES TEAM LTD
Revenue,Childrens Services,Children's & Education Services,Other Education and Community Budget,5105668930,13.04.2018,SEND Independent Advice & Support,Stationery,0.33,SUPPLIES TEAM LTD
Revenue,Childrens Services,Children's & Education Services,Other Education and Community Budget,5105668930,13.04.2018,SEND Independent Advice & Support,Stationery,17.14,SUPPLIES TEAM LTD
Revenue,Childrens Services,Children's & Education Services,Other Education and Community Budget,5105668930,13.04.2018,SEND Independent Advice & Support,Stationery,1.00,SUPPLIES TEAM LTD
Revenue,Childrens Services,Children's & Education Services,Other Education and Community Budget,5105668930,13.04.2018,SEND Independent Advice & Support,Stationery,3.00,SUPPLIES TEAM LTD
Revenue,Childrens Services,Children's & Education Services,Other Education and Community Budget,5105668930,13.04.2018,SEND Independent Advice & Support,Stationery,1.61,SUPPLIES TEAM LTD
Revenue,Childrens Services,Children's & Education Services,Other Education and Community Budget,5105668930,13.04.2018,SEND Independent Advice & Support,Stationery,6.44,SUPPLIES TEAM LTD
Revenue,Childrens Services,Children's & Education Services,Other Education and Community Budget,5105668930,13.04.2018,SEND Independent Advice & Support,Stationery,1.37,SUPPLIES TEAM LTD
Revenue,Childrens Services,Children's & Education Services,Family Support Services,5105668926,13.04.2018,Disabled Childrens Intervention Team,Stationery,17.14,SUPPLIES TEAM LTD
Revenue,Childrens Services,Children's & Education Services,Family Support Services,5105668926,13.04.2018,Disabled Childrens Intervention Team,Stationery,2.96,SUPPLIES TEAM LTD
Revenue,Childrens Services,Children's & Education Services,Family Support Services,5105668928,13.04.2018,Disabled Childrens Intervention Team,Stationery,0.16,SUPPLIES TEAM LTD
Revenue,Childrens Services,Children's & Education Services,Family Support Services,5105668926,13.04.2018,Disabled Childrens Intervention Team,Stationery,8.80,SUPPLIES TEAM LTD
Revenue,Childrens Services,Children's & Education Services,Children Looked After,5105668908,13.04.2018,Beaulieu House,Stationery,5.92,SUPPLIES TEAM LTD
Revenue,Childrens Services,Children's & Education Services,Children Looked After,5105668908,13.04.2018,Beaulieu House,Stationery,1.56,SUPPLIES TEAM LTD
Revenue,Childrens Services,Children's & Education Services,Children Looked After,5105668908,13.04.2018,Beaulieu House,Stationery,34.28,SUPPLIES TEAM LTD
Revenue,Childrens Services,Children's & Education Services,Children Looked After,5105668908,13.04.2018,Beaulieu House,Stationery,2.30,SUPPLIES TEAM LTD
Revenue,Childrens Services,Children's & Education Services,Children Looked After,5105668908,13.04.2018,Beaulieu House,Stationery,2.70,SUPPLIES TEAM LTD
Revenue,Childrens Services,Children's & Education Services,Children Looked After,5105668908,13.04.2018,Beaulieu House,Stationery,4.38,SUPPLIES TEAM LTD
Revenue,Childrens Services,Children's & Education Services,Children Looked After,5105668908,13.04.2018,Beaulieu House,Stationery,4.30,SUPPLIES TEAM LTD
Revenue,Childrens Services,Children's & Education Services,Children Looked After,5105668908,13.04.2018,Beaulieu House,Stationery,3.90,SUPPLIES TEAM LTD
Revenue,Resources,Housing Services,Housing Benefits Administration,5105668917,13.04.2018,Housing Benefit,Stationery,3.43,SUPPLIES TEAM LTD
Revenue,Resources,Housing Services,Housing Benefits Administration,5105668917,13.04.2018,Housing Benefit,Stationery,0.66,SUPPLIES TEAM LTD
Revenue,Resources,Housing Services,Housing Benefits Administration,5105668905,13.04.2018,Housing Benefit,Stationery,0.08,SUPPLIES TEAM LTD
Revenue,Resources,Housing Services,Housing Benefits Administration,5105668917,13.04.2018,Housing Benefit,Stationery,0.54,SUPPLIES TEAM LTD
Revenue,Resources,Housing Services,Housing Benefits Administration,5105668917,13.04.2018,Housing Benefit,Stationery,0.33,SUPPLIES TEAM LTD
Revenue,Resources,Housing Services,Housing Benefits Administration,5105668917,13.04.2018,Housing Benefit,Stationery,3.43,SUPPLIES TEAM LTD
Revenue,Place,Environmental & Regulatory Services,"Cemetery, Cremation & Mortuary Services",5105668922,13.04.2018,Crematorium,Stationery,5.22,SUPPLIES TEAM LTD
Revenue,Place,Environmental & Regulatory Services,"Cemetery, Cremation & Mortuary Services",5105668922,13.04.2018,Crematorium,Stationery,0.27,SUPPLIES TEAM LTD
Revenue,Place,Environmental & Regulatory Services,"Cemetery, Cremation & Mortuary Services",5105668922,13.04.2018,Crematorium,Stationery,0.33,SUPPLIES TEAM LTD
Revenue,Place,Environmental & Regulatory Services,"Cemetery, Cremation & Mortuary Services",5105668922,13.04.2018,Crematorium,Stationery,1.98,SUPPLIES TEAM LTD
Revenue,Place,Environmental & Regulatory Services,"Cemetery, Cremation & Mortuary Services",5105668922,13.04.2018,Crematorium,Stationery,2.16,SUPPLIES TEAM LTD
Revenue,Place,Environmental & Regulatory Services,"Cemetery, Cremation & Mortuary Services",5105668922,13.04.2018,Crematorium,Stationery,1.48,SUPPLIES TEAM LTD
Revenue,Place,Environmental & Regulatory Services,"Cemetery, Cremation & Mortuary Services",5105668922,13.04.2018,Crematorium,Stationery,4.06,SUPPLIES TEAM LTD
Revenue,Place,Environmental & Regulatory Services,"Cemetery, Cremation & Mortuary Services",5105668922,13.04.2018,Crematorium,Stationery,17.14,SUPPLIES TEAM LTD
Revenue,Place,Environmental & Regulatory Services,"Cemetery, Cremation & Mortuary Services",5105668922,13.04.2018,Crematorium,Stationery,0.78,SUPPLIES TEAM LTD
Revenue,Place,Environmental & Regulatory Services,"Cemetery, Cremation & Mortuary Services",5105668922,13.04.2018,Crematorium,Stationery,3.60,SUPPLIES TEAM LTD
Revenue,Adult Services,Adult Social Care,Commissioning & Service Delivery,5105668913,13.04.2018,Adult Social Care Enterprise House,Stationery,2.46,SUPPLIES TEAM LTD
Revenue,Adult Services,Adult Social Care,Assistive Equipment & Technology,5105668913,13.04.2018,Wightcare,Stationery,4.00,SUPPLIES TEAM LTD
Revenue,Place,Fire & Rescue Services,Fire fighting and Rescue Operations,5105668915,13.04.2018,Business Support  - Fire,Stationery,9.98,SUPPLIES TEAM LTD
Revenue,Place,Fire & Rescue Services,Fire fighting and Rescue Operations,5105668923,13.04.2018,Business Support  - Fire,Stationery,6.44,SUPPLIES TEAM LTD
Revenue,Place,Fire & Rescue Services,Fire fighting and Rescue Operations,5105668923,13.04.2018,Business Support  - Fire,Stationery,34.28,SUPPLIES TEAM LTD
Revenue,Adult Services,Adult Social Care,Assistive Equipment & Technology,5105669070,27.04.2018,Community Equipment Store,Stationery,17.14,SUPPLIES TEAM LTD
Revenue,Adult Services,Adult Social Care,Assistive Equipment & Technology,5105669070,27.04.2018,Community Equipment Store,Stationery,1.07,SUPPLIES TEAM LTD
Revenue,Adult Services,Adult Social Care,Assistive Equipment & Technology,5105669070,27.04.2018,Community Equipment Store,Stationery,1.37,SUPPLIES TEAM LTD
Revenue,Adult Services,Adult Social Care,Assistive Equipment & Technology,5105669070,27.04.2018,Community Equipment Store,Stationery,29.01,SUPPLIES TEAM LTD
Revenue,Place,Environmental & Regulatory Services,Service Management and Support Services,5105669083,27.04.2018,Regulatory Management & Admin Support,Stationery,0.78,SUPPLIES TEAM LTD
Revenue,Place,Environmental & Regulatory Services,Service Management and Support Services,5105669083,27.04.2018,Regulatory Management & Admin Support,Stationery,5.20,SUPPLIES TEAM LTD
Revenue,Place,Environmental & Regulatory Services,Service Management and Support Services,5105669083,27.04.2018,Regulatory Management & Admin Support,Stationery,25.71,SUPPLIES TEAM LTD
Revenue,Public Health,Public Health,Miscellaneous Public Health Services,5105669083,27.04.2018,Public Health Core Non Prescribed,Stationery,0.53,SUPPLIES TEAM LTD
Revenue,Public Health,Public Health,Miscellaneous Public Health Services,5105669083,27.04.2018,Public Health Core Non Prescribed,Stationery,3.19,SUPPLIES TEAM LTD
Revenue,Public Health,Public Health,Miscellaneous Public Health Services,5105669083,27.04.2018,Public Health Core Non Prescribed,Stationery,2.41,SUPPLIES TEAM LTD
Revenue,Public Health,Public Health,Miscellaneous Public Health Services,5105669083,27.04.2018,Public Health Core Non Prescribed,Stationery,2.90,SUPPLIES TEAM LTD
Revenue,Childrens Services,Children's & Education Services,Safeguarding Children/Young Peoples Svs,5105669083,27.04.2018,LSCB (Local Safeguarding Childrens Board),Stationery,6.26,SUPPLIES TEAM LTD
Revenue,Place,Cultural and Related Services,Library Service,5105669080,27.04.2018,Freshwater West Wight Library,Stationery,0.39,SUPPLIES TEAM LTD
Revenue,Place,Cultural and Related Services,Library Service,5105669080,27.04.2018,Freshwater West Wight Library,Stationery,2.59,SUPPLIES TEAM LTD
Revenue,Place,Cultural and Related Services,Library Service,5105669080,27.04.2018,Freshwater West Wight Library,Stationery,0.94,SUPPLIES TEAM LTD
Revenue,Place,Cultural and Related Services,Recreation and Sport,5105668901,23.04.2018,Medina Leisure Centre,Stationery,0.08,SUPPLIES TEAM LTD
Revenue,Place,Cultural and Related Services,Recreation and Sport,5105668902,13.04.2018,Medina Leisure Centre,Stationery,3.43,SUPPLIES TEAM LTD
Revenue,Place,Cultural and Related Services,Recreation and Sport,5105668902,13.04.2018,Medina Leisure Centre,Stationery,0.80,SUPPLIES TEAM LTD
Revenue,Place,Cultural and Related Services,Recreation and Sport,5105668902,13.04.2018,Medina Leisure Centre,Stationery,3.45,SUPPLIES TEAM LTD
Revenue,Place,Cultural and Related Services,Recreation and Sport,5105668902,13.04.2018,Medina Leisure Centre,Stationery,0.76,SUPPLIES TEAM LTD
Revenue,Place,Cultural and Related Services,Recreation and Sport,5105668902,13.04.2018,Medina Leisure Centre,Stationery,7.92,SUPPLIES TEAM LTD
Revenue,Place,Cultural and Related Services,Recreation and Sport,5105668902,13.04.2018,Medina Leisure Centre,Stationery,4.49,SUPPLIES TEAM LTD
Revenue,Place,Cultural and Related Services,Recreation and Sport,5105668902,13.04.2018,Medina Leisure Centre,Stationery,8.26,SUPPLIES TEAM LTD
Revenue,Place,Cultural and Related Services,Recreation and Sport,5105668902,13.04.2018,The Heights,Stationery,21.84,SUPPLIES TEAM LTD
Revenue,Place,Cultural and Related Services,Recreation and Sport,5105668902,13.04.2018,The Heights,Stationery,0.53,SUPPLIES TEAM LTD
Revenue,Place,Cultural and Related Services,Recreation and Sport,5105668902,13.04.2018,The Heights,Stationery,21.84,SUPPLIES TEAM LTD
Revenue,Place,Cultural and Related Services,Recreation and Sport,5105668902,13.04.2018,The Heights,Stationery,8.88,SUPPLIES TEAM LTD
Revenue,Place,Cultural and Related Services,Recreation and Sport,5105668901,23.04.2018,Medina Leisure Centre,Stationery,6.26,SUPPLIES TEAM LTD
Revenue,Adult Services,Adult Social Care,Central Codes (to be reallocated),5105668621,27.04.2018,Gouldings Resource Centre,Stationery,17.14,SUPPLIES TEAM LTD
Revenue,Adult Services,Adult Social Care,Central Codes (to be reallocated),5105668621,27.04.2018,Gouldings Resource Centre,Stationery,6.50,SUPPLIES TEAM LTD
Revenue,Adult Services,Adult Social Care,Central Codes (to be reallocated),5105668621,27.04.2018,Gouldings Resource Centre,Stationery,0.90,SUPPLIES TEAM LTD
Revenue,Adult Services,Adult Social Care,Central Codes (to be reallocated),5105668621,27.04.2018,Gouldings Resource Centre,Stationery,2.46,SUPPLIES TEAM LTD
Revenue,Adult Services,Adult Social Care,Central Codes (to be reallocated),5105668621,27.04.2018,Gouldings Resource Centre,Stationery,7.22,SUPPLIES TEAM LTD
Revenue,Adult Services,Adult Social Care,Central Codes (to be reallocated),5105668621,27.04.2018,Gouldings Resource Centre,Stationery,12.95,SUPPLIES TEAM LTD
Revenue,Adult Services,Adult Social Care,Central Codes (to be reallocated),5105668621,27.04.2018,Gouldings Resource Centre,Stationery,25.71,SUPPLIES TEAM LTD
Revenue,Adult Services,Adult Social Care,Central Codes (to be reallocated),5105668621,27.04.2018,Gouldings Resource Centre,Stationery,3.22,SUPPLIES TEAM LTD
Revenue,Adult Services,Adult Social Care,Central Codes (to be reallocated),5105668621,27.04.2018,Gouldings Resource Centre,Stationery,1.72,SUPPLIES TEAM LTD
Revenue,Adult Services,Adult Social Care,Central Codes (to be reallocated),5105668621,27.04.2018,Gouldings Resource Centre,Stationery,2.34,SUPPLIES TEAM LTD
Revenue,Adult Services,Adult Social Care,Central Codes (to be reallocated),5105668621,27.04.2018,Gouldings Resource Centre,Stationery,6.26,SUPPLIES TEAM LTD
Revenue,Adult Services,Adult Social Care,Central Codes (to be reallocated),5105668621,27.04.2018,Gouldings Resource Centre,Stationery,2.58,SUPPLIES TEAM LTD
Revenue,Adult Services,Adult Social Care,Central Codes (to be reallocated),5105668621,27.04.2018,Community Outreach,Stationery,2.01,SUPPLIES TEAM LTD
Revenue,Place,Cultural and Related Services,Recreation and Sport,5105668903,13.04.2018,The Heights,Stationery,2.16,SUPPLIES TEAM LTD
Revenue,Place,Cultural and Related Services,Recreation and Sport,5105668903,13.04.2018,The Heights,Stationery,11.52,SUPPLIES TEAM LTD
Revenue,Resources,Central Services,Support Services,5105668900,13.04.2018,Call Centre,Stationery,3.44,SUPPLIES TEAM LTD
Revenue,Resources,Central Services,Support Services,5105668900,13.04.2018,Call Centre,Stationery,2.46,SUPPLIES TEAM LTD
Revenue,Resources,Central Services,Support Services,5105668900,13.04.2018,Call Centre,Stationery,2.12,SUPPLIES TEAM LTD
Revenue,Resources,Central Services,Support Services,5105668900,13.04.2018,Call Centre,Stationery,34.28,SUPPLIES TEAM LTD
Revenue,Resources,Central Services,Support Services,5105668900,13.04.2018,Call Centre,Stationery,1.61,SUPPLIES TEAM LTD
Revenue,Resources,Central Services,Support Services,5105668900,13.04.2018,Call Centre,Stationery,0.53,SUPPLIES TEAM LTD
Revenue,Resources,Central Services,Support Services,5105668900,13.04.2018,Call Centre,Stationery,42.85,SUPPLIES TEAM LTD
Revenue,Resources,Central Services,Support Services,5105668900,13.04.2018,Call Centre,Stationery,0.76,SUPPLIES TEAM LTD
Revenue,Resources,Central Services,Support Services,5105668900,13.04.2018,Call Centre,Stationery,0.46,SUPPLIES TEAM LTD
Revenue,Resources,Central Services,Support Services,5105668900,13.04.2018,Call Centre,Stationery,2.46,SUPPLIES TEAM LTD
Revenue,Resources,Central Services,Support Services,5105668900,13.04.2018,Call Centre,Stationery,2.96,SUPPLIES TEAM LTD
Revenue,Childrens Services,Children's & Education Services,Safeguarding Children/Young Peoples Svs,5105670169,25.04.2018,Children's office costs,Stationery,30.10,SUPPLIES TEAM LTD
Revenue,Childrens Services,Children's & Education Services,Safeguarding Children/Young Peoples Svs,5105670169,25.04.2018,Children's office costs,Stationery,3.00,SUPPLIES TEAM LTD
Revenue,Childrens Services,Children's & Education Services,Other Education and Community Budget,5105670169,25.04.2018,Pupil Resources Business Support Team,Stationery,25.71,SUPPLIES TEAM LTD
Revenue,Childrens Services,Children's & Education Services,Safeguarding Children/Young Peoples Svs,5105670169,25.04.2018,Children's office costs,Stationery,25.71,SUPPLIES TEAM LTD
Revenue,Place,Cultural and Related Services,Service Management and Support Services,5105670169,25.04.2018,Leisure Management & Admin,Stationery,2.44,SUPPLIES TEAM LTD
Revenue,Place,Cultural and Related Services,Service Management and Support Services,5105670169,25.04.2018,Leisure Management & Admin,Stationery,1.23,SUPPLIES TEAM LTD
Revenue,Childrens Services,Children's & Education Services,Safeguarding Children/Young Peoples Svs,5105670169,25.04.2018,Children's office costs,Stationery,24.71,SUPPLIES TEAM LTD
Revenue,Childrens Services,Children's & Education Services,Safeguarding Children/Young Peoples Svs,5105670169,25.04.2018,Children's office costs,Stationery,1.55,SUPPLIES TEAM LTD
Revenue,Resources,Central Services,Central Services to the Public,5105670169,25.04.2018,Revenues & Benefits Operational Support,Stationery,38.02,SUPPLIES TEAM LTD
Revenue,Place,Housing Services,Homelessness,5105670169,25.04.2018,"Options,Prevention & Register Team",Office Equipment,24.73,SUPPLIES TEAM LTD
Revenue,Place,Highways and Transport Services,"Airports, Harbours & Toll Facilities",5105670169,25.04.2018,Ferry Operation,Stationery,20.00,SUPPLIES TEAM LTD
Revenue,Place,Highways and Transport Services,"Airports, Harbours & Toll Facilities",5105670169,25.04.2018,Ferry Operation,Stationery,34.46,SUPPLIES TEAM LTD
Revenue,Place,Planning services,Building Control,5105668904,13.04.2018,Building Control,Stationery,32.04,SUPPLIES TEAM LTD
Revenue,Place,Planning services,Building Control,5105668904,13.04.2018,Building Control,Stationery,3.96,SUPPLIES TEAM LTD
Revenue,Place,Planning services,Building Control,5105668904,13.04.2018,Building Control,Stationery,11.16,SUPPLIES TEAM LTD
Revenue,Place,Planning services,Building Control,5105668904,13.04.2018,Building Control,Stationery,0.70,SUPPLIES TEAM LTD
Revenue,Place,Planning services,Building Control,5105668910,27.04.2018,Building Control,Stationery,2.80,SUPPLIES TEAM LTD
Revenue,Place,Planning services,Building Control,5105668904,13.04.2018,Building Control,Stationery,4.02,SUPPLIES TEAM LTD
Revenue,Place,Planning services,Management & Support Services,5105668904,13.04.2018,Planning Management,Stationery,51.42,SUPPLIES TEAM LTD
Revenue,Place,Planning services,Management & Support Services,5105668904,13.04.2018,Planning Management,Stationery,1.06,SUPPLIES TEAM LTD
Revenue,Place,Planning services,Management & Support Services,5105668904,13.04.2018,Planning Management,Stationery,6.26,SUPPLIES TEAM LTD
Revenue,Place,Planning services,Management & Support Services,5105668904,13.04.2018,Planning Management,Stationery,4.94,SUPPLIES TEAM LTD
Revenue,Place,Planning services,Management & Support Services,5105668904,13.04.2018,Planning Management,Stationery,2.47,SUPPLIES TEAM LTD
Revenue,Resources,Central Services,Support Services,5105668904,13.04.2018,ICT CCR,Stationery,2.28,SUPPLIES TEAM LTD
Revenue,Resources,Central Services,Support Services,5105668904,13.04.2018,ICT CCR,Stationery,26.36,SUPPLIES TEAM LTD
Revenue,Resources,Central Services,Support Services,5105668904,13.04.2018,ICT CCR,Stationery,2.16,SUPPLIES TEAM LTD
Revenue,Place,Central Services,Central Services to the Public,5105668904,13.04.2018,Coroner,Stationery,34.28,SUPPLIES TEAM LTD
Revenue,Place,Central Services,Central Services to the Public,5105668904,13.04.2018,Coroner,Stationery,9.96,SUPPLIES TEAM LTD
Revenue,Place,Central Services,Central Services to the Public,5105668904,13.04.2018,"Registration Of Births,Deaths, Marriages",Stationery,19.34,SUPPLIES TEAM LTD
Revenue,Place,Planning services,Building Control,5105668904,13.04.2018,Building Control,Stationery,6.00,SUPPLIES TEAM LTD
Revenue,Adult Services,Adult Social Care,Commissioning & Service Delivery,5105668925,18.04.2018,Learning Disability Homes Management & Admin,Stationery,1.48,SUPPLIES TEAM LTD
Revenue,Adult Services,Adult Social Care,Commissioning & Service Delivery,5105668925,18.04.2018,Learning Disability Homes Management & Admin,Stationery,1.20,SUPPLIES TEAM LTD
Revenue,Adult Services,Adult Social Care,Commissioning & Service Delivery,5105668925,18.04.2018,Learning Disability Homes Management & Admin,Stationery,1.65,SUPPLIES TEAM LTD
Revenue,Adult Services,Adult Social Care,Commissioning & Service Delivery,5105668925,18.04.2018,Learning Disability Homes Management & Admin,Stationery,2.46,SUPPLIES TEAM LTD
Revenue,Adult Services,Adult Social Care,Commissioning & Service Delivery,5105668925,18.04.2018,Learning Disability Homes Management & Admin,Stationery,0.60,SUPPLIES TEAM LTD
Revenue,Adult Services,Adult Social Care,Commissioning & Service Delivery,5105668925,18.04.2018,Learning Disability Homes Management & Admin,Stationery,2.30,SUPPLIES TEAM LTD
Revenue,Adult Services,Adult Social Care,Commissioning & Service Delivery,5105668925,18.04.2018,Learning Disability Homes Management & Admin,Stationery,8.57,SUPPLIES TEAM LTD
Revenue,Adult Services,Adult Social Care,Commissioning & Service Delivery,5105668925,18.04.2018,Learning Disability Homes Management & Admin,Stationery,7.43,SUPPLIES TEAM LTD
Revenue,Adult Services,Adult Social Care,Commissioning & Service Delivery,5105668925,18.04.2018,Learning Disability Homes Management & Admin,Stationery,5.36,SUPPLIES TEAM LTD
Revenue,Adult Services,Adult Social Care,Commissioning & Service Delivery,5105668925,18.04.2018,Learning Disability Homes Management & Admin,Stationery,1.76,SUPPLIES TEAM LTD
Revenue,Adult Services,Adult Social Care,Commissioning & Service Delivery,5105668925,18.04.2018,Learning Disability Homes Management & Admin,Stationery,0.27,SUPPLIES TEAM LTD
Revenue,Adult Services,Adult Social Care,Commissioning & Service Delivery,5105668925,18.04.2018,Learning Disability Homes Management & Admin,Stationery,1.37,SUPPLIES TEAM LTD
Revenue,Adult Services,Adult Social Care,Commissioning & Service Delivery,5105668925,18.04.2018,Learning Disability Homes Management & Admin,Stationery,8.04,SUPPLIES TEAM LTD
Revenue,Childrens Services,Children's & Education Services,Other Education and Community Budget,5105670130,25.04.2018,Pupil Resources Business Support Team,Stationery,1.65,SUPPLIES TEAM LTD
Revenue,Childrens Services,Children's & Education Services,Safeguarding Children/Young Peoples Svs,5105670130,25.04.2018,Children's office costs,Stationery,17.14,SUPPLIES TEAM LTD
Revenue,Resources,Central Services,Support Services,5105670130,25.04.2018,Legal Services Section,Stationery,34.28,SUPPLIES TEAM LTD
Revenue,Childrens Services,Children's & Education Services,Safeguarding Children/Young Peoples Svs,5105670130,25.04.2018,Children's office costs,Stationery,25.71,SUPPLIES TEAM LTD
Revenue,Resources,Central Services,Support Services,5105670130,25.04.2018,Legal Services Section,Stationery,20.68,SUPPLIES TEAM LTD
Revenue,Resources,Central Services,Support Services,5105670130,25.04.2018,Legal Services Section,Stationery,5.40,SUPPLIES TEAM LTD
Revenue,Adult Services,Adult Social Care,Commissioning & Service Delivery,5105670125,25.04.2018,Adult Social Care Enterprise House,Stationery,4.30,SUPPLIES TEAM LTD
Revenue,Adult Services,Adult Social Care,Commissioning & Service Delivery,5105670125,25.04.2018,Adult Social Care Enterprise House,Stationery,17.14,SUPPLIES TEAM LTD
Revenue,Resources,Central Services,Support Services,5105670159,25.04.2018,Payments Social Care Team,Stationery,8.98,SUPPLIES TEAM LTD
Revenue,Childrens Services,Children's & Education Services,Children Looked After,5105667532,04.04.2018,Adoption Support Fund,Charges from Independent Providers,80.00,BARNARDO'S
Revenue,Childrens Services,Children's & Education Services,Children Looked After,5105667533,04.04.2018,Adoption Support Fund,Charges from Independent Providers,120.00,BARNARDO'S
Revenue,Childrens Services,Children's & Education Services,Family Support Services,5105668327,23.04.2018,Strengthening Families,Payment to Private Contractors,"73,000.00",BARNARDO'S
Revenue,Childrens Services,Children's & Education Services,Children Looked After,5105667536,04.04.2018,Adoption Support Fund,Charges from Independent Providers,70.00,BARNARDO'S
Revenue,Childrens Services,Children's & Education Services,Children Looked After,5105667697,11.04.2018,Adoption Support Fund,Charges from Independent Providers,120.00,BARNARDO'S
Revenue,Childrens Services,Children's & Education Services,Children Looked After,5105668176,06.04.2018,Adoption Support Fund,Charges from Independent Providers,160.00,BARNARDO'S
Revenue,Childrens Services,Children's & Education Services,Children Looked After,5105667536,04.04.2018,Adoption Support Fund,Charges from Independent Providers,210.00,BARNARDO'S
Revenue,Childrens Services,Children's & Education Services,Children Looked After,5105667535,04.04.2018,Adoption Support Fund,Charges from Independent Providers,280.00,BARNARDO'S
Revenue,Childrens Services,Children's & Education Services,Services for Young People,5105670056,25.04.2018,Resilience Around the Family Team,Training,20.00,BARNARDO'S
Revenue,Place,Cultural and Related Services,Culture and Heritage,5105670136,25.04.2018,Medina Theatre,Payment to Private Contractors,"4,000.00",BARRY COLLINGS ENTERTAINMENTS
Revenue,Resources,Central Services,Support Services,5105669900,23.04.2018,Staff Benefits,Payment to Private Contractors,5.00,BARTON PRIMARY & EARLY YEARS
Revenue,Adult Services,Adult Social Care,Learning Disab Supp (to be reallocated),5105668660,27.04.2018,Plean Dene,Operational Equipment,24.56,LAKE CLEANING & CATERING SUPPLIES
Revenue,Place,Cultural and Related Services,Recreation and Sport,5105668247,23.04.2018,The Heights,Consumable Cleaning Materials,103.30,LAKE CLEANING & CATERING SUPPLIES
Revenue,Place,Cultural and Related Services,Recreation and Sport,5105668535,25.04.2018,Medina Leisure Centre,Consumable Cleaning Materials,25.94,LAKE CLEANING & CATERING SUPPLIES
Revenue,Place,Cultural and Related Services,Recreation and Sport,5105668535,25.04.2018,Medina Leisure Centre,Consumable Cleaning Materials,8.45,LAKE CLEANING & CATERING SUPPLIES
Revenue,Place,Cultural and Related Services,Recreation and Sport,5105668535,25.04.2018,Medina Leisure Centre,Consumable Cleaning Materials,13.44,LAKE CLEANING & CATERING SUPPLIES
Revenue,Place,Cultural and Related Services,Recreation and Sport,5105668535,25.04.2018,Medina Leisure Centre,Consumable Cleaning Materials,20.76,LAKE CLEANING & CATERING SUPPLIES
Revenue,Place,Cultural and Related Services,Recreation and Sport,5105668535,25.04.2018,Medina Leisure Centre,Consumable Cleaning Materials,117.50,LAKE CLEANING & CATERING SUPPLIES
Revenue,Place,Cultural and Related Services,Recreation and Sport,5105668535,25.04.2018,Medina Leisure Centre,Consumable Cleaning Materials,10.42,LAKE CLEANING & CATERING SUPPLIES
Revenue,Place,Cultural and Related Services,Recreation and Sport,5105668535,25.04.2018,Medina Leisure Centre,Consumable Cleaning Materials,26.78,LAKE CLEANING & CATERING SUPPLIES
Revenue,Childrens Services,Children's & Education Services,Children Looked After,5105670547,30.04.2018,Beaulieu House,General Materials,103.73,LAKE CLEANING & CATERING SUPPLIES
Revenue,Childrens Services,Children's & Education Services,Children Looked After,5105670546,30.04.2018,Beaulieu House,General Materials,105.73,LAKE CLEANING & CATERING SUPPLIES
Revenue,Childrens Services,Children's & Education Services,Children Looked After,5105670476,27.04.2018,Beaulieu House,General Materials,15.97,LAKE CLEANING & CATERING SUPPLIES
Revenue,Place,Cultural and Related Services,Recreation and Sport,5105668420,23.04.2018,Beach huts - Colwell Bay,Advertising & Publicity,500.00,BEACON MEDIA LIMITED
Revenue,Adult Services,Adult Social Care,Support - Memory /Cognition-older people (65+),5105669168,18.04.2018,Memory & Cognition Nursing 65+,Charges from Independent Providers,"2,269.40",BEAUMONT LODGE LTD
Revenue,Place,Environmental & Regulatory Services,Regulatory Services,5105668990,27.04.2018,Environmental Health - Business Regulation Protection,Professional Services,150.00,BERRY ELECTRICAL LTD
Revenue,Place,Housing Services,Homelessness,5105668911,13.04.2018,B&B Properties,Accommodation Costs - Bed & Breakfast,"7,530.00",BERTRAM LODGE
Revenue,Adult Services,Adult Social Care,Learning Disab Supp (to be reallocated),5105667605,20.04.2018,31 Carter Avenue,Operational Equipment,183.45,BETA PAK LTD
Revenue,Adult Services,Adult Social Care,Learning Disab Supp (to be reallocated),5105668238,06.04.2018,40 Venner Avenue,Operational Equipment,10.34,BETA PAK LTD
Revenue,Adult Services,Adult Social Care,Learning Disab Supp (to be reallocated),5105668239,06.04.2018,40 Venner Avenue,Operational Equipment,310.58,BETA PAK LTD
Revenue,Adult Services,Adult Social Care,Learning Disab Supp (to be reallocated),5105668240,06.04.2018,40 Venner Avenue,Operational Equipment,-9.89,BETA PAK LTD
Revenue,Adult Services,Adult Social Care,Learning Disab Supp (to be reallocated),5105670493,27.04.2018,40 Venner Avenue,Operational Equipment,-37.38,BETA PAK LTD
Revenue,Adult Services,Adult Social Care,Learning Disab Supp (to be reallocated),5105668600,27.04.2018,The Laurels,Operational Equipment,325.58,BETA PAK LTD
Revenue,Adult Services,Adult Social Care,Learning Disab Supp (to be reallocated),5105667582,20.04.2018,Plean Dene,Operational Equipment,109.99,BETA PAK LTD
Revenue,Adult Services,Adult Social Care,Learning Disab Supp (to be reallocated),5105668461,23.04.2018,Saxonbury,Operational Equipment,17.88,BETA PAK LTD
Revenue,Adult Services,Adult Social Care,Learning Disab Supp (to be reallocated),5105668592,27.04.2018,Saxonbury,Operational Equipment,111.17,BETA PAK LTD
Revenue,Adult Services,Adult Social Care,Learning Disab Supp (to be reallocated),5105670498,27.04.2018,Saxonbury,Operational Equipment,-10.00,BETA PAK LTD
Revenue,Adult Services,Adult Social Care,Learning Disab Supp (to be reallocated),5105670505,27.04.2018,Saxonbury,Operational Equipment,-15.00,BETA PAK LTD
Revenue,Adult Services,Adult Social Care,Learning Disab Supp (to be reallocated),5105667600,20.04.2018,Seagulls,Operational Equipment,68.42,BETA PAK LTD
Revenue,Adult Services,Adult Social Care,Learning Disab Supp (to be reallocated),5105667955,11.04.2018,Seagulls,Operational Equipment,43.96,BETA PAK LTD
Revenue,Adult Services,Adult Social Care,Learning Disab Supp (to be reallocated),5105667556,20.04.2018,Westminster House,Operational Equipment,41.00,BETA PAK LTD
Revenue,Adult Services,Adult Social Care,Learning Disab Supp (to be reallocated),5105668290,06.04.2018,Westminster House,Operational Equipment,65.30,BETA PAK LTD
Revenue,Adult Services,Adult Social Care,Central Codes (to be reallocated),5105667555,13.04.2018,Adelaide Resource Centre,Consumable Cleaning Materials,4.44,BETA PAK LTD
Revenue,Adult Services,Adult Social Care,Central Codes (to be reallocated),5105668468,23.04.2018,Adelaide Resource Centre,Consumable Cleaning Materials,8.78,BETA PAK LTD
Revenue,Adult Services,Adult Social Care,Central Codes (to be reallocated),5105668546,27.04.2018,Adelaide Resource Centre,Consumable Cleaning Materials,119.88,BETA PAK LTD
Revenue,Adult Services,Adult Social Care,Central Codes (to be reallocated),5105668548,27.04.2018,Adelaide Resource Centre,Consumable Cleaning Materials,17.58,BETA PAK LTD
Revenue,Adult Services,Adult Social Care,Central Codes (to be reallocated),5105669433,20.04.2018,Adelaide Resource Centre,Consumable Cleaning Materials,221.19,BETA PAK LTD
Revenue,Adult Services,Adult Social Care,Central Codes (to be reallocated),5105669761,20.04.2018,Adelaide Resource Centre,Consumable Cleaning Materials,-234.66,BETA PAK LTD
Revenue,Adult Services,Adult Social Care,Central Codes (to be reallocated),5105669763,20.04.2018,Adelaide Resource Centre,Consumable Cleaning Materials,10.15,BETA PAK LTD
Revenue,Adult Services,Adult Social Care,Central Codes (to be reallocated),5105669765,20.04.2018,Adelaide Resource Centre,Consumable Cleaning Materials,3.32,BETA PAK LTD
Revenue,Place,Cultural and Related Services,Recreation and Sport,5105669952,25.04.2018,Medina Leisure Centre,Payment to Private Contractors,154.72,BETA PAK LTD
Revenue,Place,Cultural and Related Services,Recreation and Sport,5105670132,25.04.2018,Medina Leisure Centre,Payment to Private Contractors,-15.00,BETA PAK LTD
Revenue,Adult Services,Adult Social Care,Central Codes (to be reallocated),5105667701,11.04.2018,Gouldings Resource Centre,Catering Purchases,39.76,BETA PAK LTD
Revenue,Place,Cultural and Related Services,Culture and Heritage,5105667954,11.04.2018,Dinosaur Isle Museum (Sandown Geology),Operational Equipment,20.84,BETA PAK LTD
Revenue,Place,Cultural and Related Services,Culture and Heritage,5105667954,11.04.2018,Dinosaur Isle Museum (Sandown Geology),Operational Equipment,26.52,BETA PAK LTD
Revenue,Place,Cultural and Related Services,Culture and Heritage,5105667954,11.04.2018,Dinosaur Isle Museum (Sandown Geology),Operational Equipment,26.98,BETA PAK LTD
Revenue,Place,Cultural and Related Services,Culture and Heritage,5105667954,11.04.2018,Dinosaur Isle Museum (Sandown Geology),Operational Equipment,47.84,BETA PAK LTD
Revenue,Adult Services,Adult Social Care,Learning Disab Supp (to be reallocated),5105670399,27.04.2018,31 Carter Avenue,Operational Equipment,16.38,BETA PAK LTD
Revenue,Adult Services,Adult Social Care,Learning Disab Supp (to be reallocated),5105670415,27.04.2018,31 Carter Avenue,Operational Equipment,104.98,BETA PAK LTD
Revenue,Adult Services,Adult Social Care,Learning Disab Supp (to be reallocated),5105669096,25.04.2018,The Laurels,Operational Equipment,79.72,BETA PAK LTD
Revenue,Adult Services,Adult Social Care,Learning Disab Supp (to be reallocated),5105669095,18.04.2018,Plean Dene,Operational Equipment,72.08,BETA PAK LTD
Revenue,Adult Services,Adult Social Care,Learning Disab Supp (to be reallocated),5105669432,18.04.2018,Plean Dene,Operational Equipment,4.66,BETA PAK LTD
Revenue,Adult Services,Adult Social Care,Learning Disab Supp (to be reallocated),5105669474,20.04.2018,Plean Dene,Operational Equipment,91.46,BETA PAK LTD
Revenue,Adult Services,Adult Social Care,Learning Disab Supp (to be reallocated),5105670050,25.04.2018,Plean Dene,Operational Equipment,33.36,BETA PAK LTD
Revenue,Adult Services,Adult Social Care,Learning Disab Supp (to be reallocated),5105670158,25.04.2018,Plean Dene,Operational Equipment,15.39,BETA PAK LTD
Revenue,Adult Services,Adult Social Care,Learning Disab Supp (to be reallocated),5105669095,18.04.2018,Plean Dene,Operational Equipment,44.00,BETA PAK LTD
Revenue,Adult Services,Adult Social Care,Learning Disab Supp (to be reallocated),5105669436,18.04.2018,Saxonbury,Operational Equipment,39.96,BETA PAK LTD
Revenue,Adult Services,Adult Social Care,Learning Disab Supp (to be reallocated),5105669967,23.04.2018,Saxonbury,Operational Equipment,2.13,BETA PAK LTD
Revenue,Adult Services,Adult Social Care,Learning Disab Supp (to be reallocated),5105668975,30.04.2018,Westminster House,Operational Equipment,61.48,BETA PAK LTD
Revenue,Adult Services,Adult Social Care,Learning Disab Supp (to be reallocated),5105670054,25.04.2018,Westminster House,Operational Equipment,21.51,BETA PAK LTD
Revenue,Adult Services,Adult Social Care,Central Codes (to be reallocated),5105670423,27.04.2018,Adelaide Resource Centre,Consumable Cleaning Materials,9.32,BETA PAK LTD
Revenue,Place,Cultural and Related Services,Recreation and Sport,5105668173,20.04.2018,The Heights,Stock Purchases,80.76,3663 (BFS GROUP LTD)
Revenue,Place,Cultural and Related Services,Recreation and Sport,5105668173,20.04.2018,The Heights,Stock Purchases,41.96,3663 (BFS GROUP LTD)
Revenue,Place,Cultural and Related Services,Recreation and Sport,5105668204,20.04.2018,Westridge Squash Courts,Stock Purchases,62.93,3663 (BFS GROUP LTD)
Revenue,Place,Cultural and Related Services,Recreation and Sport,5105667695,06.04.2018,The Heights,Stock Purchases,168.91,3663 (BFS GROUP LTD)
Revenue,Place,Cultural and Related Services,Recreation and Sport,5105667696,06.04.2018,The Heights,Stock Purchases,284.70,3663 (BFS GROUP LTD)
Revenue,Place,Cultural and Related Services,Recreation and Sport,5105668216,20.04.2018,The Heights,Stock Purchases,129.46,3663 (BFS GROUP LTD)
Revenue,Adult Services,Adult Social Care,Central Codes (to be reallocated),5105667548,04.04.2018,Gouldings Resource Centre,Catering Purchases,272.76,3663 (BFS GROUP LTD)
Revenue,Adult Services,Adult Social Care,Central Codes (to be reallocated),5105667550,04.04.2018,Gouldings Resource Centre,Catering Purchases,337.26,3663 (BFS GROUP LTD)
Revenue,Adult Services,Adult Social Care,Central Codes (to be reallocated),5105668225,20.04.2018,Gouldings Resource Centre,Catering Purchases,347.55,3663 (BFS GROUP LTD)
Revenue,Adult Services,Adult Social Care,Central Codes (to be reallocated),5105667548,04.04.2018,Gouldings Resource Centre,Catering Purchases,22.76,3663 (BFS GROUP LTD)
Revenue,Adult Services,Adult Social Care,Central Codes (to be reallocated),5105667550,04.04.2018,Gouldings Resource Centre,Catering Purchases,18.48,3663 (BFS GROUP LTD)
Revenue,Adult Services,Adult Social Care,Central Codes (to be reallocated),5105668225,20.04.2018,Gouldings Resource Centre,Catering Purchases,4.36,3663 (BFS GROUP LTD)
Revenue,Adult Services,Adult Social Care,Central Codes (to be reallocated),5105668137,06.04.2018,Adelaide Resource Centre,Catering Purchases,-22.43,3663 (BFS GROUP LTD)
Revenue,Adult Services,Adult Social Care,Central Codes (to be reallocated),5105667734,04.04.2018,Adelaide Resource Centre,Catering Purchases,211.89,3663 (BFS GROUP LTD)
Revenue,Adult Services,Adult Social Care,Central Codes (to be reallocated),5105667753,04.04.2018,Adelaide Resource Centre,Catering Purchases,104.42,3663 (BFS GROUP LTD)
Revenue,Adult Services,Adult Social Care,Central Codes (to be reallocated),5105667765,04.04.2018,Adelaide Resource Centre,Catering Purchases,114.94,3663 (BFS GROUP LTD)
Revenue,Adult Services,Adult Social Care,Central Codes (to be reallocated),5105667734,04.04.2018,Adelaide Resource Centre,Catering Purchases,34.87,3663 (BFS GROUP LTD)
Revenue,Adult Services,Adult Social Care,Central Codes (to be reallocated),5105667765,04.04.2018,Adelaide Resource Centre,Catering Purchases,5.84,3663 (BFS GROUP LTD)
Revenue,Adult Services,Adult Social Care,Central Codes (to be reallocated),5105667945,04.04.2018,Adelaide Resource Centre,Catering Purchases,18.29,3663 (BFS GROUP LTD)
Revenue,Adult Services,Adult Social Care,Central Codes (to be reallocated),5105668409,11.04.2018,Adelaide Resource Centre,Catering Purchases,157.54,3663 (BFS GROUP LTD)
Revenue,Adult Services,Adult Social Care,Central Codes (to be reallocated),5105668413,11.04.2018,Adelaide Resource Centre,Catering Purchases,342.48,3663 (BFS GROUP LTD)
Revenue,Adult Services,Adult Social Care,Central Codes (to be reallocated),5105668414,11.04.2018,Adelaide Resource Centre,Catering Purchases,-18.29,3663 (BFS GROUP LTD)
Revenue,Adult Services,Adult Social Care,Central Codes (to be reallocated),5105668409,11.04.2018,Adelaide Resource Centre,Catering Purchases,2.95,3663 (BFS GROUP LTD)
Revenue,Adult Services,Adult Social Care,Central Codes (to be reallocated),5105668413,11.04.2018,Adelaide Resource Centre,Catering Purchases,51.35,3663 (BFS GROUP LTD)
Revenue,Adult Services,Adult Social Care,Central Codes (to be reallocated),5105670591,30.04.2018,Gouldings Resource Centre,Catering Purchases,411.99,3663 (BFS GROUP LTD)
Revenue,Adult Services,Adult Social Care,Central Codes (to be reallocated),5105670591,30.04.2018,Gouldings Resource Centre,Catering Purchases,4.36,3663 (BFS GROUP LTD)
Revenue,Adult Services,Adult Social Care,Central Codes (to be reallocated),5105668980,13.04.2018,Gouldings Resource Centre,Catering Purchases,397.75,3663 (BFS GROUP LTD)
Revenue,Adult Services,Adult Social Care,Central Codes (to be reallocated),5105668980,13.04.2018,Gouldings Resource Centre,Catering Purchases,11.43,3663 (BFS GROUP LTD)
Revenue,Place,Cultural and Related Services,Recreation and Sport,5105670447,27.04.2018,The Heights,Stock Purchases,40.10,3663 (BFS GROUP LTD)
Revenue,Place,Cultural and Related Services,Library Service,5105669475,20.04.2018,Public Libraries Central,Purchase of Books,"3,825.00",BIBLIOGRAPHIC DATA SERVICES LTD
Revenue,Adult Services,Adult Social Care,Learning Disab Supp (to be reallocated),5105669317,18.04.2018,31 Carter Avenue,"Refuse Collection, Disposal and Recycling Costs",115.75,BIFFA WASTE SERVICES LTD
Revenue,Adult Services,Adult Social Care,Learning Disab Supp (to be reallocated),5105669317,18.04.2018,40 Venner Avenue,"Refuse Collection, Disposal and Recycling Costs",115.75,BIFFA WASTE SERVICES LTD
Revenue,Adult Services,Adult Social Care,Learning Disab Supp (to be reallocated),5105669317,18.04.2018,Overbrook,"Refuse Collection, Disposal and Recycling Costs",116.90,BIFFA WASTE SERVICES LTD
Revenue,Adult Services,Adult Social Care,Learning Disab Supp (to be reallocated),5105669317,18.04.2018,Plean Dene,"Refuse Collection, Disposal and Recycling Costs",213.08,BIFFA WASTE SERVICES LTD
Revenue,Adult Services,Adult Social Care,Learning Disab Supp (to be reallocated),5105669317,18.04.2018,Saxonbury,"Refuse Collection, Disposal and Recycling Costs",110.25,BIFFA WASTE SERVICES LTD
Revenue,Adult Services,Adult Social Care,Learning Disab Supp (to be reallocated),5105669317,18.04.2018,Seagulls,"Refuse Collection, Disposal and Recycling Costs",115.75,BIFFA WASTE SERVICES LTD
Revenue,Adult Services,Adult Social Care,Learning Disab Supp (to be reallocated),5105669317,18.04.2018,The Laurels,"Refuse Collection, Disposal and Recycling Costs",122.75,BIFFA WASTE SERVICES LTD
Revenue,Regeneration,Central Services,Support Services,5105669317,18.04.2018,"Westridge, Ryde","Refuse Collection, Disposal and Recycling Costs",91.30,BIFFA WASTE SERVICES LTD
Revenue,Place,Cultural and Related Services,Recreation and Sport,5105669317,18.04.2018,Westridge Squash Courts,"Refuse Collection, Disposal and Recycling Costs",110.25,BIFFA WASTE SERVICES LTD
Revenue,Place,Cultural and Related Services,Library Service,5105669317,18.04.2018,Public Libraries Central,"Refuse Collection, Disposal and Recycling Costs",71.69,BIFFA WASTE SERVICES LTD
Revenue,Childrens Services,Children's & Education Services,Management & Support Services,5105669317,18.04.2018,Specialist Service Business Admin,"Refuse Collection, Disposal and Recycling Costs",220.50,BIFFA WASTE SERVICES LTD
Revenue,Adult Services,Adult Social Care,Central Codes (to be reallocated),5105669286,18.04.2018,Gouldings Resource Centre,"Refuse Collection, Disposal and Recycling Costs",127.20,BIFFA WASTE SERVICES LTD
Revenue,Adult Services,Adult Social Care,Central Codes (to be reallocated),5105669316,18.04.2018,Gouldings Resource Centre,"Refuse Collection, Disposal and Recycling Costs",382.80,BIFFA WASTE SERVICES LTD
Revenue,Place,Environmental & Regulatory Services,"Cemetery, Cremation & Mortuary Services",5105669317,18.04.2018,Crematorium,"Refuse Collection, Disposal and Recycling Costs",213.50,BIFFA WASTE SERVICES LTD
Revenue,Place,Cultural and Related Services,Culture and Heritage,5105669317,18.04.2018,Dinosaur Isle Museum (Sandown Geology),"Refuse Collection, Disposal and Recycling Costs",62.55,BIFFA WASTE SERVICES LTD
Revenue,Place,Cultural and Related Services,Open Spaces,5105669317,18.04.2018,Fort Victoria,"Refuse Collection, Disposal and Recycling Costs",172.20,BIFFA WASTE SERVICES LTD
Revenue,Place,Fire & Rescue Services,Fire fighting and Rescue Operations,5105669317,18.04.2018,Fire Operations,"Refuse Collection, Disposal and Recycling Costs",458.60,BIFFA WASTE SERVICES LTD
Revenue,Place,Highways and Transport Services,"Airports, Harbours & Toll Facilities",5105669317,18.04.2018,Ferry Management,"Refuse Collection, Disposal and Recycling Costs",115.75,BIFFA WASTE SERVICES LTD
Revenue,Childrens Services,Children's & Education Services,Children Looked After,5105669317,18.04.2018,Beaulieu House,"Refuse Collection, Disposal and Recycling Costs",245.52,BIFFA WASTE SERVICES LTD
Revenue,Regeneration,Central Services,Support Services,5105669317,18.04.2018,"Jubilee Stores, Newport","Refuse Collection, Disposal and Recycling Costs",115.75,BIFFA WASTE SERVICES LTD
Revenue,Place,Cultural and Related Services,Recreation and Sport,5105669317,18.04.2018,Medina Leisure Centre,"Refuse Collection, Disposal and Recycling Costs",403.90,BIFFA WASTE SERVICES LTD
Revenue,Place,Cultural and Related Services,Recreation and Sport,5105669317,18.04.2018,Seaclose Amusements,"Refuse Collection, Disposal and Recycling Costs",199.85,BIFFA WASTE SERVICES LTD
Revenue,Place,Cultural and Related Services,Recreation and Sport,5105669317,18.04.2018,Ryde Harbour,"Refuse Collection, Disposal and Recycling Costs",55.30,BIFFA WASTE SERVICES LTD
Revenue,Regeneration,Central Services,Support Services,5105669317,18.04.2018,"Civic Centre,Sandown","Refuse Collection, Disposal and Recycling Costs",195.60,BIFFA WASTE SERVICES LTD
Revenue,Regeneration,Central Services,Support Services,5105669317,18.04.2018,"Enterprise House, Newport","Refuse Collection, Disposal and Recycling Costs",213.50,BIFFA WASTE SERVICES LTD
Revenue,Childrens Services,Children's & Education Services,Other Education and Community Budget,5105669317,18.04.2018,SEND Independent Advice & Support,"Refuse Collection, Disposal and Recycling Costs",47.00,BIFFA WASTE SERVICES LTD
Revenue,Place,Cultural and Related Services,Recreation and Sport,5105669317,18.04.2018,The Heights,"Refuse Collection, Disposal and Recycling Costs",361.20,BIFFA WASTE SERVICES LTD
Revenue,Place,Highways and Transport Services,"Airports, Harbours & Toll Facilities",5105669317,18.04.2018,Newport Harbour Account,"Refuse Collection, Disposal and Recycling Costs",471.08,BIFFA WASTE SERVICES LTD
Revenue,Place,Highways and Transport Services,"Airports, Harbours & Toll Facilities",5105669317,18.04.2018,Newport Harbour Account,"Refuse Collection, Disposal and Recycling Costs",213.08,BIFFA WASTE SERVICES LTD
Revenue,Adult Services,Adult Social Care,Assistive Equipment & Technology,5105669317,18.04.2018,Community Equipment Store,"Refuse Collection, Disposal and Recycling Costs",144.20,BIFFA WASTE SERVICES LTD
Revenue,Regeneration,Central Services,Support Services,5105669317,18.04.2018,17 Fairlee Road,"Refuse Collection, Disposal and Recycling Costs",369.00,BIFFA WASTE SERVICES LTD
Revenue,Adult Services,Adult Social Care,Commissioning & Service Delivery,5105669317,18.04.2018,Stores Adult Social Care,"Refuse Collection, Disposal and Recycling Costs",16.31,BIFFA WASTE SERVICES LTD
Revenue,Resources,Central Services,Support Services,5105669317,18.04.2018,Corporate Stores,"Refuse Collection, Disposal and Recycling Costs",162.12,BIFFA WASTE SERVICES LTD
Revenue,Adult Services,Adult Social Care,Central Codes (to be reallocated),5105669317,18.04.2018,Mental Health Day Services,"Refuse Collection, Disposal and Recycling Costs",48.30,BIFFA WASTE SERVICES LTD
Revenue,Place,Environmental & Regulatory Services,Waste Disposal,5105670467,27.04.2018,Lynnbottom Leachate Treatment Works,Payment to Private Contractors,"5,447.20",BIFFA WASTE SERVICES LTD
Revenue,Place,Environmental & Regulatory Services,Waste Disposal,5105670467,27.04.2018,Lynnbottom Leachate Treatment Works,Payment to Private Contractors,438.42,BIFFA WASTE SERVICES LTD
Revenue,Childrens Services,Children's & Education Services,Children Looked After,5105669601,20.04.2018,Leaving Care Costs,Support Children,401.00,REDACTED PERSONAL DATA
Revenue,Resources,Central Services,Support Services,5105669893,23.04.2018,Staff Benefits,Payment to Private Contractors,243.00,BLACKBERRY LANE PRE-SCHOOL
Revenue,Resources,Central Services,Support Services,5105669893,23.04.2018,Staff Benefits,Payment to Private Contractors,175.00,BLACKBERRY LANE PRE-SCHOOL
Revenue,Place,Cultural and Related Services,Recreation and Sport,5105668293,06.04.2018,The Heights,Operational Equipment,179.85,BLITZ CORPORATION LTD
Revenue,Childrens Services,Children's & Education Services,Children Looked After,5105667659,06.04.2018,Purchased Fostering,Charges from Independent Providers,"3,485.02",BLUE SKY FOSTERING LTD
Revenue,Childrens Services,Children's & Education Services,Children Looked After,5105668559,27.04.2018,Beaulieu House,Operational Equipment,38.30,BOC LTD
Revenue,Childrens Services,Children's & Education Services,Family Support Services,5105668352,11.04.2018,Short Breaks,Charges from Independent Providers,395.83,BODSTER EQUINE ASSISTED LEARN CIC
Revenue,Place,Cultural and Related Services,Library Service,5105668596,23.04.2018,Public Libraries Central,Purchase of Books,371.17,BOLINDA UK LTD
Revenue,Place,Fire & Rescue Services,Fire fighting and Rescue Operations,5105667567,25.04.2018,Fire Fighters Salaries,Medical Fees and Staff Welfare,18.00,BOLLE SAFETY
Revenue,Place,Fire & Rescue Services,Fire fighting and Rescue Operations,5105667881,27.04.2018,Fire Fighters Salaries,Medical Fees and Staff Welfare,18.00,BOLLE SAFETY
Revenue,Place,Fire & Rescue Services,Fire fighting and Rescue Operations,5105667881,27.04.2018,Fire Fighters Salaries,Medical Fees and Staff Welfare,15.00,BOLLE SAFETY
Revenue,Place,Fire & Rescue Services,Fire fighting and Rescue Operations,5105667881,27.04.2018,Fire Fighters Salaries,Medical Fees and Staff Welfare,38.19,BOLLE SAFETY
Revenue,Place,Fire & Rescue Services,Fire fighting and Rescue Operations,5105667771,26.04.2018,Fire Fighters Salaries,Medical Fees and Staff Welfare,18.00,BOLLE SAFETY
Revenue,Place,Fire & Rescue Services,Fire fighting and Rescue Operations,5105670431,26.04.2018,Fire Fighters Salaries,Medical Fees and Staff Welfare,-18.00,BOLLE SAFETY
Revenue,Place,Fire & Rescue Services,Fire fighting and Rescue Operations,5105670433,27.04.2018,Fire Fighters Salaries,Medical Fees and Staff Welfare,18.00,BOLLE SAFETY
Revenue,Place,Fire & Rescue Services,Fire fighting and Rescue Operations,5105667771,26.04.2018,Fire Fighters Salaries,Medical Fees and Staff Welfare,15.00,BOLLE SAFETY
Revenue,Place,Fire & Rescue Services,Fire fighting and Rescue Operations,5105670431,26.04.2018,Fire Fighters Salaries,Medical Fees and Staff Welfare,-15.00,BOLLE SAFETY
Revenue,Place,Fire & Rescue Services,Fire fighting and Rescue Operations,5105670433,27.04.2018,Fire Fighters Salaries,Medical Fees and Staff Welfare,15.00,BOLLE SAFETY
Revenue,Place,Fire & Rescue Services,Fire fighting and Rescue Operations,5105667771,26.04.2018,Fire Fighters Salaries,Medical Fees and Staff Welfare,38.19,BOLLE SAFETY
Revenue,Place,Fire & Rescue Services,Fire fighting and Rescue Operations,5105670431,26.04.2018,Fire Fighters Salaries,Medical Fees and Staff Welfare,-38.19,BOLLE SAFETY
Revenue,Place,Fire & Rescue Services,Fire fighting and Rescue Operations,5105670433,27.04.2018,Fire Fighters Salaries,Medical Fees and Staff Welfare,38.19,BOLLE SAFETY
Revenue,Place,Fire & Rescue Services,Fire fighting and Rescue Operations,5105667772,27.04.2018,Fire Fighters Salaries,Medical Fees and Staff Welfare,18.00,BOLLE SAFETY
Revenue,Place,Fire & Rescue Services,Fire fighting and Rescue Operations,5105667772,27.04.2018,Fire Fighters Salaries,Medical Fees and Staff Welfare,15.00,BOLLE SAFETY
Revenue,Place,Fire & Rescue Services,Fire fighting and Rescue Operations,5105667772,27.04.2018,Fire Fighters Salaries,Medical Fees and Staff Welfare,38.19,BOLLE SAFETY
Revenue,Adult Services,Adult Social Care,Learning Disab Supp (to be reallocated),5105667756,11.04.2018,40 Venner Avenue,Catering Purchases,9.63,BOOKER CASH & CARRY LTD
Revenue,Adult Services,Adult Social Care,Learning Disab Supp (to be reallocated),5105668465,11.04.2018,40 Venner Avenue,Catering Purchases,7.00,BOOKER CASH & CARRY LTD
Revenue,Adult Services,Adult Social Care,Learning Disab Supp (to be reallocated),5105669342,18.04.2018,40 Venner Avenue,Catering Purchases,10.19,BOOKER CASH & CARRY LTD
Revenue,Adult Services,Adult Social Care,Learning Disab Supp (to be reallocated),5105667680,04.04.2018,Plean Dene,Catering Purchases,10.44,BOOKER CASH & CARRY LTD
Revenue,Adult Services,Adult Social Care,Learning Disab Supp (to be reallocated),5105667757,11.04.2018,Plean Dene,Catering Purchases,2.99,BOOKER CASH & CARRY LTD
Revenue,Adult Services,Adult Social Care,Learning Disab Supp (to be reallocated),5105668139,20.04.2018,Plean Dene,Catering Purchases,157.45,BOOKER CASH & CARRY LTD
Revenue,Adult Services,Adult Social Care,Learning Disab Supp (to be reallocated),5105668149,06.04.2018,Plean Dene,Catering Purchases,29.98,BOOKER CASH & CARRY LTD
Revenue,Adult Services,Adult Social Care,Learning Disab Supp (to be reallocated),5105668462,11.04.2018,Plean Dene,Catering Purchases,14.76,BOOKER CASH & CARRY LTD
Revenue,Adult Services,Adult Social Care,Learning Disab Supp (to be reallocated),5105668464,11.04.2018,Plean Dene,Catering Purchases,16.18,BOOKER CASH & CARRY LTD
Revenue,Adult Services,Adult Social Care,Learning Disab Supp (to be reallocated),5105668947,18.04.2018,Plean Dene,Catering Purchases,2.99,BOOKER CASH & CARRY LTD
Revenue,Adult Services,Adult Social Care,Learning Disab Supp (to be reallocated),5105669431,18.04.2018,Plean Dene,Catering Purchases,165.33,BOOKER CASH & CARRY LTD
Revenue,Adult Services,Adult Social Care,Learning Disab Supp (to be reallocated),5105669435,18.04.2018,Plean Dene,Catering Purchases,1.49,BOOKER CASH & CARRY LTD
Revenue,Adult Services,Adult Social Care,Learning Disab Supp (to be reallocated),5105668139,20.04.2018,Plean Dene,Catering Purchases,15.96,BOOKER CASH & CARRY LTD
Revenue,Adult Services,Adult Social Care,Learning Disab Supp (to be reallocated),5105669431,18.04.2018,Plean Dene,Catering Purchases,31.95,BOOKER CASH & CARRY LTD
Revenue,Adult Services,Adult Social Care,Learning Disab Supp (to be reallocated),5105669435,18.04.2018,Plean Dene,Catering Purchases,2.58,BOOKER CASH & CARRY LTD
Revenue,Adult Services,Adult Social Care,Learning Disab Supp (to be reallocated),5105668719,27.04.2018,Plean Dene,Catering Purchases,27.36,BOOKER CASH & CARRY LTD
Revenue,Adult Services,Adult Social Care,Learning Disab Supp (to be reallocated),5105668724,30.04.2018,Plean Dene,Catering Purchases,16.80,BOOKER CASH & CARRY LTD
Revenue,Adult Services,Adult Social Care,Learning Disab Supp (to be reallocated),5105669360,30.04.2018,Plean Dene,Catering Purchases,27.38,BOOKER CASH & CARRY LTD
Revenue,Adult Services,Adult Social Care,Learning Disab Supp (to be reallocated),5105669365,30.04.2018,Plean Dene,Catering Purchases,20.05,BOOKER CASH & CARRY LTD
Revenue,Adult Services,Adult Social Care,Learning Disab Supp (to be reallocated),5105669370,30.04.2018,Plean Dene,Catering Purchases,145.87,BOOKER CASH & CARRY LTD
Revenue,Adult Services,Adult Social Care,Learning Disab Supp (to be reallocated),5105669815,20.04.2018,Plean Dene,Catering Purchases,10.45,BOOKER CASH & CARRY LTD
Revenue,Adult Services,Adult Social Care,Learning Disab Supp (to be reallocated),5105669817,20.04.2018,Plean Dene,Catering Purchases,173.26,BOOKER CASH & CARRY LTD
Revenue,Adult Services,Adult Social Care,Learning Disab Supp (to be reallocated),5105668721,30.04.2018,Plean Dene,Catering Purchases,8.38,BOOKER CASH & CARRY LTD
Revenue,Adult Services,Adult Social Care,Learning Disab Supp (to be reallocated),5105669370,30.04.2018,Plean Dene,Catering Purchases,6.99,BOOKER CASH & CARRY LTD
Revenue,Adult Services,Adult Social Care,Learning Disab Supp (to be reallocated),5105669817,20.04.2018,Plean Dene,Catering Purchases,26.12,BOOKER CASH & CARRY LTD
Revenue,Public Health,Public Health,Sexual Health,5105669807,20.04.2018,Contraception,Payment to Private Contractors,21.50,BOOTS UK LTD
Revenue,Public Health,Public Health,Sexual Health,5105669807,20.04.2018,Contraception,Payment to Private Contractors,14.05,BOOTS UK LTD
Revenue,Public Health,Public Health,Substance Misuse,5105669807,20.04.2018,Drug Misuse Adult- Treatment,Payment to Private Contractors,56.00,BOOTS UK LTD
Revenue,Public Health,Public Health,Substance Misuse,5105669807,20.04.2018,Drug Misuse Adult- Treatment,Payment to Private Contractors,202.00,BOOTS UK LTD
Revenue,Childrens Services,Children's & Education Services,Family Support Services,5105667763,18.04.2018,S17 Child Protection,Professional Services,490.44,BOSTICO INTERNATIONAL
Revenue,Childrens Services,Children's & Education Services,Family Support Services,5105667656,18.04.2018,S17 Child Protection,Professional Services,617.92,BOSTICO INTERNATIONAL
Revenue,Childrens Services,Children's & Education Services,Family Support Services,5105670119,30.04.2018,S17 Child Protection,Professional Services,204.12,BOSTICO INTERNATIONAL
Revenue,Childrens Services,Children's & Education Services,Children Looked After,5105667700,11.04.2018,Adoption Costs,Payments to Other Local Authorities,"18,000.00",BOURNEMOUTH BOROUGH COUNCIL
Revenue,Childrens Services,Children's & Education Services,Children Looked After,5105667699,11.04.2018,Adoption Costs,Payments to Other Local Authorities,"18,000.00",BOURNEMOUTH BOROUGH COUNCIL
Revenue,Resources,Central Services,Support Services,5105669890,23.04.2018,Staff Benefits,Payment to Private Contractors,243.00,BRADING PRIMARY SCHOOL
Revenue,Place,Housing Services,Homelessness,5105669878,23.04.2018,Leaseholds by LA,Accommodation Costs - Leaseholder Payments,746.81,BRAMBLE LETTINGS
Revenue,Place,Housing Services,Homelessness,5105669878,23.04.2018,Leaseholds by LA,Accommodation Costs - Leaseholder Payments,746.81,BRAMBLE LETTINGS
Revenue,Place,Housing Services,Homelessness,5105669878,23.04.2018,Leaseholds by LA,Accommodation Costs - Leaseholder Payments,746.81,BRAMBLE LETTINGS
Revenue,Place,Housing Services,Homelessness,5105669878,23.04.2018,Leaseholds by LA,Accommodation Costs - Leaseholder Payments,746.81,BRAMBLE LETTINGS
Revenue,Place,Housing Services,Homelessness,5105669878,23.04.2018,Leaseholds by LA,Accommodation Costs - Leaseholder Payments,746.81,BRAMBLE LETTINGS
Revenue,Place,Housing Services,Homelessness,5105669878,23.04.2018,Leaseholds by LA,Accommodation Costs - Leaseholder Payments,588.38,BRAMBLE LETTINGS
Revenue,Place,Housing Services,Homelessness,5105669878,23.04.2018,Leaseholds by LA,Accommodation Costs - Leaseholder Payments,588.38,BRAMBLE LETTINGS
Revenue,Place,Housing Services,Homelessness,5105669878,23.04.2018,Leaseholds by LA,Accommodation Costs - Leaseholder Payments,588.38,BRAMBLE LETTINGS
Revenue,Place,Housing Services,Homelessness,5105669878,23.04.2018,Leaseholds by LA,Accommodation Costs - Leaseholder Payments,588.38,BRAMBLE LETTINGS
Revenue,Place,Housing Services,Homelessness,5105669878,23.04.2018,Leaseholds by LA,Accommodation Costs - Leaseholder Payments,588.38,BRAMBLE LETTINGS
Revenue,Place,Housing Services,Homelessness,5105669878,23.04.2018,Leaseholds by LA,Accommodation Costs - Leaseholder Payments,746.81,BRAMBLE LETTINGS
Revenue,Place,Housing Services,Homelessness,5105669878,23.04.2018,Leaseholds by LA,Accommodation Costs - Leaseholder Payments,588.38,BRAMBLE LETTINGS
Revenue,Place,Housing Services,Homelessness,5105669878,23.04.2018,Leaseholds by LA,Accommodation Costs - Leaseholder Payments,746.81,BRAMBLE LETTINGS
Revenue,Place,Housing Services,Homelessness,5105669878,23.04.2018,Leaseholds by LA,Accommodation Costs - Leaseholder Payments,769.43,BRAMBLE LETTINGS
Revenue,Place,Housing Services,Homelessness,5105669878,23.04.2018,Leaseholds by LA,Accommodation Costs - Leaseholder Payments,746.81,BRAMBLE LETTINGS
Revenue,Place,Housing Services,Homelessness,5105669878,23.04.2018,Leaseholds by LA,Accommodation Costs - Leaseholder Payments,746.81,BRAMBLE LETTINGS
Revenue,Place,Housing Services,Homelessness,5105669878,23.04.2018,Leaseholds by LA,Accommodation Costs - Leaseholder Payments,746.81,BRAMBLE LETTINGS
Revenue,Place,Housing Services,Homelessness,5105669878,23.04.2018,Leaseholds by LA,Accommodation Costs - Leaseholder Payments,746.81,BRAMBLE LETTINGS
Revenue,Place,Housing Services,Homelessness,5105669878,23.04.2018,Leaseholds by LA,Accommodation Costs - Leaseholder Payments,746.81,BRAMBLE LETTINGS
Revenue,Place,Housing Services,Homelessness,5105669878,23.04.2018,Leaseholds by LA,Accommodation Costs - Leaseholder Payments,746.81,BRAMBLE LETTINGS
Revenue,Place,Housing Services,Homelessness,5105669878,23.04.2018,Leaseholds by LA,Accommodation Costs - Leaseholder Payments,746.81,BRAMBLE LETTINGS
Revenue,Place,Housing Services,Homelessness,5105669878,23.04.2018,Leaseholds by LA,Accommodation Costs - Leaseholder Payments,746.81,BRAMBLE LETTINGS
Revenue,Place,Housing Services,Homelessness,5105669878,23.04.2018,Leaseholds by LA,Accommodation Costs - Leaseholder Payments,281.66,BRAMBLE LETTINGS
Revenue,Place,Housing Services,Homelessness,5105669878,23.04.2018,Leaseholds by LA,Accommodation Costs - Leaseholder Payments,216.66,BRAMBLE LETTINGS
Revenue,Childrens Services,Children's & Education Services,Services for Young People,5105667935,06.04.2018,Youth Commissioning,Payments to Voluntary and Other Associations,"1,629.00",BREAKOUT
Revenue,Childrens Services,Children's & Education Services,Services for Young People,5105668348,11.04.2018,Youth Commissioning,Payments to Voluntary and Other Associations,"1,629.00",BREAKOUT
Revenue,Childrens Services,Children's & Education Services,Services for Young People,5105668349,11.04.2018,Youth Commissioning,Payments to Voluntary and Other Associations,"1,629.00",BREAKOUT
Revenue,Childrens Services,Children's & Education Services,Family Support Services,5105667920,06.04.2018,Short Breaks,Charges from Independent Providers,"1,000.00",BREAKOUT
Revenue,Place,Cultural and Related Services,Library Service,5105668943,13.04.2018,Public Libraries Central,Purchase of Books,"4,040.00",BRIDGEALL LIBRARIES LTD
Revenue,Place,Environmental & Regulatory Services,(Street) Cleansing (not highways),5105670417,27.04.2018,Beach Cleaning,Beach Cleansing Contractors,"1,140.00",BRIGHSTONE LANDSCAPING LTD
Revenue,Place,Highways and Transport Services,"Airports, Harbours & Toll Facilities",5105668504,11.04.2018,Newport Harbour Account,Payment to Private Contractors,140.00,BRIGHSTONE LANDSCAPING LTD
Revenue,Place,Cultural and Related Services,Recreation and Sport,5105669296,18.04.2018,Slipways & Steps (Beaches),Payment to Private Contractors,129.85,BRIGHSTONE LANDSCAPING LTD
Revenue,Place,Cultural and Related Services,Open Spaces,5105669296,18.04.2018,John O�Conner Grounds Maintenance Contract,Payment to Private Contractors,60.27,BRIGHSTONE LANDSCAPING LTD
Revenue,Place,Environmental & Regulatory Services,(Street) Cleansing (not highways),5105669296,18.04.2018,Beach Cleaning,Payment to Private Contractors,54.88,BRIGHSTONE LANDSCAPING LTD
Revenue,Place,Cultural and Related Services,Recreation and Sport,5105667796,04.04.2018,Beach Safety & Inspection / Beach Awards,Payment to Private Contractors,119.96,BRIGHSTONE LANDSCAPING LTD
Revenue,Place,Environmental & Regulatory Services,(Street) Cleansing (not highways),5105667796,04.04.2018,Beach Cleaning,Payment to Private Contractors,45.05,BRIGHSTONE LANDSCAPING LTD
Revenue,Place,Cultural and Related Services,Open Spaces,5105667795,04.04.2018,Other Grounds Maintenance,Payment to Private Contractors,178.00,BRIGHSTONE LANDSCAPING LTD
Revenue,Place,Cultural and Related Services,Open Spaces,5105669715,20.04.2018,Other Grounds Maintenance,Payment to Private Contractors,"1,198.00",BRIGHSTONE LANDSCAPING LTD
Revenue,Place,Cultural and Related Services,Recreation and Sport,5105669005,13.04.2018,Slipways & Steps (Beaches),Payment to Private Contractors,170.34,BRIGHSTONE LANDSCAPING LTD
Revenue,Place,Cultural and Related Services,Recreation and Sport,5105669005,13.04.2018,Slipways & Steps (Beaches),Payment to Private Contractors,234.72,BRIGHSTONE LANDSCAPING LTD
Revenue,Place,Cultural and Related Services,Recreation and Sport,5105669005,13.04.2018,Slipways & Steps (Beaches),Payment to Private Contractors,145.07,BRIGHSTONE LANDSCAPING LTD
Revenue,Place,Cultural and Related Services,Recreation and Sport,5105669005,13.04.2018,Slipways & Steps (Beaches),Payment to Private Contractors,264.88,BRIGHSTONE LANDSCAPING LTD
Revenue,Place,Cultural and Related Services,Open Spaces,5105668502,11.04.2018,Public Seats  (incl.Dedicated Seats),Payment to Private Contractors,350.00,BRIGHSTONE LANDSCAPING LTD
Revenue,Place,Environmental & Regulatory Services,Coast Protection,5105668371,11.04.2018,Coast Protection,Payment to Private Contractors,160.00,BRIGHSTONE LANDSCAPING LTD
Revenue,Place,Environmental & Regulatory Services,Coast Protection,5105670410,27.04.2018,Coast Protection,Payment to Private Contractors,950.00,BRIGHSTONE LANDSCAPING LTD
Revenue,Place,Cultural and Related Services,Recreation and Sport,5105668503,11.04.2018,Beach Safety & Inspection / Beach Awards,Payment to Private Contractors,95.00,BRIGHSTONE LANDSCAPING LTD
Revenue,Place,Environmental & Regulatory Services,(Street) Cleansing (not highways),5105669295,18.04.2018,Beach Cleaning,Payment to Private Contractors,280.00,BRIGHSTONE LANDSCAPING LTD
Revenue,Place,Cultural and Related Services,Open Spaces,5105669713,20.04.2018,John O�Conner Grounds Maintenance Contract,Payment to Private Contractors,450.00,BRIGHSTONE LANDSCAPING LTD
Revenue,Place,Cultural and Related Services,Open Spaces,5105670630,30.04.2018,Public Seats  (incl.Dedicated Seats),Payment to Private Contractors,60.00,BRIGHSTONE LANDSCAPING LTD
Revenue,Place,Environmental & Regulatory Services,Coast Protection,5105670408,27.04.2018,Coast Protection,Payment to Private Contractors,160.00,BRIGHSTONE LANDSCAPING LTD
Revenue,Place,Cultural and Related Services,Open Spaces,5105670416,27.04.2018,Allotments,Payment to Private Contractors,"1,560.00",BRIGHSTONE LANDSCAPING LTD
Revenue,Place,Cultural and Related Services,Open Spaces,5105670418,27.04.2018,Public Shelters - Ryde,Payment to Private Contractors,65.00,BRIGHSTONE LANDSCAPING LTD
Revenue,Place,Cultural and Related Services,Recreation and Sport,5105670631,30.04.2018,Beach Safety & Inspection / Beach Awards,Payment to Private Contractors,230.00,BRIGHSTONE LANDSCAPING LTD
Revenue,Childrens Services,Children's & Education Services,Other Education and Community Budget,5105668617,13.04.2018,Adult Community Learning,Licences,45.00,BRITISH COMPUTER SOCIETY
Revenue,Childrens Services,Children's & Education Services,Other Education and Community Budget,5105668617,13.04.2018,Adult Community Learning,Licences,30.00,BRITISH COMPUTER SOCIETY
Revenue,Childrens Services,Children's & Education Services,Other Education and Community Budget,5105668617,13.04.2018,Adult Community Learning,Licences,23.00,BRITISH COMPUTER SOCIETY
Revenue,Childrens Services,Children's & Education Services,Other Education and Community Budget,5105668617,13.04.2018,Adult Community Learning,Licences,750.00,BRITISH COMPUTER SOCIETY
Revenue,Place,Cultural and Related Services,Culture and Heritage,5105670046,25.04.2018,Dinosaur Isle Museum (Sandown Geology),Stock Purchases,"3,480.95",BRITISH FOSSILS/GIFTSTONES LIMITED
Revenue,Childrens Services,Central Services,Support Services,5105670076,25.04.2018,Youth Council,Professional Subscriptions,300.00,BRITISH YOUTH COUNCIL
Revenue,Adult Services,Adult Social Care,Learning Disability Suppt-adults (18-64),5105669114,18.04.2018,Learning Disability Residential 18-64,Charges from Independent Providers,"6,840.12",BROADHAM CARE LTD
Revenue,Adult Services,Adult Social Care,Physical Support - older people (65+),5105669159,18.04.2018,Physical Support Residential 65+,Charges from Independent Providers,"2,342.48",BUCKLAND CARE LTD
Revenue,Adult Services,Adult Social Care,Support - Memory /Cognition-older people (65+),5105669159,18.04.2018,Memory & Cognition Residential 65+,Charges from Independent Providers,"2,342.48",BUCKLAND CARE LTD
Revenue,Adult Services,Adult Social Care,Physical Support - older people (65+),5105669159,18.04.2018,Physical Support Residential 65+,Charges from Independent Providers,"1,902.60",BUCKLAND CARE LTD
Revenue,Adult Services,Adult Social Care,Support - Memory /Cognition-older people (65+),5105669159,18.04.2018,Memory & Cognition Residential 65+,Charges from Independent Providers,"1,992.48",BUCKLAND CARE LTD
Revenue,Adult Services,Adult Social Care,Support - Memory /Cognition-older people (65+),5105669159,18.04.2018,Memory & Cognition Residential 65+,Charges from Independent Providers,"1,992.48",BUCKLAND CARE LTD
Revenue,Adult Services,Adult Social Care,Physical Support - older people (65+),5105669159,18.04.2018,Physical Support Residential 65+,Charges from Independent Providers,"1,992.48",BUCKLAND CARE LTD
Revenue,Adult Services,Adult Social Care,Physical Support - older people (65+),5105669159,18.04.2018,Physical Support Residential 65+,Charges from Independent Providers,"2,342.48",BUCKLAND CARE LTD
Revenue,Adult Services,Adult Social Care,Physical Support - older people (65+),5105669159,18.04.2018,Physical Support Residential 65+,Charges from Independent Providers,"2,342.48",BUCKLAND CARE LTD
Revenue,Adult Services,Adult Social Care,Support - Memory /Cognition-older people (65+),5105669159,18.04.2018,Memory & Cognition Residential 65+,Charges from Independent Providers,"2,342.48",BUCKLAND CARE LTD
Revenue,Adult Services,Adult Social Care,Sensory Support - older people (65+),5105669159,18.04.2018,Sensory Support Residential 65+,Charges from Independent Providers,"1,902.60",BUCKLAND CARE LTD
Revenue,Adult Services,Adult Social Care,Physical Support - older people (65+),5105669159,18.04.2018,Physical Support Residential 65+,Charges from Independent Providers,"1,992.48",BUCKLAND CARE LTD
Revenue,Adult Services,Adult Social Care,Physical Support - adults (18-64),5105669159,18.04.2018,Physical Support Residential 18-64,Charges from Independent Providers,"2,342.48",BUCKLAND CARE LTD
Revenue,Adult Services,Adult Social Care,Support - Memory /Cognition-older people (65+),5105669159,18.04.2018,Memory & Cognition Residential 65+,Charges from Independent Providers,"1,992.48",BUCKLAND CARE LTD
Capital,Corporate Items,Balance Sheet,Balance Sheet,5105669159,18.04.2018,Balance Sheet,Order Settlement to Bal Sht GL,92.12,BUCKLAND CARE LTD
Revenue,Adult Services,Adult Social Care,Physical Support - older people (65+),5105669159,18.04.2018,Physical Support Residential 65+,Charges from Independent Providers,"2,342.48",BUCKLAND CARE LTD
Revenue,Adult Services,Adult Social Care,Physical Support - older people (65+),5105669159,18.04.2018,Physical Support Residential 65+,Charges from Independent Providers,"1,992.48",BUCKLAND CARE LTD
Revenue,Adult Services,Adult Social Care,Support - Memory /Cognition-older people (65+),5105669159,18.04.2018,Memory & Cognition Residential 65+,Charges from Independent Providers,"2,342.48",BUCKLAND CARE LTD
Revenue,Adult Services,Adult Social Care,Physical Support - older people (65+),5105669159,18.04.2018,Physical Support Residential 65+,Charges from Independent Providers,"2,342.48",BUCKLAND CARE LTD
Revenue,Adult Services,Adult Social Care,Physical Support - older people (65+),5105667969,06.04.2018,Physical Support Residential 65+,Charges from Independent Providers,69.65,BUCKLAND CARE LTD
Revenue,Adult Services,Adult Social Care,Physical Support - older people (65+),5105667969,06.04.2018,Physical Support Residential 65+,Charges from Independent Providers,426.96,BUCKLAND CARE LTD
Revenue,Adult Services,Adult Social Care,Physical Support - older people (65+),5105670196,27.04.2018,Physical Support Residential 65+,Charges from Independent Providers,"1,565.52",BUCKLAND CARE LTD
Revenue,Adult Services,Adult Social Care,Physical Support - older people (65+),5105667969,06.04.2018,Physical Support Residential 65+,Charges from Independent Providers,348.25,BUCKLAND CARE LTD
Revenue,Adult Services,Adult Social Care,Physical Support - older people (65+),5105667969,06.04.2018,Physical Support Residential 65+,Charges from Independent Providers,"1,209.72",BUCKLAND CARE LTD
Revenue,Adult Services,Adult Social Care,Physical Support - older people (65+),5105669515,20.04.2018,Physical Support Residential 65+,Charges from Independent Providers,"1,067.40",BUCKLAND CARE LTD
Revenue,Adult Services,Adult Social Care,Physical Support - older people (65+),5105669099,18.04.2018,Physical Support Residential 65+,Charges from Independent Providers,266.00,BUCKLAND CARE LTD
Revenue,Adult Services,Adult Social Care,Physical Support - older people (65+),5105669099,18.04.2018,Physical Support Residential 65+,Charges from Independent Providers,"1,494.90",BUCKLAND CARE LTD
Revenue,Adult Services,Adult Social Care,Physical Support - older people (65+),5105669159,18.04.2018,Physical Support Residential 65+,Charges from Independent Providers,203.85,BUCKLAND CARE LTD
Revenue,Adult Services,Adult Social Care,Physical Support - older people (65+),5105669099,18.04.2018,Physical Support Residential 65+,Charges from Independent Providers,"1,254.90",BUCKLAND CARE LTD
Revenue,Adult Services,Adult Social Care,Physical Support - older people (65+),5105670010,25.04.2018,Physical Support Residential 65+,Charges from Independent Providers,83.66,BUCKLAND CARE LTD
Revenue,Adult Services,Adult Social Care,Physical Support - older people (65+),5105669422,18.04.2018,Physical Support Residential 65+,Charges from Independent Providers,"1,840.52",BUCKLAND CARE LTD
Revenue,Adult Services,Adult Social Care,Physical Support - older people (65+),5105670532,30.04.2018,Physical Support Residential 65+,Charges from Independent Providers,585.62,BUCKLAND CARE LTD
Revenue,Adult Services,Adult Social Care,Physical Support - older people (65+),5105669515,20.04.2018,Physical Support Residential 65+,Charges from Independent Providers,"2,063.64",BUCKLAND CARE LTD
Revenue,Adult Services,Adult Social Care,Commissioning & Service Delivery,5105669149,18.04.2018,"Funded Nursing Care, Registered Nursing Care Contribution",Charges from Independent Providers,632.80,BUCKLAND CARE LTD
Revenue,Adult Services,Adult Social Care,Support - Memory /Cognition-older people (65+),5105669149,18.04.2018,Memory & Cognition Nursing 65+,Regular Respite Care,"2,621.36",BUCKLAND CARE LTD
Revenue,Adult Services,Adult Social Care,Commissioning & Service Delivery,5105669149,18.04.2018,FNC IWC funded clients,Regular Respite Care,632.80,BUCKLAND CARE LTD
Revenue,Adult Services,Adult Social Care,Commissioning & Service Delivery,5105669149,18.04.2018,FNC IWC funded clients,Charges from Independent Providers,632.80,BUCKLAND CARE LTD
Revenue,Adult Services,Adult Social Care,Physical Support - older people (65+),5105669149,18.04.2018,Physical Support Nursing 65+,Charges from Independent Providers,"2,621.36",BUCKLAND CARE LTD
Revenue,Adult Services,Adult Social Care,Commissioning & Service Delivery,5105669513,20.04.2018,"Funded Nursing Care, Registered Nursing Care Contribution",Charges from Independent Providers,132.90,BUCKLAND CARE LTD
Revenue,Adult Services,Adult Social Care,Commissioning & Service Delivery,5105669149,18.04.2018,"Funded Nursing Care, Registered Nursing Care Contribution",Charges from Independent Providers,632.80,BUCKLAND CARE LTD
Revenue,Adult Services,Adult Social Care,Physical Support - older people (65+),5105669149,18.04.2018,Physical Support Nursing 65+,Charges from Independent Providers,"2,621.36",BUCKLAND CARE LTD
Revenue,Adult Services,Adult Social Care,Commissioning & Service Delivery,5105669149,18.04.2018,FNC IWC funded clients,Charges from Independent Providers,632.80,BUCKLAND CARE LTD
Revenue,Adult Services,Adult Social Care,Support - Memory /Cognition-older people (65+),5105669149,18.04.2018,Memory & Cognition Nursing 65+,Charges from Independent Providers,"2,621.36",BUCKLAND CARE LTD
Revenue,Adult Services,Adult Social Care,Commissioning & Service Delivery,5105669149,18.04.2018,FNC IWC funded clients,Charges from Independent Providers,632.80,BUCKLAND CARE LTD
Revenue,Adult Services,Adult Social Care,Commissioning & Service Delivery,5105669149,18.04.2018,"Funded Nursing Care, Registered Nursing Care Contribution",Charges from Independent Providers,632.80,BUCKLAND CARE LTD
Revenue,Adult Services,Adult Social Care,Commissioning & Service Delivery,5105669149,18.04.2018,"Funded Nursing Care, Registered Nursing Care Contribution",Charges from Independent Providers,632.80,BUCKLAND CARE LTD
Revenue,Adult Services,Adult Social Care,Commissioning & Service Delivery,5105669149,18.04.2018,"Funded Nursing Care, Registered Nursing Care Contribution",Charges from Independent Providers,632.80,BUCKLAND CARE LTD
Revenue,Adult Services,Adult Social Care,Commissioning & Service Delivery,5105669149,18.04.2018,"Funded Nursing Care, Registered Nursing Care Contribution",Charges from Independent Providers,632.80,BUCKLAND CARE LTD
Revenue,Adult Services,Adult Social Care,Physical Support - adults (18-64),5105669149,18.04.2018,Physical Support Nursing 18-64,Charges from Independent Providers,"2,621.36",BUCKLAND CARE LTD
Revenue,Adult Services,Adult Social Care,Commissioning & Service Delivery,5105669149,18.04.2018,FNC IWC funded clients,Charges from Independent Providers,632.80,BUCKLAND CARE LTD
Revenue,Adult Services,Adult Social Care,Physical Support - older people (65+),5105669149,18.04.2018,Physical Support Nursing 65+,Charges from Independent Providers,"2,621.36",BUCKLAND CARE LTD
Revenue,Adult Services,Adult Social Care,Commissioning & Service Delivery,5105669149,18.04.2018,FNC IWC funded clients,Charges from Independent Providers,632.80,BUCKLAND CARE LTD
Revenue,Adult Services,Adult Social Care,Commissioning & Service Delivery,5105669149,18.04.2018,"Funded Nursing Care, Registered Nursing Care Contribution",Charges from Independent Providers,632.80,BUCKLAND CARE LTD
Revenue,Adult Services,Adult Social Care,Physical Support - older people (65+),5105669149,18.04.2018,Physical Support Residential 65+,Charges from Independent Providers,"2,342.48",BUCKLAND CARE LTD
Revenue,Adult Services,Adult Social Care,Physical Support - older people (65+),5105669149,18.04.2018,Physical Support Residential 65+,Charges from Independent Providers,"2,342.48",BUCKLAND CARE LTD
Revenue,Adult Services,Adult Social Care,Support - Memory /Cognition-older people (65+),5105669149,18.04.2018,Memory & Cognition Residential 65+,Charges from Independent Providers,"2,342.48",BUCKLAND CARE LTD
Revenue,Adult Services,Adult Social Care,Physical Support - older people (65+),5105669149,18.04.2018,Physical Support Residential 65+,Charges from Independent Providers,"2,342.48",BUCKLAND CARE LTD
Revenue,Adult Services,Adult Social Care,Commissioning & Service Delivery,5105669149,18.04.2018,"Funded Nursing Care, Registered Nursing Care Contribution",Charges from Independent Providers,632.80,BUCKLAND CARE LTD
Revenue,Adult Services,Adult Social Care,Commissioning & Service Delivery,5105669149,18.04.2018,"Funded Nursing Care, Registered Nursing Care Contribution",Charges from Independent Providers,632.80,BUCKLAND CARE LTD
Revenue,Adult Services,Adult Social Care,Commissioning & Service Delivery,5105669149,18.04.2018,"Funded Nursing Care, Registered Nursing Care Contribution",Charges from Independent Providers,632.80,BUCKLAND CARE LTD
Revenue,Adult Services,Adult Social Care,Physical Support - older people (65+),5105669149,18.04.2018,Physical Support Nursing 65+,Charges from Independent Providers,"2,621.36",BUCKLAND CARE LTD
Revenue,Adult Services,Adult Social Care,Commissioning & Service Delivery,5105669149,18.04.2018,FNC IWC funded clients,Charges from Independent Providers,632.80,BUCKLAND CARE LTD
Revenue,Adult Services,Adult Social Care,Physical Support - older people (65+),5105667664,04.04.2018,Physical Support Nursing 65+,Charges from Independent Providers,643.02,BUCKLAND CARE LTD
Revenue,Adult Services,Adult Social Care,Commissioning & Service Delivery,5105667664,04.04.2018,FNC IWC funded clients,Charges from Independent Providers,155.05,BUCKLAND CARE LTD
Revenue,Adult Services,Adult Social Care,Commissioning & Service Delivery,5105669149,18.04.2018,"Funded Nursing Care, Registered Nursing Care Contribution",Charges from Independent Providers,632.80,BUCKLAND CARE LTD
Revenue,Adult Services,Adult Social Care,Physical Support - older people (65+),5105670194,27.04.2018,Physical Support Residential 65+,Charges from Independent Providers,"3,357.08",BUCKLAND CARE LTD
Revenue,Adult Services,Adult Social Care,Physical Support - older people (65+),5105670194,27.04.2018,Physical Support Residential 65+,Charges from Independent Providers,"1,171.24",BUCKLAND CARE LTD
Revenue,Adult Services,Adult Social Care,Physical Support - older people (65+),5105669172,18.04.2018,Physical Support Nursing 65+,Charges from Independent Providers,"2,420.04",BUPA CARE HOME (BNH) LTD
Revenue,Childrens Services,Children's & Education Services,Children Looked After,5105668009,06.04.2018,Special Guardianship Order Costs,Support Children,161.49,REDACTED PERSONAL DATA
Revenue,Childrens Services,Children's & Education Services,Children Looked After,5105668770,13.04.2018,Special Guardianship Order Costs,Support Children,161.49,REDACTED PERSONAL DATA
Revenue,Childrens Services,Children's & Education Services,Children Looked After,5105669555,20.04.2018,Special Guardianship Order Costs,Support Children,161.49,REDACTED PERSONAL DATA
Revenue,Childrens Services,Children's & Education Services,Children Looked After,5105670234,27.04.2018,Special Guardianship Order Costs,Support Children,161.49,REDACTED PERSONAL DATA
Revenue,Place,Fire & Rescue Services,Fire fighting and Rescue Operations,5105669774,20.04.2018,Fire Technical Support,Payment to Contractors - Capital,94.83,C BREWER & SONS LTD
Revenue,Place,Fire & Rescue Services,Fire fighting and Rescue Operations,5105669774,20.04.2018,Fire Technical Support,Payment to Contractors - Capital,9.58,C BREWER & SONS LTD
Revenue,Place,Fire & Rescue Services,Fire fighting and Rescue Operations,5105669774,20.04.2018,Fire Technical Support,Payment to Contractors - Capital,27.30,C BREWER & SONS LTD
Revenue,Childrens Services,Children's & Education Services,Children Looked After,5105668043,06.04.2018,Children placed with Family&Friends,Boarding Out Allowances,234.52,REDACTED PERSONAL DATA
Revenue,Childrens Services,Children's & Education Services,Children Looked After,5105668804,13.04.2018,Children placed with Family&Friends,Boarding Out Allowances,234.52,REDACTED PERSONAL DATA
Revenue,Childrens Services,Children's & Education Services,Children Looked After,5105669592,20.04.2018,Children placed with Family&Friends,Boarding Out Allowances,234.52,REDACTED PERSONAL DATA
Revenue,Childrens Services,Children's & Education Services,Children Looked After,5105670267,27.04.2018,Children placed with Family&Friends,Boarding Out Allowances,234.52,REDACTED PERSONAL DATA
Revenue,Adult Services,Adult Social Care,Learning Disability Suppt-adults (18-64),5105668488,11.04.2018,No-Barriers,Client Expenses,80.00,REDACTED PERSONAL DATA
Revenue,Childrens Services,Children's & Education Services,Children Looked After,5105668033,06.04.2018,Adoption Costs,Support Children,161.49,REDACTED PERSONAL DATA
Revenue,Childrens Services,Children's & Education Services,Children Looked After,5105668794,13.04.2018,Adoption Costs,Support Children,161.49,REDACTED PERSONAL DATA
Revenue,Childrens Services,Children's & Education Services,Children Looked After,5105669582,20.04.2018,Adoption Costs,Support Children,161.49,REDACTED PERSONAL DATA
Revenue,Childrens Services,Children's & Education Services,Children Looked After,5105670258,27.04.2018,Adoption Costs,Support Children,161.49,REDACTED PERSONAL DATA
Revenue,Childrens Services,Children's & Education Services,Children Looked After,5105668033,06.04.2018,Adoption Costs,Support Children,168.09,REDACTED PERSONAL DATA
Revenue,Childrens Services,Children's & Education Services,Children Looked After,5105668794,13.04.2018,Adoption Costs,Support Children,168.09,REDACTED PERSONAL DATA
Revenue,Childrens Services,Children's & Education Services,Children Looked After,5105669582,20.04.2018,Adoption Costs,Support Children,168.09,REDACTED PERSONAL DATA
Revenue,Childrens Services,Children's & Education Services,Children Looked After,5105670258,27.04.2018,Adoption Costs,Support Children,168.09,REDACTED PERSONAL DATA
Revenue,Childrens Services,Children's & Education Services,Children Looked After,5105668018,06.04.2018,Special Guardianship Order Costs,Support Children,125.79,REDACTED PERSONAL DATA
Revenue,Childrens Services,Children's & Education Services,Children Looked After,5105668779,13.04.2018,Special Guardianship Order Costs,Support Children,125.79,REDACTED PERSONAL DATA
Revenue,Childrens Services,Children's & Education Services,Children Looked After,5105669567,20.04.2018,Special Guardianship Order Costs,Support Children,125.79,REDACTED PERSONAL DATA
Revenue,Childrens Services,Children's & Education Services,Children Looked After,5105670243,27.04.2018,Special Guardianship Order Costs,Support Children,125.79,REDACTED PERSONAL DATA
Revenue,Childrens Services,Children's & Education Services,Children Looked After,5105668041,06.04.2018,In-house Fostering,Boarding Out Allowances,319.15,REDACTED PERSONAL DATA
Revenue,Childrens Services,Children's & Education Services,Children Looked After,5105668802,13.04.2018,In-house Fostering,Boarding Out Allowances,319.15,REDACTED PERSONAL DATA
Revenue,Childrens Services,Children's & Education Services,Children Looked After,5105669590,20.04.2018,In-house Fostering,Boarding Out Allowances,319.15,REDACTED PERSONAL DATA
Revenue,Childrens Services,Children's & Education Services,Children Looked After,5105670265,27.04.2018,In-house Fostering,Boarding Out Allowances,319.15,REDACTED PERSONAL DATA
Revenue,Childrens Services,Children's & Education Services,Children Looked After,5105668041,06.04.2018,In-house Fostering,Boarding Out Allowances,274.81,REDACTED PERSONAL DATA
Revenue,Childrens Services,Children's & Education Services,Children Looked After,5105668802,13.04.2018,In-house Fostering,Boarding Out Allowances,274.81,REDACTED PERSONAL DATA
Revenue,Childrens Services,Children's & Education Services,Children Looked After,5105669590,20.04.2018,In-house Fostering,Boarding Out Allowances,274.81,REDACTED PERSONAL DATA
Revenue,Childrens Services,Children's & Education Services,Children Looked After,5105670265,27.04.2018,In-house Fostering,Boarding Out Allowances,274.81,REDACTED PERSONAL DATA
Revenue,Childrens Services,Children's & Education Services,Children Looked After,5105668041,06.04.2018,In-house Fostering,Boarding Out Allowances,274.81,REDACTED PERSONAL DATA
Revenue,Childrens Services,Children's & Education Services,Children Looked After,5105668802,13.04.2018,In-house Fostering,Boarding Out Allowances,274.81,REDACTED PERSONAL DATA
Revenue,Childrens Services,Children's & Education Services,Children Looked After,5105669590,20.04.2018,In-house Fostering,Boarding Out Allowances,274.81,REDACTED PERSONAL DATA
Revenue,Childrens Services,Children's & Education Services,Children Looked After,5105670265,27.04.2018,In-house Fostering,Boarding Out Allowances,274.81,REDACTED PERSONAL DATA
Revenue,Childrens Services,Children's & Education Services,Children Looked After,5105668010,06.04.2018,Adoption Costs,Support Children,207.73,REDACTED PERSONAL DATA
Revenue,Childrens Services,Children's & Education Services,Children Looked After,5105668771,13.04.2018,Adoption Costs,Support Children,207.73,REDACTED PERSONAL DATA
Revenue,Childrens Services,Children's & Education Services,Children Looked After,5105669556,20.04.2018,Adoption Costs,Support Children,207.73,REDACTED PERSONAL DATA
Revenue,Childrens Services,Children's & Education Services,Children Looked After,5105670235,27.04.2018,Adoption Costs,Support Children,207.73,REDACTED PERSONAL DATA
Revenue,Childrens Services,Children's & Education Services,Children Looked After,5105668010,06.04.2018,Adoption Costs,Support Children,207.73,REDACTED PERSONAL DATA
Revenue,Childrens Services,Children's & Education Services,Children Looked After,5105668771,13.04.2018,Adoption Costs,Support Children,207.73,REDACTED PERSONAL DATA
Revenue,Childrens Services,Children's & Education Services,Children Looked After,5105669556,20.04.2018,Adoption Costs,Support Children,207.73,REDACTED PERSONAL DATA
Revenue,Childrens Services,Children's & Education Services,Children Looked After,5105670235,27.04.2018,Adoption Costs,Support Children,207.73,REDACTED PERSONAL DATA
Revenue,Childrens Services,Children's & Education Services,Children Looked After,5105668057,06.04.2018,Special Guardianship Order Costs,Support Children,166.96,REDACTED PERSONAL DATA
Revenue,Childrens Services,Children's & Education Services,Children Looked After,5105668818,13.04.2018,Special Guardianship Order Costs,Support Children,166.96,REDACTED PERSONAL DATA
Revenue,Childrens Services,Children's & Education Services,Children Looked After,5105669606,20.04.2018,Special Guardianship Order Costs,Support Children,166.96,REDACTED PERSONAL DATA
Revenue,Childrens Services,Children's & Education Services,Children Looked After,5105670281,27.04.2018,Special Guardianship Order Costs,Support Children,166.96,REDACTED PERSONAL DATA
Revenue,Childrens Services,Children's & Education Services,Children Looked After,5105668002,06.04.2018,In-house Fostering,Boarding Out Allowances,274.81,REDACTED PERSONAL DATA
Revenue,Childrens Services,Children's & Education Services,Children Looked After,5105668763,13.04.2018,In-house Fostering,Boarding Out Allowances,274.81,REDACTED PERSONAL DATA
Revenue,Childrens Services,Children's & Education Services,Children Looked After,5105669548,20.04.2018,In-house Fostering,Boarding Out Allowances,274.81,REDACTED PERSONAL DATA
Revenue,Childrens Services,Children's & Education Services,Children Looked After,5105670227,27.04.2018,In-house Fostering,Boarding Out Allowances,274.81,REDACTED PERSONAL DATA
Revenue,Childrens Services,Children's & Education Services,Children Looked After,5105668028,06.04.2018,Special Guardianship Order Costs,Support Children,161.49,REDACTED PERSONAL DATA
Revenue,Childrens Services,Children's & Education Services,Children Looked After,5105668789,13.04.2018,Special Guardianship Order Costs,Support Children,161.49,REDACTED PERSONAL DATA
Revenue,Childrens Services,Children's & Education Services,Children Looked After,5105669577,20.04.2018,Special Guardianship Order Costs,Support Children,161.49,REDACTED PERSONAL DATA
Revenue,Childrens Services,Children's & Education Services,Children Looked After,5105670253,27.04.2018,Special Guardianship Order Costs,Support Children,161.49,REDACTED PERSONAL DATA
Revenue,Childrens Services,Children's & Education Services,Children Looked After,5105668007,06.04.2018,Adoption Costs,Support Children,168.39,REDACTED PERSONAL DATA
Revenue,Childrens Services,Children's & Education Services,Children Looked After,5105668768,13.04.2018,Adoption Costs,Support Children,168.39,REDACTED PERSONAL DATA
Revenue,Childrens Services,Children's & Education Services,Children Looked After,5105669553,20.04.2018,Adoption Costs,Support Children,168.39,REDACTED PERSONAL DATA
Revenue,Childrens Services,Children's & Education Services,Children Looked After,5105670232,27.04.2018,Adoption Costs,Support Children,168.39,REDACTED PERSONAL DATA
Revenue,Adult Services,Adult Social Care,Assistive Equipment & Technology,5105669458,18.04.2018,Wightcare,General Materials,"3,500.00",CAIR (UK) LTD
Revenue,Adult Services,Adult Social Care,Assistive Equipment & Technology,5105669458,18.04.2018,Wightcare,Operational Equipment,40.00,CAIR (UK) LTD
Revenue,Adult Services,Adult Social Care,Assistive Equipment & Technology,5105669458,18.04.2018,Wightcare,Operational Equipment,60.00,CAIR (UK) LTD
Revenue,Adult Services,Adult Social Care,Assistive Equipment & Technology,5105669458,18.04.2018,Wightcare,Operational Equipment,"3,500.00",CAIR (UK) LTD
Revenue,Adult Services,Adult Social Care,Assistive Equipment & Technology,5105669458,18.04.2018,Wightcare,Operational Equipment,700.00,CAIR (UK) LTD
Revenue,Adult Services,Adult Social Care,Assistive Equipment & Technology,5105669458,18.04.2018,Wightcare,Operational Equipment,"1,750.00",CAIR (UK) LTD
Revenue,Resources,Housing Services,Housing Benefits Administration,5105669703,20.04.2018,Housing Benefit,Computer Software Licencing,"8,000.00",COACTIVA ASPIREN LTD
Revenue,Childrens Services,Children's & Education Services,Children Looked After,5105667804,04.04.2018,Purchased Residential,Charges from Independent Providers,"19,280.00",CAMBIAN ASPERGER SYNDROME SERVICES LTD
Revenue,Childrens Services,Children's & Education Services,Post-16 Provision,5105667804,04.04.2018,Post 16 Independ. & Non-Maint. Special Schls & Independ. Specialist Provision,Charges from Independent Providers,"21,275.67",CAMBIAN ASPERGER SYNDROME SERVICES LTD
Revenue,Childrens Services,Children's & Education Services,Children Looked After,5105667804,04.04.2018,NHS Funded Placements,Charges from Independent Providers,"1,995.66",CAMBIAN ASPERGER SYNDROME SERVICES LTD
Revenue,Childrens Services,Children's & Education Services,Post-16 Provision,5105667716,11.04.2018,Post 16 Independ. & Non-Maint. Special Schls & Independ. Specialist Provision,Professional Services,"11,416.31",CAMBIAN ASPERGER SYNDROME SERVICES LTD
Revenue,Adult Services,Adult Social Care,Mental Health Support - adults (18-64),5105667716,11.04.2018,Mental Health Residential 18-64,Professional Services,"1,181.00",CAMBIAN ASPERGER SYNDROME SERVICES LTD
Revenue,Adult Services,Adult Social Care,Mental Health Support - adults (18-64),5105667716,11.04.2018,Mental Health Residential 18-64,Charges from Independent Providers,"26,769.29",CAMBIAN ASPERGER SYNDROME SERVICES LTD
Revenue,Childrens Services,Children's & Education Services,Management & Support Services,5105667715,04.04.2018,Pre 16 Independ. & Non-Maint. Special Schls & Independ. Specialist Provision,Charges from Independent Providers,"57,262.67",CAMBIAN ASPERGER SYNDROME SERVICES LTD
Revenue,Childrens Services,Children's & Education Services,Children Looked After,5105667820,04.04.2018,Purchased Residential,Charges from Independent Providers,"5,331.60",CAMBIAN ASPERGER SYNDROME SERVICES LTD
Revenue,Childrens Services,Children's & Education Services,Children Looked After,5105667822,06.04.2018,Purchased Residential,Charges from Independent Providers,"12,397.19",CAMBIAN ASPERGER SYNDROME SERVICES LTD
Revenue,Childrens Services,Children's & Education Services,Children Looked After,5105668161,05.04.2018,Purchased Residential,Charges from Independent Providers,"-5,331.60",CAMBIAN ASPERGER SYNDROME SERVICES LTD
Revenue,Childrens Services,Children's & Education Services,Children Looked After,5105668163,05.04.2018,Purchased Residential,Charges from Independent Providers,"4,271.14",CAMBIAN ASPERGER SYNDROME SERVICES LTD
Revenue,Childrens Services,Children's & Education Services,Management & Support Services,5105667822,06.04.2018,Pre 16 Independ. & Non-Maint. Special Schls & Independ. Specialist Provision,Charges from Independent Providers,"2,689.59",CAMBIAN ASPERGER SYNDROME SERVICES LTD
Revenue,Childrens Services,Children's & Education Services,Management & Support Services,5105668163,05.04.2018,Pre 16 Independ. & Non-Maint. Special Schls & Independ. Specialist Provision,Charges from Independent Providers,926.64,CAMBIAN ASPERGER SYNDROME SERVICES LTD
Revenue,Childrens Services,Children's & Education Services,Children Looked After,5105667822,06.04.2018,NHS Funded Placements,Charges from Independent Providers,388.42,CAMBIAN ASPERGER SYNDROME SERVICES LTD
Revenue,Childrens Services,Children's & Education Services,Children Looked After,5105668163,05.04.2018,NHS Funded Placements,Charges from Independent Providers,133.82,CAMBIAN ASPERGER SYNDROME SERVICES LTD
Revenue,Childrens Services,Children's & Education Services,Post-16 Provision,5105667824,04.04.2018,Post 16 Independ. & Non-Maint. Special Schls & Independ. Specialist Provision,Charges from Independent Providers,"47,028.33",CAMBIAN ASPERGER SYNDROME SERVICES LTD
Revenue,Childrens Services,Children's & Education Services,Management & Support Services,5105667942,06.04.2018,Pre 16 Independ. & Non-Maint. Special Schls & Independ. Specialist Provision,Charges from Independent Providers,"6,166.67",CAMBIAN ASPERGER SYNDROME SERVICES LTD
